Organisation Name (A),Department (B),Service Cat Label (C ),Purpose of Spend (D),Expenditure CIPFA Sub Group (E),Supplier (F),Supplier Reference (G),Pay Date (H),Transaction Number (I),Net Amount (J),Grant to VCSE? (K),Charity Number (L),Card Transaction (M),Irrecoverable VAT (N)
Pendle Borough Council,Parks & Recreation Services,Indirect Employee Expenses,Training,1211,APSE,A0000021,02/03/2023,PCO0331845,272,N,,N,N
Pendle Borough Council,Parks & Recreation Services,Transport Related Expense,Tprt : Repairs : General,3105,BALMERS GM LIMITED,A0000198,16/03/2023,PCO0332198,83.81,N,,N,N
Pendle Borough Council,Parks & Recreation Services,Premises Related Expense,Bldgs : R & M : Day To Day,2001,BARNES JB LIMITED,A0000202,23/03/2023,PCO0332368,543.23,N,,N,N
Pendle Borough Council,Operational Services,Premises Related Expense,Bldgs : R & M : Day To Day,2001,BARNES JB LIMITED,A0000202,09/03/2023,OPS0331989,28.29,N,,N,N
Pendle Borough Council,Parks & Recreation Services,Premises Related Expense,Grounds : R & M : Day to Day : Routine,2101,BARNES JB LIMITED,A0000202,16/03/2023,PCO0332145,4.66,N,,N,N
Pendle Borough Council,Parks & Recreation Services,Transport Related Expense,Tprt : Repairs : General,3105,BARNES JB LIMITED,A0000202,29/03/2023,PCO0332681,66.67,N,,N,N
Pendle Borough Council,Parks & Recreation Services,Transport Related Expense,Tprt : Repairs : General,3105,BARNES JB LIMITED,A0000202,23/03/2023,PCO0332378,174.86,N,,N,N
Pendle Borough Council,Operational Services,Supplies and Services,Sub-Contractors,4007,BARNES JB LIMITED,A0000202,23/03/2023,OPS0332356,60.84,N,,N,N
Pendle Borough Council,Property Services,Capital Costs,Capital: Construction: Conversion/Refu,CD57,BARNFIELD CONSTRUCTION LIMITED,A0000203,02/03/2023,EST0331903,18697.28,N,,N,N
Pendle Borough Council,Parks & Recreation Services,Premises Related Expense,Grounds : R & M : Day to Day : Routine,2101,BROXAP LIMITED,A0000236,09/03/2023,PCO0332029,821,N,,N,N
Pendle Borough Council,Parks & Recreation Services,Premises Related Expense,Grounds : R & M : Day to Day : Routine,2101,BROXAP LIMITED,A0000236,16/03/2023,PCO0332294,3089.5,N,,N,N
Pendle Borough Council,Parks & Recreation Services,Transport Related Expense,Hire of Plant,3502,BOC GASES LTD,A0000386,16/03/2023,PCO0332123,25.95,N,,N,N
Pendle Borough Council,Parks & Recreation Services,Transport Related Expense,Hire of Plant,3502,BOC GASES LTD,A0000386,16/03/2023,PCO0332194,25.95,N,,N,N
Pendle Borough Council,Engineering & Special Projects,Premises Related Expense,Grounds : R & M : Day to Day : Routine,2101,CB EXCAVATORS LTD,A0000396,09/03/2023,HED0332034,960,N,,N,N
Pendle Borough Council,Engineering & Special Projects,Premises Related Expense,Grounds : R & M : Day to Day : Routine,2101,CB EXCAVATORS LTD,A0000396,02/03/2023,HED0331867,1736,N,,N,N
Pendle Borough Council,Engineering & Special Projects,Supplies and Services,Other Expenses,4705,CB EXCAVATORS LTD,A0000396,02/03/2023,HED0331864,120,N,,N,N
Pendle Borough Council,Engineering & Special Projects,Supplies and Services,Other Expenses,4705,CB EXCAVATORS LTD,A0000396,02/03/2023,HED0331866,2000,N,,N,N
Pendle Borough Council,Engineering & Special Projects,Capital Costs,Capital : Payments,CD14,CB EXCAVATORS LTD,A0000396,02/03/2023,HED0331866,18101.15,N,,N,N
Pendle Borough Council,Human Resources,Indirect Employee Expenses,Training,1211,BURNLEY COLLEGE,A0000428,02/03/2023,PER0331884,24.43,N,,N,N
Pendle Borough Council,Parks & Recreation Services,Supplies and Services,Expenditure : Materials,0002,BARROWFORD SAFE & LOCK SERV LT,A0000458,29/03/2023,PCO0332619,14.58,N,,N,N
Pendle Borough Council,Property Services,Premises Related Expense,Bldgs : R & M : Day To Day,2001,BARROWFORD SAFE & LOCK SERV LT,A0000458,29/03/2023,EST0332713,119.36,N,,N,N
Pendle Borough Council,Parks & Recreation Services,Premises Related Expense,Grounds : R & M : Day to Day : Routine,2101,BARROWFORD SAFE & LOCK SERV LT,A0000458,09/03/2023,PCO0332011,16.72,N,,N,N
Pendle Borough Council,Parks & Recreation Services,Premises Related Expense,Grounds : R & M : Day to Day : Routine,2101,BARROWFORD SAFE & LOCK SERV LT,A0000458,09/03/2023,PCO0332011,9.99,N,,N,N
Pendle Borough Council,Parks & Recreation Services,Premises Related Expense,Grounds : R & M : Day to Day : Routine,2101,BARROWFORD SAFE & LOCK SERV LT,A0000458,09/03/2023,PCO0332011,24.68,N,,N,N
Pendle Borough Council,Parks & Recreation Services,Premises Related Expense,Grounds : R & M : Day to Day : Routine,2101,BARROWFORD SAFE & LOCK SERV LT,A0000458,09/03/2023,PCO0332011,14.16,N,,N,N
Pendle Borough Council,Parks & Recreation Services,Transport Related Expense,Tprt : Repairs : General,3105,BARROWFORD SAFE & LOCK SERV LT,A0000458,09/03/2023,PCO0332011,13.97,N,,N,N
Pendle Borough Council,Operational Services,Premises Related Expense,Bldgs : R & M : Day To Day,2001,BARROWFORD SAFE & LOCK & BB LOCKSMITHS,A0000510,29/03/2023,OPS0332669,9.99,N,,N,N
Pendle Borough Council,Financial Services,Supplies and Services,Seminars etc All Costs,4601,CIPFA,A0000563,09/03/2023,AAS0332057,220,N,,N,N
Pendle Borough Council,Engineering & Special Projects,Premises Related Expense,Bldgs : R & M : Abnormal,2002,MARTIN COLLINS JOINERY & GLAZING,A0000623,29/03/2023,HED0332732,91.5,N,,N,N
Pendle Borough Council,Engineering & Special Projects,Transfer Payments,Storage & Homelessness prevention,6104,CAVALIER TAXIS,A0000638,09/03/2023,HED0331982,375,N,,N,N
Pendle Borough Council,Planning & Building Control,Capital Costs,Capital : Payments,CD14,CONCEPT PLASTICS LTD,A0000842,29/03/2023,PBC0332599,18117.5,N,,N,N
Pendle Borough Council,Property Services,Premises Related Expense,Bldgs : R & M : Day To Day,2001,J DRIVER LTD,A0000884,09/03/2023,EST0332073,175,N,,N,N
Pendle Borough Council,Property Services,Premises Related Expense,Bldgs : R & M : Day To Day,2001,J DRIVER LTD,A0000884,09/03/2023,EST0332073,336.56,N,,N,N
Pendle Borough Council,Property Services,Premises Related Expense,Bldgs : R & M : Day To Day,2001,J DRIVER LTD,A0000884,09/03/2023,EST0332073,128.81,N,,N,N
Pendle Borough Council,Property Services,Premises Related Expense,Bldgs : R & M : Day To Day,2001,J DRIVER LTD,A0000884,09/03/2023,EST0332073,140,N,,N,N
Pendle Borough Council,Property Services,Premises Related Expense,Bldgs : R & M : Day To Day,2001,J DRIVER LTD,A0000884,09/03/2023,EST0332073,437.1,N,,N,N
Pendle Borough Council,Property Services,Premises Related Expense,Bldgs : R & M : Day To Day,2001,J DRIVER LTD,A0000884,09/03/2023,EST0332073,236.44,N,,N,N
Pendle Borough Council,Property Services,Premises Related Expense,Bldgs : R & M : Day To Day,2001,J DRIVER LTD,A0000884,09/03/2023,EST0332073,133,N,,N,N
Pendle Borough Council,Property Services,Premises Related Expense,Bldgs : R & M : Day To Day,2001,J DRIVER LTD,A0000884,09/03/2023,EST0332073,210.31,N,,N,N
Pendle Borough Council,Property Services,Premises Related Expense,Bldgs : R & M : Day To Day,2001,J DRIVER LTD,A0000884,09/03/2023,EST0332073,473.43,N,,N,N
Pendle Borough Council,Property Services,Premises Related Expense,Bldgs : R & M : Day To Day,2001,J DRIVER LTD,A0000884,09/03/2023,EST0332073,191.03,N,,N,N
Pendle Borough Council,Parks & Recreation Services,Supplies and Services,Protective Clothing,4201,ENGINEERING & FOUNDRY SUPPLIES,A0001002,16/03/2023,PCO0332146,19.6,N,,N,N
Pendle Borough Council,Parks & Recreation Services,Supplies and Services,Protective Clothing,4201,ENGINEERING & FOUNDRY SUPPLIES,A0001002,02/03/2023,PCO0331832,28.5,N,,N,N
Pendle Borough Council,Parks & Recreation Services,Supplies and Services,Protective Clothing,4201,ENGINEERING & FOUNDRY SUPPLIES,A0001002,29/03/2023,PCO0332450,28.5,N,,N,N
Pendle Borough Council,Parks & Recreation Services,Supplies and Services,Protective Clothing,4201,ENGINEERING & FOUNDRY SUPPLIES,A0001002,23/03/2023,PCO0332384,29.9,N,,N,N
Pendle Borough Council,Parks & Recreation Services,Supplies and Services,Protective Clothing,4201,ENGINEERING & FOUNDRY SUPPLIES,A0001002,29/03/2023,PCO0332649,33.33,N,,N,N
Pendle Borough Council,Parks & Recreation Services,Supplies and Services,Protective Clothing,4201,ENGINEERING & FOUNDRY SUPPLIES,A0001002,09/03/2023,PCO0332003,38.88,N,,N,N
Pendle Borough Council,Operational Services,Supplies and Services,Other Expenses,4705,ENGINEERING & FOUNDRY SUPPLIES,A0001002,29/03/2023,OPS0332670,75.92,N,,N,N
Pendle Borough Council,Operational Services,,Stock : Purchases,PJ01,ENGINEERING & FOUNDRY SUPPLIES,A0001002,29/03/2023,OPS0332479,20.1,N,,N,N
Pendle Borough Council,Operational Services,,Stock : Purchases,PJ01,ENGINEERING & FOUNDRY SUPPLIES,A0001002,29/03/2023,OPS0332595,30.25,N,,N,N
Pendle Borough Council,Operational Services,,Stock : Purchases,PJ01,ENGINEERING & FOUNDRY SUPPLIES,A0001002,09/03/2023,OPS0332005,33.33,N,,N,N
Pendle Borough Council,Operational Services,,Stock : Purchases,PJ01,ENGINEERING & FOUNDRY SUPPLIES,A0001002,09/03/2023,OPS0332006,50,N,,N,N
Pendle Borough Council,Operational Services,,Stock : Purchases,PJ01,ENGINEERING & FOUNDRY SUPPLIES,A0001002,09/03/2023,OPS0332062,53.74,N,,N,N
Pendle Borough Council,Operational Services,,Stock : Purchases,PJ01,ENGINEERING & FOUNDRY SUPPLIES,A0001002,29/03/2023,OPS0332479,70.5,N,,N,N
Pendle Borough Council,Operational Services,,Stock : Purchases,PJ01,ENGINEERING & FOUNDRY SUPPLIES,A0001002,29/03/2023,OPS0332479,92.95,N,,N,N
Pendle Borough Council,Operational Services,,Stock : Purchases,PJ01,ENGINEERING & FOUNDRY SUPPLIES,A0001002,09/03/2023,OPS0332009,99.4,N,,N,N
Pendle Borough Council,Operational Services,,Stock : Purchases,PJ01,ENGINEERING & FOUNDRY SUPPLIES,A0001002,09/03/2023,OPS0332010,105.6,N,,N,N
Pendle Borough Council,Operational Services,,Stock : Purchases,PJ01,ENGINEERING & FOUNDRY SUPPLIES,A0001002,09/03/2023,OPS0332010,105.6,N,,N,N
Pendle Borough Council,Operational Services,,Stock : Purchases,PJ01,ENGINEERING & FOUNDRY SUPPLIES,A0001002,29/03/2023,OPS0332594,105.6,N,,N,N
Pendle Borough Council,Operational Services,,Stock : Purchases,PJ01,ENGINEERING & FOUNDRY SUPPLIES,A0001002,29/03/2023,OPS0332594,111.54,N,,N,N
Pendle Borough Council,Operational Services,,Stock : Purchases,PJ01,ENGINEERING & FOUNDRY SUPPLIES,A0001002,23/03/2023,OPS0332358,119.5,N,,N,N
Pendle Borough Council,Operational Services,,Stock : Purchases,PJ01,ENGINEERING & FOUNDRY SUPPLIES,A0001002,09/03/2023,OPS0332008,124.8,N,,N,N
Pendle Borough Council,Operational Services,,Stock : Purchases,PJ01,ENGINEERING & FOUNDRY SUPPLIES,A0001002,09/03/2023,OPS0332009,124.8,N,,N,N
Pendle Borough Council,Operational Services,,Stock : Purchases,PJ01,ENGINEERING & FOUNDRY SUPPLIES,A0001002,09/03/2023,OPS0332008,167.31,N,,N,N
Pendle Borough Council,Operational Services,,Stock : Purchases,PJ01,ENGINEERING & FOUNDRY SUPPLIES,A0001002,09/03/2023,OPS0332008,232.32,N,,N,N
Pendle Borough Council,Operational Services,,Stock : Purchases,PJ01,ENGINEERING & FOUNDRY SUPPLIES,A0001002,29/03/2023,OPS0332594,312,N,,N,N
Pendle Borough Council,Operational Services,,Stock : Purchases,PJ01,ENGINEERING & FOUNDRY SUPPLIES,A0001002,29/03/2023,OPS0332479,374.4,N,,N,N
Pendle Borough Council,Operational Services,,Stock : Purchases,PJ01,ENGINEERING & FOUNDRY SUPPLIES,A0001002,29/03/2023,OPS0332479,443.52,N,,N,N
Pendle Borough Council,Engineering & Special Projects,,Fees Income : Non-VATable,9302,FORBES SOLICITORS,A0001117,09/03/2023,HED0331975,1785.6,N,,N,N
Pendle Borough Council,Operational Services,Transport Related Expense,Tprt : Repairs : General,3105,FREIGHT TRANSPORT ASSOCIATION,A0001124,09/03/2023,OPS0332013,42,N,,N,N
Pendle Borough Council,Parks & Recreation Services,Transport Related Expense,Tprt : Repairs : General,3105,GIBSONS GARDEN MACHINERY LTD,A0001201,16/03/2023,PCO0332128,409.68,N,,N,N
Pendle Borough Council,Parks & Recreation Services,Transport Related Expense,Tprt : Repairs : General,3105,GIBSONS GARDEN MACHINERY LTD,A0001201,16/03/2023,PCO0332199,409.68,N,,N,N
Pendle Borough Council,Operational Services,Supplies and Services,Telephones : Direct,4502,FGH GUARDHALL SECURITY LIMITED,A0001235,09/03/2023,OPS0332021,1500,N,,N,N
Pendle Borough Council,Parks & Recreation Services,Premises Related Expense,Bldgs : R & M : Day To Day,2001,JEWSON LIMITED,A0001323,09/03/2023,PCO0332027,94.82,N,,N,N
Pendle Borough Council,Operational Services,Supplies and Services,EFM Materials,4004,JEWSON LIMITED,A0001323,23/03/2023,OPS0332373,59.68,N,,N,N
Pendle Borough Council,Operational Services,Supplies and Services,EFM Materials,4004,JEWSON LIMITED,A0001323,23/03/2023,OPS0332374,59.68,N,,N,N
Pendle Borough Council,Operational Services,,Paid in the Year,PD03,JEWSON LIMITED,A0001323,29/03/2023,OPS0332483,54.49,N,,N,N
Pendle Borough Council,Operational Services,,Paid in the Year,PD03,JEWSON LIMITED,A0001323,29/03/2023,OPS0332483,196.52,N,,N,N
Pendle Borough Council,Operational Services,Premises Related Expense,Bldgs : R & M : Day To Day,2001,J HARGREAVES,A0001359,09/03/2023,OPS0332012,95,N,,N,N
Pendle Borough Council,Operational Services,Premises Related Expense,Premises Cleaning,2601,J HARGREAVES,A0001359,09/03/2023,OPS0332012,25,N,,N,N
Pendle Borough Council,Financial Services,Supplies and Services,Subscriptions & Donations,4706,CIPFA BUSINESS LIMITED,A0001556,09/03/2023,AAS0332110,220,N,,N,N
Pendle Borough Council,Financial Services,Supplies and Services,Subscriptions & Donations,4706,CIPFA BUSINESS LIMITED,A0001556,09/03/2023,AAS0332112,220,N,,N,N
Pendle Borough Council,Engineering & Special Projects,Supplies and Services,EFM Materials,4004,KILLGERM CHEMICALS LTD,A0001624,09/03/2023,HED0332053,160.38,N,,N,N
Pendle Borough Council,Financial Services,Premises Related Expense,Grounds : R & M : Day to Day : Routine,2101,LANLEE SUPPLIES LIMITED,A0001672,29/03/2023,AAS4006691,-25.21,N,,N,N
Pendle Borough Council,Parks & Recreation Services,Premises Related Expense,Grounds : R & M : Day to Day : Routine,2101,LANLEE SUPPLIES LIMITED,A0001672,16/03/2023,PCO0332130,25.21,N,,N,N
Pendle Borough Council,Parks & Recreation Services,Premises Related Expense,Grounds : R & M : Day to Day : Routine,2101,LANLEE SUPPLIES LIMITED,A0001672,16/03/2023,PCO0332201,25.21,N,,N,N
Pendle Borough Council,Parks & Recreation Services,Premises Related Expense,Grounds : R & M : Day to Day : Routine,2101,LANLEE SUPPLIES LIMITED,A0001672,29/03/2023,PCO0332616,16.31,N,,N,N
Pendle Borough Council,Parks & Recreation Services,Premises Related Expense,Grounds : R & M : Day to Day : Routine,2101,LANLEE SUPPLIES LIMITED,A0001672,02/03/2023,PCO0331855,11.25,N,,N,N
Pendle Borough Council,Parks & Recreation Services,Premises Related Expense,Grounds : R & M : Day to Day : Routine,2101,LANLEE SUPPLIES LIMITED,A0001672,02/03/2023,PCO0331854,35.75,N,,N,N
Pendle Borough Council,Parks & Recreation Services,Premises Related Expense,Grounds : R & M : Day to Day : Routine,2101,LANLEE SUPPLIES LIMITED,A0001672,29/03/2023,PCO0332362,14.79,N,,N,N
Pendle Borough Council,Parks & Recreation Services,Premises Related Expense,Grounds : R & M : Day to Day : Routine,2101,LANLEE SUPPLIES LIMITED,A0001672,09/03/2023,PCO0332031,56.76,N,,N,N
Pendle Borough Council,Parks & Recreation Services,Supplies and Services,Other Expenses,4705,LANLEE SUPPLIES LIMITED,A0001672,16/03/2023,PCO0332241,10.18,N,,N,N
Pendle Borough Council,Parks & Recreation Services,Supplies and Services,Other Expenses,4705,LANLEE SUPPLIES LIMITED,A0001672,16/03/2023,PCO0332144,71.28,N,,N,N
Pendle Borough Council,Parks & Recreation Services,Transport Related Expense,Tprt : Repairs : General,3105,DICK LEIGH,A0001675,29/03/2023,PCO4006695,-236.1,N,,N,N
Pendle Borough Council,Parks & Recreation Services,Transport Related Expense,Tprt : Repairs : General,3105,DICK LEIGH,A0001675,09/03/2023,PCO4006666,-170.54,N,,N,N
Pendle Borough Council,Parks & Recreation Services,Transport Related Expense,Tprt : Repairs : General,3105,DICK LEIGH,A0001675,16/03/2023,PCO0332126,236.1,N,,N,N
Pendle Borough Council,Parks & Recreation Services,Transport Related Expense,Tprt : Repairs : General,3105,DICK LEIGH,A0001675,16/03/2023,PCO0332197,236.1,N,,N,N
Pendle Borough Council,Parks & Recreation Services,Transport Related Expense,Tprt : Repairs : General,3105,DICK LEIGH,A0001675,29/03/2023,PCO0332627,540.16,N,,N,N
Pendle Borough Council,Parks & Recreation Services,Transport Related Expense,Tprt : Repairs : General,3105,DICK LEIGH,A0001675,16/03/2023,PCO0332192,20,N,,N,N
Pendle Borough Council,Parks & Recreation Services,Transport Related Expense,Tprt : Repairs : General,3105,DICK LEIGH,A0001675,09/03/2023,PCO0331833,24.4,N,,N,N
Pendle Borough Council,Parks & Recreation Services,Transport Related Expense,Tprt : Repairs : General,3105,DICK LEIGH,A0001675,16/03/2023,PCO0332191,156.94,N,,N,N
Pendle Borough Council,Parks & Recreation Services,Supplies and Services,EFM : Other Equipment,4003,DICK LEIGH,A0001675,09/03/2023,PCO0332030,1431.86,N,,N,N
Pendle Borough Council,Engineering & Special Projects,Premises Related Expense,Grounds : R & M : Day to Day : Routine,2101,LANCASHIRE COUNTY COUNCIL,A0001690,09/03/2023,HED0332040,47,N,,N,N
Pendle Borough Council,Operational Services,Premises Related Expense,Trade Refuse Charges,2602,LANCASHIRE COUNTY COUNCIL,A0001690,23/03/2023,OPS0332375,5147.5,N,,N,N
Pendle Borough Council,Operational Services,Premises Related Expense,Trade Refuse Charges,2602,LANCASHIRE COUNTY COUNCIL,A0001690,23/03/2023,OPS0332375,29444,N,,N,N
Pendle Borough Council,Operational Services,Premises Related Expense,Trade Refuse Charges,2602,LANCASHIRE COUNTY COUNCIL,A0001690,23/03/2023,OPS0332375,68310.08,N,,N,N
Pendle Borough Council,Engineering & Special Projects,Supplies and Services,Search Fees,4404,LANCASHIRE COUNTY COUNCIL,A0001690,23/03/2023,HED0332347,306.9,N,,N,N
Pendle Borough Council,Engineering & Special Projects,Supplies and Services,Other Expenses,4705,LANCASHIRE COUNTY COUNCIL,A0001690,29/03/2023,HED0332470,6800,N,,N,N
Pendle Borough Council,Financial Services,Capital Costs,Capital : Payments,CD14,LANCASHIRE COUNTY COUNCIL,A0001690,15/03/2023,AAS0332772,5000,N,,N,N
Pendle Borough Council,Financial Services,Capital Costs,Capital : Payments,CD14,LANCASHIRE COUNTY COUNCIL,A0001690,15/03/2023,AAS0332772,5000,N,,N,N
Pendle Borough Council,Financial Services,Capital Costs,Capital : Payments,CD14,LANCASHIRE COUNTY COUNCIL,A0001690,15/03/2023,AAS0332772,840000,N,,N,N
Pendle Borough Council,Parks & Recreation Services,Supplies and Services,Expenditure : Materials,0002,LIMELIGHT SIGNS LIMITED,A0001796,29/03/2023,PCO0332622,319.94,N,,N,N
Pendle Borough Council,Engineering & Special Projects,Premises Related Expense,Grounds : R & M : Day to Day : Routine,2101,LIMELIGHT SIGNS LIMITED,A0001796,29/03/2023,HED0332697,29.54,N,,N,N
Pendle Borough Council,Property Services,Supplies and Services,Renewals & Repairs Fund,4801,MONK OF COLNE LTD,A0001828,16/03/2023,EST0332299,3698,N,,N,N
Pendle Borough Council,Operational Services,Premises Related Expense,Grounds : R & M : Day to Day : Routine,2101,JOHN MACADAM & SON (RESCUE) LTD,A0001846,29/03/2023,OPS0332674,120,N,,N,N
Pendle Borough Council,Operational Services,Premises Related Expense,Grounds : R & M : Day to Day : Routine,2101,JOHN MACADAM & SON (RESCUE) LTD,A0001846,02/03/2023,OPS0331875,48,N,,N,N
Pendle Borough Council,Operational Services,Premises Related Expense,Grounds : R & M : Day to Day : Routine,2101,JOHN MACADAM & SON (RESCUE) LTD,A0001846,09/03/2023,OPS0332018,120,N,,N,N
Pendle Borough Council,Operational Services,Premises Related Expense,Grounds : R & M : Day to Day : Routine,2101,JOHN MACADAM & SON (RESCUE) LTD,A0001846,29/03/2023,OPS0332672,120,N,,N,N
Pendle Borough Council,Operational Services,Premises Related Expense,Grounds : R & M : Day to Day : Routine,2101,JOHN MACADAM & SON (RESCUE) LTD,A0001846,29/03/2023,OPS0332673,120,N,,N,N
Pendle Borough Council,Operational Services,Premises Related Expense,Grounds : R & M : Day to Day : Routine,2101,JOHN MACADAM & SON (RESCUE) LTD,A0001846,29/03/2023,OPS0332675,120,N,,N,N
Pendle Borough Council,Parks & Recreation Services,Premises Related Expense,Bldgs : R & M : Day To Day,2001,WATER PLUS LIMITED,A0001986,09/03/2023,PCO0332024,358.56,N,,N,N
Pendle Borough Council,Property Services,Premises Related Expense,Water & Sewerage,2501,WATER PLUS LIMITED,A0001986,16/03/2023,EST0332264,131.11,N,,N,N
Pendle Borough Council,Property Services,Premises Related Expense,Water & Sewerage,2501,WATER PLUS LIMITED,A0001986,09/03/2023,EST0332095,7521.23,N,,N,N
Pendle Borough Council,Property Services,Premises Related Expense,Water & Sewerage,2501,WATER PLUS LIMITED,A0001986,16/03/2023,EST0332265,34.57,N,,N,N
Pendle Borough Council,Property Services,Premises Related Expense,Water & Sewerage,2501,WATER PLUS LIMITED,A0001986,16/03/2023,EST0332261,55.6,N,,N,N
Pendle Borough Council,Property Services,Premises Related Expense,Water & Sewerage,2501,WATER PLUS LIMITED,A0001986,09/03/2023,EST0332090,367.18,N,,N,N
Pendle Borough Council,Property Services,Premises Related Expense,Water & Sewerage,2501,WATER PLUS LIMITED,A0001986,09/03/2023,EST0332059,52.77,N,,N,N
Pendle Borough Council,Property Services,Premises Related Expense,Water & Sewerage,2501,WATER PLUS LIMITED,A0001986,09/03/2023,EST0332089,61.41,N,,N,N
Pendle Borough Council,Property Services,Premises Related Expense,Water & Sewerage,2501,WATER PLUS LIMITED,A0001986,09/03/2023,EST0332096,3872.69,N,,N,N
Pendle Borough Council,Property Services,Premises Related Expense,Water & Sewerage,2501,WATER PLUS LIMITED,A0001986,16/03/2023,EST4006677,-136.94,N,,N,N
Pendle Borough Council,Property Services,Premises Related Expense,Water & Sewerage,2501,WATER PLUS LIMITED,A0001986,16/03/2023,EST4006679,-136.44,N,,N,N
Pendle Borough Council,Property Services,Premises Related Expense,Water & Sewerage,2501,WATER PLUS LIMITED,A0001986,16/03/2023,EST4006680,-136.44,N,,N,N
Pendle Borough Council,Property Services,Premises Related Expense,Water & Sewerage,2501,WATER PLUS LIMITED,A0001986,16/03/2023,EST4006690,-132.78,N,,N,N
Pendle Borough Council,Property Services,Premises Related Expense,Water & Sewerage,2501,WATER PLUS LIMITED,A0001986,29/03/2023,EST0332724,56.23,N,,N,N
Pendle Borough Council,Property Services,Premises Related Expense,Water & Sewerage,2501,WATER PLUS LIMITED,A0001986,29/03/2023,EST0332723,88.35,N,,N,N
Pendle Borough Council,Property Services,Premises Related Expense,Water & Sewerage,2501,WATER PLUS LIMITED,A0001986,02/03/2023,EST0331905,89.16,N,,N,N
Pendle Borough Council,Property Services,Premises Related Expense,Water & Sewerage,2501,WATER PLUS LIMITED,A0001986,16/03/2023,EST0332272,123.84,N,,N,N
Pendle Borough Council,Property Services,Premises Related Expense,Water & Sewerage,2501,WATER PLUS LIMITED,A0001986,16/03/2023,EST4006678,-46.58,N,,N,N
Pendle Borough Council,Property Services,Premises Related Expense,Water & Sewerage,2501,WATER PLUS LIMITED,A0001986,16/03/2023,EST4006689,-46.57,N,,N,N
Pendle Borough Council,Property Services,Premises Related Expense,Water & Sewerage,2501,WATER PLUS LIMITED,A0001986,16/03/2023,EST4006681,-45.9,N,,N,N
Pendle Borough Council,Property Services,Premises Related Expense,Water & Sewerage,2501,WATER PLUS LIMITED,A0001986,16/03/2023,EST4006682,-40.81,N,,N,N
Pendle Borough Council,Property Services,Premises Related Expense,Water & Sewerage,2501,WATER PLUS LIMITED,A0001986,16/03/2023,EST4006684,-40.81,N,,N,N
Pendle Borough Council,Property Services,Premises Related Expense,Water & Sewerage,2501,WATER PLUS LIMITED,A0001986,16/03/2023,EST4006685,-40.81,N,,N,N
Pendle Borough Council,Property Services,Premises Related Expense,Water & Sewerage,2501,WATER PLUS LIMITED,A0001986,16/03/2023,EST4006687,-40.81,N,,N,N
Pendle Borough Council,Property Services,Premises Related Expense,Water & Sewerage,2501,WATER PLUS LIMITED,A0001986,16/03/2023,EST4006683,-40.14,N,,N,N
Pendle Borough Council,Property Services,Premises Related Expense,Water & Sewerage,2501,WATER PLUS LIMITED,A0001986,16/03/2023,EST4006686,-40.14,N,,N,N
Pendle Borough Council,Property Services,Premises Related Expense,Water & Sewerage,2501,WATER PLUS LIMITED,A0001986,16/03/2023,EST4006688,-40.14,N,,N,N
Pendle Borough Council,Property Services,Premises Related Expense,Water & Sewerage,2501,WATER PLUS LIMITED,A0001986,29/03/2023,EST0332727,21.49,N,,N,N
Pendle Borough Council,Property Services,Premises Related Expense,Water & Sewerage,2501,WATER PLUS LIMITED,A0001986,02/03/2023,EST0331906,46.58,N,,N,N
Pendle Borough Council,Property Services,Premises Related Expense,Water & Sewerage,2501,WATER PLUS LIMITED,A0001986,16/03/2023,EST0332273,214.96,N,,N,N
Pendle Borough Council,Property Services,Premises Related Expense,Water & Sewerage,2501,WATER PLUS LIMITED,A0001986,16/03/2023,EST0332267,18.61,N,,N,N
Pendle Borough Council,Property Services,Premises Related Expense,Water & Sewerage,2501,WATER PLUS LIMITED,A0001986,16/03/2023,EST0332300,16.53,N,,N,N
Pendle Borough Council,Property Services,Premises Related Expense,Water & Sewerage,2501,WATER PLUS LIMITED,A0001986,16/03/2023,EST0332266,7.75,N,,N,N
Pendle Borough Council,Property Services,Premises Related Expense,Water & Sewerage,2501,WATER PLUS LIMITED,A0001986,16/03/2023,EST0332263,20.22,N,,N,N
Pendle Borough Council,Property Services,Premises Related Expense,Water & Sewerage,2501,WATER PLUS LIMITED,A0001986,29/03/2023,EST0332726,18.44,N,,N,N
Pendle Borough Council,Property Services,Premises Related Expense,Water & Sewerage,2501,WATER PLUS LIMITED,A0001986,02/03/2023,EST0331904,20.43,N,,N,N
Pendle Borough Council,Property Services,Premises Related Expense,Water & Sewerage,2501,WATER PLUS LIMITED,A0001986,02/03/2023,EST0331910,20.44,N,,N,N
Pendle Borough Council,Property Services,Premises Related Expense,Water & Sewerage,2501,WATER PLUS LIMITED,A0001986,16/03/2023,EST4006674,-11.29,N,,N,N
Pendle Borough Council,Property Services,Premises Related Expense,Water & Sewerage,2501,WATER PLUS LIMITED,A0001986,16/03/2023,EST4006675,-11.28,N,,N,N
Pendle Borough Council,Property Services,Premises Related Expense,Water & Sewerage,2501,WATER PLUS LIMITED,A0001986,16/03/2023,EST4006676,-11,N,,N,N
Pendle Borough Council,Property Services,Premises Related Expense,Water & Sewerage,2501,WATER PLUS LIMITED,A0001986,29/03/2023,EST0332729,7.58,N,,N,N
Pendle Borough Council,Property Services,Premises Related Expense,Water & Sewerage,2501,WATER PLUS LIMITED,A0001986,16/03/2023,EST0332270,8.12,N,,N,N
Pendle Borough Council,Property Services,Premises Related Expense,Water & Sewerage,2501,WATER PLUS LIMITED,A0001986,16/03/2023,EST0332271,8.4,N,,N,N
Pendle Borough Council,Property Services,Premises Related Expense,Water & Sewerage,2501,WATER PLUS LIMITED,A0001986,29/03/2023,EST0332427,8.4,N,,N,N
Pendle Borough Council,Property Services,Premises Related Expense,Water & Sewerage,2501,WATER PLUS LIMITED,A0001986,02/03/2023,EST0331909,11.29,N,,N,N
Pendle Borough Council,Property Services,Premises Related Expense,Water & Sewerage,2501,WATER PLUS LIMITED,A0001986,09/03/2023,EST0332091,367.18,N,,N,N
Pendle Borough Council,Property Services,Premises Related Expense,Water & Sewerage,2501,WATER PLUS LIMITED,A0001986,09/03/2023,EST0332093,3872.69,N,,N,N
Pendle Borough Council,Property Services,Premises Related Expense,Water & Sewerage,2501,WATER PLUS LIMITED,A0001986,09/03/2023,EST0332098,1851.49,N,,N,N
Pendle Borough Council,Property Services,Premises Related Expense,Water & Sewerage,2501,WATER PLUS LIMITED,A0001986,29/03/2023,EST0332725,276.33,N,,N,N
Pendle Borough Council,Property Services,Premises Related Expense,Water & Sewerage,2501,WATER PLUS LIMITED,A0001986,29/03/2023,EST0332730,14.08,N,,N,N
Pendle Borough Council,Property Services,Premises Related Expense,Water & Sewerage,2501,WATER PLUS LIMITED,A0001986,02/03/2023,EST0331908,15.61,N,,N,N
Pendle Borough Council,Property Services,Premises Related Expense,Water & Sewerage,2501,WATER PLUS LIMITED,A0001986,29/03/2023,EST4006700,-36.56,N,,N,N
Pendle Borough Council,Property Services,Premises Related Expense,Water & Sewerage,2501,WATER PLUS LIMITED,A0001986,29/03/2023,EST4006701,-36.56,N,,N,N
Pendle Borough Council,Property Services,Premises Related Expense,Water & Sewerage,2501,WATER PLUS LIMITED,A0001986,29/03/2023,EST4006703,-36.56,N,,N,N
Pendle Borough Council,Property Services,Premises Related Expense,Water & Sewerage,2501,WATER PLUS LIMITED,A0001986,29/03/2023,EST4006702,-35.83,N,,N,N
Pendle Borough Council,Property Services,Premises Related Expense,Water & Sewerage,2501,WATER PLUS LIMITED,A0001986,29/03/2023,EST0332728,22.86,N,,N,N
Pendle Borough Council,Property Services,Premises Related Expense,Water & Sewerage,2501,WATER PLUS LIMITED,A0001986,02/03/2023,EST0331907,36.56,N,,N,N
Pendle Borough Council,Property Services,Premises Related Expense,Water & Sewerage,2501,WATER PLUS LIMITED,A0001986,29/03/2023,EST0332426,87.83,N,,N,N
Pendle Borough Council,Property Services,Premises Related Expense,Water & Sewerage,2501,WATER PLUS LIMITED,A0001986,16/03/2023,EST0332242,4385.92,N,,N,N
Pendle Borough Council,Property Services,Premises Related Expense,Water & Sewerage,2501,WATER PLUS LIMITED,A0001986,16/03/2023,EST0332268,171.56,N,,N,N
Pendle Borough Council,Parks & Recreation Services,Premises Related Expense,Bldgs : R & M : Day To Day,2001,OPTION HYGIENE LIMITED,A0002063,09/03/2023,PCO0332028,25.86,N,,N,N
Pendle Borough Council,Parks & Recreation Services,Premises Related Expense,Bldgs : R & M : Day To Day,2001,OPTION HYGIENE LIMITED,A0002063,09/03/2023,PCO4006665,-220.5,N,,N,N
Pendle Borough Council,Parks & Recreation Services,Premises Related Expense,Cleaning Materials,2605,OPTION HYGIENE LIMITED,A0002063,29/03/2023,PCO4006697,-53.49,N,,N,N
Pendle Borough Council,Parks & Recreation Services,Premises Related Expense,Cleaning Materials,2605,OPTION HYGIENE LIMITED,A0002063,29/03/2023,PCO4006697,-13.76,N,,N,N
Pendle Borough Council,Parks & Recreation Services,Premises Related Expense,Cleaning Materials,2605,OPTION HYGIENE LIMITED,A0002063,16/03/2023,PCO0332132,13.76,N,,N,N
Pendle Borough Council,Parks & Recreation Services,Premises Related Expense,Cleaning Materials,2605,OPTION HYGIENE LIMITED,A0002063,16/03/2023,PCO0332203,13.76,N,,N,N
Pendle Borough Council,Parks & Recreation Services,Premises Related Expense,Cleaning Materials,2605,OPTION HYGIENE LIMITED,A0002063,16/03/2023,PCO0332131,53.49,N,,N,N
Pendle Borough Council,Parks & Recreation Services,Premises Related Expense,Cleaning Materials,2605,OPTION HYGIENE LIMITED,A0002063,16/03/2023,PCO0332202,53.49,N,,N,N
Pendle Borough Council,Operational Services,Transport Related Expense,Tprt : Repairs : General,3105,OPTION HYGIENE LIMITED,A0002063,29/03/2023,OPS0332592,113.45,N,,N,N
Pendle Borough Council,Operational Services,Supplies and Services,Other Expenses,4705,OPTION HYGIENE LIMITED,A0002063,09/03/2023,OPS0331999,495.71,N,,N,N
Pendle Borough Council,Parks & Recreation Services,Premises Related Expense,Bldgs : R & M : Day To Day,2001,POWER PIPES (PENDLE) LIMITED,A0002089,29/03/2023,PCO0332448,313.14,N,,N,N
Pendle Borough Council,Operational Services,Premises Related Expense,Bldgs : R & M : Day To Day,2001,POWER PIPES (PENDLE) LIMITED,A0002089,29/03/2023,OPS0332357,2.7,N,,N,N
Pendle Borough Council,Parks & Recreation Services,Premises Related Expense,Grounds : R & M : Day to Day : Routine,2101,POWER PIPES (PENDLE) LIMITED,A0002089,29/03/2023,PCO4006696,-44.31,N,,N,N
Pendle Borough Council,Parks & Recreation Services,Premises Related Expense,Grounds : R & M : Day to Day : Routine,2101,POWER PIPES (PENDLE) LIMITED,A0002089,16/03/2023,PCO0332137,44.31,N,,N,N
Pendle Borough Council,Parks & Recreation Services,Premises Related Expense,Grounds : R & M : Day to Day : Routine,2101,POWER PIPES (PENDLE) LIMITED,A0002089,16/03/2023,PCO0332208,44.31,N,,N,N
Pendle Borough Council,Parks & Recreation Services,Transport Related Expense,Tprt : Repairs : General,3105,POWER PIPES (PENDLE) LIMITED,A0002089,29/03/2023,PCO0332610,28.96,N,,N,N
Pendle Borough Council,Parks & Recreation Services,Transport Related Expense,Tprt : Repairs : General,3105,POWER PIPES (PENDLE) LIMITED,A0002089,29/03/2023,PCO0332610,47.1,N,,N,N
Pendle Borough Council,Parks & Recreation Services,Transport Related Expense,Tprt : Repairs : General,3105,POWER PIPES (PENDLE) LIMITED,A0002089,29/03/2023,PCO4006696,-13.5,N,,N,N
Pendle Borough Council,Parks & Recreation Services,Transport Related Expense,Tprt : Repairs : General,3105,POWER PIPES (PENDLE) LIMITED,A0002089,16/03/2023,PCO0332125,13.5,N,,N,N
Pendle Borough Council,Parks & Recreation Services,Transport Related Expense,Tprt : Repairs : General,3105,POWER PIPES (PENDLE) LIMITED,A0002089,16/03/2023,PCO0332196,13.5,N,,N,N
Pendle Borough Council,Engineering & Special Projects,Supplies and Services,Postages,4501,ROYAL MAIL GROUP LIMITED,A0002281,23/03/2023,HED0332393,4.71,N,,N,N
Pendle Borough Council,Engineering & Special Projects,Supplies and Services,Postages,4501,ROYAL MAIL GROUP LIMITED,A0002281,02/03/2023,HED0331841,67.82,N,,N,N
Pendle Borough Council,Engineering & Special Projects,Supplies and Services,Postages,4501,ROYAL MAIL GROUP LIMITED,A0002281,09/03/2023,HED0332055,72.53,N,,N,N
Pendle Borough Council,Engineering & Special Projects,Supplies and Services,Postages,4501,ROYAL MAIL GROUP LIMITED,A0002281,29/03/2023,HED0332636,78.13,N,,N,N
Pendle Borough Council,Engineering & Special Projects,Supplies and Services,Postages,4501,ROYAL MAIL GROUP LIMITED,A0002281,23/03/2023,HED0332393,93.52,N,,N,N
Pendle Borough Council,Engineering & Special Projects,Supplies and Services,Postages,4501,ROYAL MAIL GROUP LIMITED,A0002281,23/03/2023,HED0332392,101.81,N,,N,N
Pendle Borough Council,Engineering & Special Projects,Supplies and Services,Postages,4501,ROYAL MAIL GROUP LIMITED,A0002281,23/03/2023,HED0332393,1.42,N,,N,N
Pendle Borough Council,Engineering & Special Projects,Supplies and Services,Postages,4501,ROYAL MAIL GROUP LIMITED,A0002281,29/03/2023,HED0332636,12.32,N,,N,N
Pendle Borough Council,Engineering & Special Projects,Supplies and Services,Postages,4501,ROYAL MAIL GROUP LIMITED,A0002281,09/03/2023,HED0332055,12.75,N,,N,N
Pendle Borough Council,Engineering & Special Projects,Supplies and Services,Postages,4501,ROYAL MAIL GROUP LIMITED,A0002281,02/03/2023,HED0331841,20.32,N,,N,N
Pendle Borough Council,Engineering & Special Projects,Supplies and Services,Postages,4501,ROYAL MAIL GROUP LIMITED,A0002281,23/03/2023,HED0332392,25.95,N,,N,N
Pendle Borough Council,Engineering & Special Projects,Supplies and Services,Postages,4501,ROYAL MAIL GROUP LIMITED,A0002281,23/03/2023,HED0332393,66.08,N,,N,N
Pendle Borough Council,Engineering & Special Projects,Supplies and Services,Postages,4501,ROYAL MAIL GROUP LIMITED,A0002281,09/03/2023,HED0332055,0.81,N,,N,N
Pendle Borough Council,Engineering & Special Projects,Supplies and Services,Postages,4501,ROYAL MAIL GROUP LIMITED,A0002281,23/03/2023,HED0332393,5.81,N,,N,N
Pendle Borough Council,Engineering & Special Projects,Supplies and Services,Postages,4501,ROYAL MAIL GROUP LIMITED,A0002281,29/03/2023,HED0332636,8.55,N,,N,N
Pendle Borough Council,Engineering & Special Projects,Supplies and Services,Postages,4501,ROYAL MAIL GROUP LIMITED,A0002281,02/03/2023,HED0331841,10.15,N,,N,N
Pendle Borough Council,Engineering & Special Projects,Supplies and Services,Postages,4501,ROYAL MAIL GROUP LIMITED,A0002281,23/03/2023,HED0332392,11.95,N,,N,N
Pendle Borough Council,Engineering & Special Projects,Supplies and Services,Postages,4501,ROYAL MAIL GROUP LIMITED,A0002281,23/03/2023,HED0332393,1.12,N,,N,N
Pendle Borough Council,Engineering & Special Projects,Supplies and Services,Postages,4501,ROYAL MAIL GROUP LIMITED,A0002281,29/03/2023,HED0332636,1.12,N,,N,N
Pendle Borough Council,Engineering & Special Projects,Supplies and Services,Postages,4501,ROYAL MAIL GROUP LIMITED,A0002281,09/03/2023,HED0332055,2.8,N,,N,N
Pendle Borough Council,Engineering & Special Projects,Supplies and Services,Postages,4501,ROYAL MAIL GROUP LIMITED,A0002281,23/03/2023,HED0332392,3.36,N,,N,N
Pendle Borough Council,Engineering & Special Projects,Supplies and Services,Postages,4501,ROYAL MAIL GROUP LIMITED,A0002281,02/03/2023,HED0331841,5.01,N,,N,N
Pendle Borough Council,Engineering & Special Projects,Supplies and Services,Postages,4501,ROYAL MAIL GROUP LIMITED,A0002281,02/03/2023,HED0331841,5.32,N,,N,N
Pendle Borough Council,Engineering & Special Projects,Supplies and Services,Postages,4501,ROYAL MAIL GROUP LIMITED,A0002281,23/03/2023,HED0332393,5.98,N,,N,N
Pendle Borough Council,Engineering & Special Projects,Supplies and Services,Postages,4501,ROYAL MAIL GROUP LIMITED,A0002281,09/03/2023,HED0332055,10.22,N,,N,N
Pendle Borough Council,Engineering & Special Projects,Supplies and Services,Postages,4501,ROYAL MAIL GROUP LIMITED,A0002281,02/03/2023,HED0331841,11.35,N,,N,N
Pendle Borough Council,Engineering & Special Projects,Supplies and Services,Postages,4501,ROYAL MAIL GROUP LIMITED,A0002281,23/03/2023,HED0332392,11.38,N,,N,N
Pendle Borough Council,Engineering & Special Projects,Supplies and Services,Postages,4501,ROYAL MAIL GROUP LIMITED,A0002281,23/03/2023,HED0332392,16.33,N,,N,N
Pendle Borough Council,Engineering & Special Projects,Supplies and Services,Postages,4501,ROYAL MAIL GROUP LIMITED,A0002281,29/03/2023,HED0332636,22.26,N,,N,N
Pendle Borough Council,Engineering & Special Projects,Supplies and Services,Postages,4501,ROYAL MAIL GROUP LIMITED,A0002281,29/03/2023,HED0332636,23.24,N,,N,N
Pendle Borough Council,Engineering & Special Projects,Supplies and Services,Postages,4501,ROYAL MAIL GROUP LIMITED,A0002281,09/03/2023,HED0332055,38.55,N,,N,N
Pendle Borough Council,Engineering & Special Projects,Supplies and Services,Postages,4501,ROYAL MAIL GROUP LIMITED,A0002281,09/03/2023,HED0332055,8.04,N,,N,N
Pendle Borough Council,Engineering & Special Projects,Supplies and Services,Postages,4501,ROYAL MAIL GROUP LIMITED,A0002281,23/03/2023,HED0332393,58.03,N,,N,N
Pendle Borough Council,Engineering & Special Projects,Supplies and Services,Postages,4501,ROYAL MAIL GROUP LIMITED,A0002281,29/03/2023,HED0332636,85.43,N,,N,N
Pendle Borough Council,Engineering & Special Projects,Supplies and Services,Postages,4501,ROYAL MAIL GROUP LIMITED,A0002281,02/03/2023,HED0331841,101.4,N,,N,N
Pendle Borough Council,Engineering & Special Projects,Supplies and Services,Postages,4501,ROYAL MAIL GROUP LIMITED,A0002281,23/03/2023,HED0332392,119.35,N,,N,N
Pendle Borough Council,Engineering & Special Projects,Supplies and Services,Postages,4501,ROYAL MAIL GROUP LIMITED,A0002281,23/03/2023,HED0332392,1.75,N,,N,N
Pendle Borough Council,Engineering & Special Projects,Supplies and Services,Postages,4501,ROYAL MAIL GROUP LIMITED,A0002281,09/03/2023,HED0332055,38.24,N,,N,N
Pendle Borough Council,Engineering & Special Projects,Supplies and Services,Postages,4501,ROYAL MAIL GROUP LIMITED,A0002281,29/03/2023,HED0332636,39.76,N,,N,N
Pendle Borough Council,Engineering & Special Projects,Supplies and Services,Postages,4501,ROYAL MAIL GROUP LIMITED,A0002281,23/03/2023,HED0332393,61.34,N,,N,N
Pendle Borough Council,Engineering & Special Projects,Supplies and Services,Postages,4501,ROYAL MAIL GROUP LIMITED,A0002281,02/03/2023,HED0331841,97.59,N,,N,N
Pendle Borough Council,Engineering & Special Projects,Supplies and Services,Postages,4501,ROYAL MAIL GROUP LIMITED,A0002281,23/03/2023,HED0332392,328.57,N,,N,N
Pendle Borough Council,Engineering & Special Projects,Supplies and Services,Postages,4501,ROYAL MAIL GROUP LIMITED,A0002281,09/03/2023,HED0332055,3.46,N,,N,N
Pendle Borough Council,Engineering & Special Projects,Supplies and Services,Postages,4501,ROYAL MAIL GROUP LIMITED,A0002281,29/03/2023,HED0332636,6.8,N,,N,N
Pendle Borough Council,Engineering & Special Projects,Supplies and Services,Postages,4501,ROYAL MAIL GROUP LIMITED,A0002281,23/03/2023,HED0332392,8.13,N,,N,N
Pendle Borough Council,Engineering & Special Projects,Supplies and Services,Postages,4501,ROYAL MAIL GROUP LIMITED,A0002281,02/03/2023,HED0331841,16.23,N,,N,N
Pendle Borough Council,Engineering & Special Projects,Supplies and Services,Postages,4501,ROYAL MAIL GROUP LIMITED,A0002281,23/03/2023,HED0332393,17.44,N,,N,N
Pendle Borough Council,Engineering & Special Projects,Supplies and Services,Postages,4501,ROYAL MAIL GROUP LIMITED,A0002281,02/03/2023,HED0331841,8.96,N,,N,N
Pendle Borough Council,Engineering & Special Projects,Supplies and Services,Postages,4501,ROYAL MAIL GROUP LIMITED,A0002281,23/03/2023,HED0332393,8.96,N,,N,N
Pendle Borough Council,Engineering & Special Projects,Supplies and Services,Postages,4501,ROYAL MAIL GROUP LIMITED,A0002281,23/03/2023,HED0332392,10.29,N,,N,N
Pendle Borough Council,Engineering & Special Projects,Supplies and Services,Postages,4501,ROYAL MAIL GROUP LIMITED,A0002281,29/03/2023,HED0332636,13.44,N,,N,N
Pendle Borough Council,Engineering & Special Projects,Supplies and Services,Postages,4501,ROYAL MAIL GROUP LIMITED,A0002281,09/03/2023,HED0332055,15.68,N,,N,N
Pendle Borough Council,Engineering & Special Projects,Supplies and Services,Postages,4501,ROYAL MAIL GROUP LIMITED,A0002281,29/03/2023,HED0332636,116.28,N,,N,N
Pendle Borough Council,Engineering & Special Projects,Supplies and Services,Postages,4501,ROYAL MAIL GROUP LIMITED,A0002281,02/03/2023,HED0331841,144.99,N,,N,N
Pendle Borough Council,Engineering & Special Projects,Supplies and Services,Postages,4501,ROYAL MAIL GROUP LIMITED,A0002281,23/03/2023,HED0332392,156.4,N,,N,N
Pendle Borough Council,Engineering & Special Projects,Supplies and Services,Postages,4501,ROYAL MAIL GROUP LIMITED,A0002281,23/03/2023,HED0332393,156.91,N,,N,N
Pendle Borough Council,Engineering & Special Projects,Supplies and Services,Postages,4501,ROYAL MAIL GROUP LIMITED,A0002281,09/03/2023,HED0332055,441.07,N,,N,N
Pendle Borough Council,Engineering & Special Projects,Supplies and Services,Postages,4501,ROYAL MAIL GROUP LIMITED,A0002281,29/03/2023,HED0332600,-22.61,N,,N,N
Pendle Borough Council,Engineering & Special Projects,Supplies and Services,Postages,4501,ROYAL MAIL GROUP LIMITED,A0002281,09/03/2023,HED0332055,29.05,N,,N,N
Pendle Borough Council,Engineering & Special Projects,Supplies and Services,Postages,4501,ROYAL MAIL GROUP LIMITED,A0002281,02/03/2023,HED0331841,35.04,N,,N,N
Pendle Borough Council,Operational Services,Supplies and Services,Postages,4501,ROYAL MAIL GROUP LIMITED,A0002281,23/03/2023,OPS0332380,41.67,N,,N,N
Pendle Borough Council,Engineering & Special Projects,Supplies and Services,Postages,4501,ROYAL MAIL GROUP LIMITED,A0002281,23/03/2023,HED0332392,50.91,N,,N,N
Pendle Borough Council,Engineering & Special Projects,Supplies and Services,Postages,4501,ROYAL MAIL GROUP LIMITED,A0002281,29/03/2023,HED0332636,52.52,N,,N,N
Pendle Borough Council,Engineering & Special Projects,Supplies and Services,Postages,4501,ROYAL MAIL GROUP LIMITED,A0002281,23/03/2023,HED0332393,58,N,,N,N
Pendle Borough Council,Engineering & Special Projects,Supplies and Services,Postages,4501,ROYAL MAIL GROUP LIMITED,A0002281,29/03/2023,HED0332600,135.29,N,,N,N
Pendle Borough Council,Engineering & Special Projects,Supplies and Services,Other Expenses,4705,ROYAL MAIL GROUP LIMITED,A0002281,02/03/2023,HED0331841,299.54,N,,N,N
Pendle Borough Council,Engineering & Special Projects,Supplies and Services,Printing & Stationery,4301,SHAW & SONS LTD,A0002414,23/03/2023,HED0332335,266,N,,N,N
Pendle Borough Council,Engineering & Special Projects,Supplies and Services,Printing & Stationery,4301,SHAW & SONS LTD,A0002414,29/03/2023,HED0332601,1172,N,,N,N
Pendle Borough Council,Operational Services,Agency Staff,Emp : Agency Wages,1004,STANLEY BROTHERS (TIPPERS) LTD,A0002422,23/03/2023,OPS0332353,432,N,,N,N
Pendle Borough Council,Operational Services,Transport Related Expense,Tprt : Annual Hire Charge,3601,STANLEY BROTHERS (TIPPERS) LTD,A0002422,16/03/2023,OPS0332221,2200,N,,N,N
Pendle Borough Council,Parks & Recreation Services,Transport Related Expense,Tprt : Repairs : General,3105,SPALDINGS (UK) LTD,A0002537,29/03/2023,PCO0332624,20.83,N,,N,N
Pendle Borough Council,Parks & Recreation Services,Transport Related Expense,Tprt : Repairs : General,3105,SPALDINGS (UK) LTD,A0002537,23/03/2023,PCO0332369,135.92,N,,N,N
Pendle Borough Council,Parks & Recreation Services,Transport Related Expense,Tprt : Repairs : General,3105,SPALDINGS (UK) LTD,A0002537,16/03/2023,PCO0332158,916.5,N,,N,N
Pendle Borough Council,Parks & Recreation Services,Premises Related Expense,Grounds : R & M : Day to Day : Routine,2101,ROBERTSON MEMORIALS,A0002590,02/03/2023,PCO0331859,226.25,N,,N,N
Pendle Borough Council,Parks & Recreation Services,Premises Related Expense,Grounds : R & M : Day to Day : Routine,2101,ROBERTSON MEMORIALS,A0002590,02/03/2023,PCO0331862,275.83,N,,N,N
Pendle Borough Council,Property Services,Premises Related Expense,Bldgs : R & M : Day To Day,2001,T & F STEEL DESIGNS LTD,A0002627,16/03/2023,EST0332256,800,N,,N,N
Pendle Borough Council,Property Services,Premises Related Expense,Bldgs : R & M : Day To Day,2001,T & F STEEL DESIGNS LTD,A0002627,16/03/2023,EST0332256,1635,N,,N,N
Pendle Borough Council,Engineering & Special Projects,Premises Related Expense,Grounds : R & M : Day to Day : Routine,2101,T & F STEEL DESIGNS LTD,A0002627,02/03/2023,HED0331865,75,N,,N,N
Pendle Borough Council,Engineering & Special Projects,Premises Related Expense,Grounds : R & M : Day to Day : Routine,2101,T & F STEEL DESIGNS LTD,A0002627,02/03/2023,HED0331865,260,N,,N,N
Pendle Borough Council,Engineering & Special Projects,Supplies and Services,Sub-Contractors,4007,T & F STEEL DESIGNS LTD,A0002627,02/03/2023,HED0331868,90,N,,N,N
Pendle Borough Council,Engineering & Special Projects,Supplies and Services,Sub-Contractors,4007,T & F STEEL DESIGNS LTD,A0002627,02/03/2023,HED0331868,390,N,,N,N
Pendle Borough Council,Democratic & Legal Services,Supplies and Services,Printing & Stationery,4301,TRISTAR PRINTERS LTD,A0002731,23/03/2023,DAL0332342,135,N,,N,N
Pendle Borough Council,Engineering & Special Projects,Supplies and Services,Publicity & advertisement,4704,TRISTAR PRINTERS LTD,A0002731,23/03/2023,HED0332329,101,N,,N,N
Pendle Borough Council,Engineering & Special Projects,Supplies and Services,Publicity & advertisement,4704,TRISTAR PRINTERS LTD,A0002731,23/03/2023,HED0332330,135,N,,N,N
Pendle Borough Council,Engineering & Special Projects,Supplies and Services,Children`s holiday activities,4716,TRISTAR PRINTERS LTD,A0002731,23/03/2023,HED0332338,597,N,,N,N
Pendle Borough Council,Operational Services,Agency Staff,Emp : Agency Wages,1004,DHRB LIMITED T/A DRIVER HIRE (45680),A0003556,09/03/2023,OPS0331354,628.68,N,,N,N
Pendle Borough Council,Operational Services,Agency Staff,Emp : Agency Wages,1004,DHRB LIMITED T/A DRIVER HIRE (45680),A0003556,09/03/2023,OPS0331992,780.43,N,,N,N
Pendle Borough Council,Operational Services,Agency Staff,Emp : Agency Wages,1004,DHRB LIMITED T/A DRIVER HIRE (45680),A0003556,09/03/2023,OPS0331993,780.43,N,,N,N
Pendle Borough Council,Operational Services,Agency Staff,Emp : Agency Wages,1004,DHRB LIMITED T/A DRIVER HIRE (45680),A0003556,09/03/2023,OPS0331354,158.98,N,,N,N
Pendle Borough Council,Operational Services,Agency Staff,Emp : Agency Wages,1004,DHRB LIMITED T/A DRIVER HIRE (45680),A0003556,23/03/2023,OPS0332351,158.98,N,,N,N
Pendle Borough Council,Operational Services,Premises Related Expense,Grounds : R & M : Day to Day : Routine,2101,ENVIRONMENT AGENCY,A0003560,16/03/2023,OPS0332228,370,N,,N,N
Pendle Borough Council,Parks & Recreation Services,Premises Related Expense,Water & Sewerage,2501,ENVIRONMENT AGENCY,A0003560,02/03/2023,PCO0331856,115,N,,N,N
Pendle Borough Council,Parks & Recreation Services,Supplies and Services,Expenditure : Materials,0002,WICKSTEED LEISURE LTD,A0004748,29/03/2023,PCO0332642,1341.06,N,,N,N
Pendle Borough Council,Engineering & Special Projects,Supplies and Services,Other Expenses,4705,BUILDING BRIDGES PENDLE,A0005524,16/03/2023,HED0332210,8333,N,1144741,N,N
Pendle Borough Council,Parks & Recreation Services,Transport Related Expense,Tprt : Repairs : General,3105,F G ROWLAND LIMITED,A0006489,23/03/2023,PCO0332382,1768,N,,N,N
Pendle Borough Council,Engineering & Special Projects,Indirect Employee Expenses,Staff Refreshments,1261,PHILIP SANDERSON,A0006611,09/03/2023,HED0331983,20.23,N,,N,N
Pendle Borough Council,Engineering & Special Projects,Supplies and Services,Hospitality,4611,PHILIP SANDERSON,A0006611,09/03/2023,HED0331983,20.23,N,,N,N
Pendle Borough Council,Parks & Recreation Services,Transport Related Expense,Tprt : Repairs : General,3105,R REEVE AUTO BODIES,A0009824,29/03/2023,PCO0332445,400,N,,N,N
Pendle Borough Council,Engineering & Special Projects,Supplies and Services,Other Expenses,4705,COLNE OPEN DOOR CENTRE,A0009836,16/03/2023,HED0332118,8333,N,1121144,N,N
Pendle Borough Council,Financial Services,Supplies and Services,Other Expenses,4705,PENDLE LEISURE LIMITED,A0012961,09/03/2023,AAS0332111,337.5,N,XR43029,N,N
Pendle Borough Council,Financial Services,Supplies and Services,Other Expenses,4705,PENDLE LEISURE LIMITED,A0012961,09/03/2023,AAS0332111,2445,N,XR43029,N,N
Pendle Borough Council,Engineering & Special Projects,Supplies and Services,Children`s holiday activities,4716,PENDLE LEISURE LIMITED,A0012961,23/03/2023,HED0332341,5260.5,N,XR43029,N,N
Pendle Borough Council,Operational Services,Transport Related Expense,Tprt : Repairs : General,3105,LANDSCAPE ENGINEERING LTD,A0013135,09/03/2023,OPS0332063,256,N,,N,N
Pendle Borough Council,Engineering & Special Projects,Capital Costs,Ren Grant : 1996 Act,CH22,SPAIN BUILDING & MAINTENANCE,A0015325,29/03/2023,HED0332706,8064.94,N,,N,N
Pendle Borough Council,Operational Services,Supplies and Services,Sub-Contractors,4007,ORCHARD RECYCLING SERVICE,A0015803,16/03/2023,OPS0332217,2117.5,N,,N,N
Pendle Borough Council,Operational Services,Supplies and Services,Sub-Contractors,4007,ORCHARD RECYCLING SERVICE,A0015803,29/03/2023,OPS0332680,2433.2,N,,N,N
Pendle Borough Council,Operational Services,Supplies and Services,Sub-Contractors,4007,ORCHARD RECYCLING SERVICE,A0015803,02/03/2023,OPS0331860,2464,N,,N,N
Pendle Borough Council,Operational Services,Supplies and Services,Sub-Contractors,4007,ORCHARD RECYCLING SERVICE,A0015803,23/03/2023,OPS0332354,2471.7,N,,N,N
Pendle Borough Council,Operational Services,Supplies and Services,Sub-Contractors,4007,ORCHARD RECYCLING SERVICE,A0015803,09/03/2023,OPS0331990,2494.8,N,,N,N
Pendle Borough Council,Parks & Recreation Services,Premises Related Expense,Grounds : R & M : Day to Day : Routine,2101,KEEP BRITAIN TIDY,A0021088,16/03/2023,PCO0332175,369,N,,N,N
Pendle Borough Council,Parks & Recreation Services,Premises Related Expense,Grounds : R & M : Day to Day : Routine,2101,KEEP BRITAIN TIDY,A0021088,16/03/2023,PCO0332170,369,N,,N,N
Pendle Borough Council,Parks & Recreation Services,Premises Related Expense,Grounds : R & M : Day to Day : Routine,2101,KEEP BRITAIN TIDY,A0021088,16/03/2023,PCO0332173,369,N,,N,N
Pendle Borough Council,Parks & Recreation Services,Premises Related Expense,Grounds : R & M : Day to Day : Routine,2101,KEEP BRITAIN TIDY,A0021088,16/03/2023,PCO0332174,369,N,,N,N
Pendle Borough Council,Parks & Recreation Services,Premises Related Expense,Grounds : R & M : Day to Day : Routine,2101,KEEP BRITAIN TIDY,A0021088,16/03/2023,PCO0332169,369,N,,N,N
Pendle Borough Council,Parks & Recreation Services,Premises Related Expense,Grounds : R & M : Day to Day : Routine,2101,KEEP BRITAIN TIDY,A0021088,16/03/2023,PCO0332171,369,N,,N,N
Pendle Borough Council,Parks & Recreation Services,Premises Related Expense,Grounds : R & M : Day to Day : Routine,2101,KEEP BRITAIN TIDY,A0021088,16/03/2023,PCO0332172,369,N,,N,N
Pendle Borough Council,Engineering & Special Projects,Capital Costs,Ren Grant : 1996 Act,CH22,STANNAH LIFT SERVICES LTD,A0021089,29/03/2023,HED0332709,3669,N,,N,N
Pendle Borough Council,Engineering & Special Projects,Capital Costs,Ren Grant : 1996 Act,CH22,STANNAH LIFT SERVICES LTD,A0021089,16/03/2023,HED0332140,6211,N,,N,N
Pendle Borough Council,Engineering & Special Projects,Capital Costs,Ren Grant : 1996 Act,CH22,STANNAH LIFT SERVICES LTD,A0021089,16/03/2023,HED0332139,14622.6,N,,N,N
Pendle Borough Council,Operational Services,Supplies and Services,Sub-Contractors,4007,ASPEN VALLEY KENNELS & CATTERY,A0022106,09/03/2023,OPS0332042,755,N,,N,N
Pendle Borough Council,Operational Services,Supplies and Services,Other Expenses,4705,ASPEN VALLEY KENNELS & CATTERY,A0022106,09/03/2023,OPS0332042,834.6,N,,N,N
Pendle Borough Council,Engineering & Special Projects,Supplies and Services,Subscriptions & Donations,4706,LANGUAGE LINE LIMITED,A0025582,23/03/2023,HED0332309,6,N,,N,N
Pendle Borough Council,Property Services,Premises Related Expense,Service Charge,2702,BARNFIELD INVESTMENT PROPERTIES LTD,A0026595,09/03/2023,EST0332060,2249.91,N,,N,N
Pendle Borough Council,Engineering & Special Projects,Premises Related Expense,Bldgs : R & M : Day To Day,2001,LITE,A0040032,09/03/2023,HED0332038,420,N,,N,N
Pendle Borough Council,Engineering & Special Projects,Supplies and Services,Other Expenses,4705,LITE,A0040032,09/03/2023,HED0332037,2425,N,,N,N
Pendle Borough Council,Operational Services,Supplies and Services,EFM : Photocopiers,4001,CANON (UK) LIMITED,A0040400,16/03/2023,OPS0332225,1022.2,N,,N,N
Pendle Borough Council,Planning & Building Control,Supplies and Services,EFM : Other Equipment,4003,CANON (UK) LIMITED,A0040400,02/03/2023,PBC0331887,59.92,N,,N,N
Pendle Borough Council,Engineering & Special Projects,Supplies and Services,Seminars etc All Costs,4601,SOLACE GROUP LIMITED,A0040401,02/03/2023,HED0331827,350,N,,N,N
Pendle Borough Council,Property Services,Premises Related Expense,Bldgs : R & M : Day To Day,2001,PENNINE FIRE & SAFETY LTD,A0040931,09/03/2023,EST0332084,57,N,,N,N
Pendle Borough Council,Property Services,Premises Related Expense,Bldgs : R & M : Day To Day,2001,PENNINE FIRE & SAFETY LTD,A0040931,09/03/2023,EST0332086,7.3,N,,N,N
Pendle Borough Council,Property Services,Premises Related Expense,Bldgs : R & M : Day To Day,2001,PENNINE FIRE & SAFETY LTD,A0040931,09/03/2023,EST0332081,202.45,N,,N,N
Pendle Borough Council,Property Services,Premises Related Expense,Bldgs : R & M : Day To Day,2001,PENNINE FIRE & SAFETY LTD,A0040931,09/03/2023,EST0332075,172.55,N,,N,N
Pendle Borough Council,Property Services,Premises Related Expense,Bldgs : R & M : Day To Day,2001,PENNINE FIRE & SAFETY LTD,A0040931,09/03/2023,EST0332080,7.3,N,,N,N
Pendle Borough Council,Property Services,Premises Related Expense,Bldgs : R & M : Day To Day,2001,PENNINE FIRE & SAFETY LTD,A0040931,09/03/2023,EST0332082,10.95,N,,N,N
Pendle Borough Council,Property Services,Premises Related Expense,Bldgs : R & M : Day To Day,2001,PENNINE FIRE & SAFETY LTD,A0040931,09/03/2023,EST0332077,126.6,N,,N,N
Pendle Borough Council,Property Services,Premises Related Expense,Bldgs : R & M : Day To Day,2001,PENNINE FIRE & SAFETY LTD,A0040931,09/03/2023,EST0332074,4.4,N,,N,N
Pendle Borough Council,Property Services,Premises Related Expense,Bldgs : R & M : Day To Day,2001,PENNINE FIRE & SAFETY LTD,A0040931,09/03/2023,EST0332079,7.3,N,,N,N
Pendle Borough Council,Property Services,Premises Related Expense,Bldgs : R & M : Day To Day,2001,PENNINE FIRE & SAFETY LTD,A0040931,09/03/2023,EST0332083,10.95,N,,N,N
Pendle Borough Council,Property Services,Premises Related Expense,Bldgs : R & M : Day To Day,2001,PENNINE FIRE & SAFETY LTD,A0040931,09/03/2023,EST0332087,187.9,N,,N,N
Pendle Borough Council,Property Services,Premises Related Expense,Bldgs : R & M : Day To Day,2001,PENNINE FIRE & SAFETY LTD,A0040931,09/03/2023,EST0332085,28.4,N,,N,N
Pendle Borough Council,Property Services,Premises Related Expense,Bldgs : R & M : Day To Day,2001,PENNINE FIRE & SAFETY LTD,A0040931,09/03/2023,EST0332078,3.65,N,,N,N
Pendle Borough Council,Property Services,Premises Related Expense,Bldgs : R & M : Day To Day,2001,PENNINE FIRE & SAFETY LTD,A0040931,09/03/2023,EST0332076,10.95,N,,N,N
Pendle Borough Council,Property Services,Premises Related Expense,Bldgs : R & M : Day To Day,2001,PENNINE FIRE & SAFETY LTD,A0040931,02/03/2023,EST0331894,21.8,N,,N,N
Pendle Borough Council,Engineering & Special Projects,Supplies and Services,Printing & Stationery,4301,CIVICA ELECTION SERVICES,A0041321,09/03/2023,HED0331927,218.36,N,,N,N
Pendle Borough Council,Engineering & Special Projects,Supplies and Services,Postages,4501,CIVICA ELECTION SERVICES,A0041321,09/03/2023,HED0331927,218.53,N,,N,N
Pendle Borough Council,Operational Services,Supplies and Services,Other Expenses,4705,GGP SYSTEMS LIMITED,A0042243,29/03/2023,OPS0332480,1997.46,N,,N,N
Pendle Borough Council,Parks & Recreation Services,Premises Related Expense,Grounds : R & M : Day to Day : Routine,2101,C & R WALNE ENGRAVERS,A0042734,29/03/2023,PCO0332453,72,N,,N,N
Pendle Borough Council,Parks & Recreation Services,Premises Related Expense,Bldgs : R & M : Day To Day,2001,GREENVALE PRODUCTS LIMITED,A0043407,16/03/2023,PCO0332134,15,N,,N,N
Pendle Borough Council,Parks & Recreation Services,Premises Related Expense,Bldgs : R & M : Day To Day,2001,GREENVALE PRODUCTS LIMITED,A0043407,16/03/2023,PCO0332205,15,N,,N,N
Pendle Borough Council,Property Services,Premises Related Expense,Rents,2301,MORGOED ESTATES LIMITED,A0043862,29/03/2023,EST0332720,1.54,N,,N,N
Pendle Borough Council,Engineering & Special Projects,Supplies and Services,Other Expenses,4705,FENCE GATE LTD,A0043865,09/03/2023,HED0332044,4178,N,,N,N
Pendle Borough Council,Operational Services,Supplies and Services,Sub-Contractors,4007,S M SHEPHERD BUILDING CONTRACTORS,A0044037,16/03/2023,OPS0332224,140,N,,N,N
Pendle Borough Council,Operational Services,Supplies and Services,Sub-Contractors,4007,S M SHEPHERD BUILDING CONTRACTORS,A0044037,16/03/2023,OPS0332224,140,N,,N,N
Pendle Borough Council,Operational Services,,Paid in the Year,PD03,S M SHEPHERD BUILDING CONTRACTORS,A0044037,29/03/2023,OPS0332668,180,N,,N,N
Pendle Borough Council,Operational Services,,Paid in the Year,PD03,S M SHEPHERD BUILDING CONTRACTORS,A0044037,29/03/2023,OPS0332668,180,N,,N,N
Pendle Borough Council,Financial Services,Premises Related Expense,Bldgs : R & M : Day To Day,2001,PLUSNET TECHNOLOGIES LIMITED,A0045646,06/03/2023,AAS0332949,17.17,N,,N,N
Pendle Borough Council,Human Resources,Supplies and Services,EFM : Office and computer equipment,4002,HFX LTD,A0046816,16/03/2023,PER0332160,126.66,N,,N,N
Pendle Borough Council,Human Resources,Supplies and Services,EFM : Office and computer equipment,4002,HFX LTD,A0046816,16/03/2023,PER0332161,3198.17,N,,N,N
Pendle Borough Council,Engineering & Special Projects,Supplies and Services,EFM : Office and computer equipment,4002,TWOFOLD LIMITED,A0047099,23/03/2023,HED0332343,349.14,N,,N,N
Pendle Borough Council,Engineering & Special Projects,Capital Costs,Capital : Environmental Surveys etc,CD08,BOWLAND ECOLOGY LIMITED,A0047425,23/03/2023,HED0332400,1125,N,,N,N
Pendle Borough Council,Engineering & Special Projects,Supplies and Services,Publicity & advertisement,4704,LOOP PUBLISHING LTD,A0047429,29/03/2023,HED0332678,200,N,,N,N
Pendle Borough Council,Engineering & Special Projects,Supplies and Services,Publicity & advertisement,4704,LOOP PUBLISHING LTD,A0047429,29/03/2023,HED0332679,500,N,,N,N
Pendle Borough Council,Property Services,Supplies and Services,Publicity & advertisement,4704,LOOP PUBLISHING LTD,A0047429,16/03/2023,EST0332255,250,N,,N,N
Pendle Borough Council,Property Services,Premises Related Expense,Electricity,2203,NPOWER,A0048483,29/03/2023,EST0332717,641.98,N,,N,N
Pendle Borough Council,Property Services,Premises Related Expense,Electricity,2203,NPOWER,A0048483,16/03/2023,EST0332258,660.24,N,,N,N
Pendle Borough Council,Property Services,Premises Related Expense,Electricity,2203,NPOWER,A0048483,29/03/2023,EST0332715,686.89,N,,N,N
Pendle Borough Council,Property Services,Premises Related Expense,Electricity,2203,NPOWER,A0048483,29/03/2023,EST0332716,727.72,N,,N,N
Pendle Borough Council,Property Services,Premises Related Expense,Electricity,2203,NPOWER,A0048483,09/03/2023,EST0331898,757.97,N,,N,N
Pendle Borough Council,Property Services,Premises Related Expense,Electricity,2203,NPOWER,A0048483,29/03/2023,EST0332714,789.53,N,,N,N
Pendle Borough Council,Property Services,Premises Related Expense,Electricity,2203,NPOWER,A0048483,09/03/2023,EST0331901,836.38,N,,N,N
Pendle Borough Council,Property Services,Premises Related Expense,Electricity,2203,NPOWER,A0048483,09/03/2023,EST0331899,887.5,N,,N,N
Pendle Borough Council,Property Services,Premises Related Expense,Electricity,2203,NPOWER,A0048483,09/03/2023,EST0331896,889.56,N,,N,N
Pendle Borough Council,Property Services,Premises Related Expense,Electricity,2203,NPOWER,A0048483,29/03/2023,EST0332719,900.4,N,,N,N
Pendle Borough Council,Property Services,Premises Related Expense,Electricity,2203,NPOWER,A0048483,09/03/2023,EST0331900,918.68,N,,N,N
Pendle Borough Council,Property Services,Premises Related Expense,Electricity,2203,NPOWER,A0048483,09/03/2023,EST0331902,932.32,N,,N,N
Pendle Borough Council,Property Services,Premises Related Expense,Electricity,2203,NPOWER,A0048483,29/03/2023,EST0332718,998.09,N,,N,N
Pendle Borough Council,Property Services,Premises Related Expense,Electricity,2203,NPOWER,A0048483,09/03/2023,EST0331897,1064.74,N,,N,N
Pendle Borough Council,Engineering & Special Projects,Capital Costs,Capital : Payments,CD14,BUTLER SHEETMETAL LIMITED,A0050988,23/03/2023,HED0332397,22170,N,,N,N
Pendle Borough Council,Engineering & Special Projects,Capital Costs,Capital : Payments,CD14,BUTLER SHEETMETAL LIMITED,A0050988,23/03/2023,HED0332398,25850,N,,N,N
Pendle Borough Council,Parks & Recreation Services,Transport Related Expense,Tyres,3204,ROSSENDALE VULCANISING (SALES LTD),A0051239,23/03/2023,PCO0332377,20,N,,N,N
Pendle Borough Council,Parks & Recreation Services,Transport Related Expense,Tyres,3204,ROSSENDALE VULCANISING (SALES LTD),A0051239,23/03/2023,PCO0332377,22,N,,N,N
Pendle Borough Council,Financial Services,Indirect Employee Expenses,Pensions Increase Act Payments,1234,LIBERATA UK LTD,A0051618,29/03/2023,AAS0332757,-78252.45,N,,N,N
Pendle Borough Council,Financial Services,Premises Related Expense,Rents,2301,LIBERATA UK LTD,A0051618,09/03/2023,AAS0332108,502.33,N,,N,N
Pendle Borough Council,Financial Services,Agency Costs,Liberata,5301,LIBERATA UK LTD,A0051618,29/03/2023,AAS0332757,3093,N,,N,N
Pendle Borough Council,Financial Services,Agency Costs,Liberata,5301,LIBERATA UK LTD,A0051618,29/03/2023,AAS0332757,15242.62,N,,N,N
Pendle Borough Council,Financial Services,Agency Costs,Liberata,5301,LIBERATA UK LTD,A0051618,09/03/2023,AAS0332109,3926.09,N,,N,N
Pendle Borough Council,Financial Services,Agency Costs,#N/A,5303,LIBERATA UK LTD,A0051618,15/03/2023,AAS0332773,6191.63,N,,N,N
Pendle Borough Council,Financial Services,Agency Costs,#N/A,5303,LIBERATA UK LTD,A0051618,15/03/2023,AAS0332773,34439.05,N,,N,N
Pendle Borough Council,Financial Services,Agency Costs,#N/A,5303,LIBERATA UK LTD,A0051618,15/03/2023,AAS0332773,30524.21,N,,N,N
Pendle Borough Council,Financial Services,Agency Costs,#N/A,5303,LIBERATA UK LTD,A0051618,15/03/2023,AAS0332773,87715.01,N,,N,N
Pendle Borough Council,Financial Services,Agency Costs,#N/A,5303,LIBERATA UK LTD,A0051618,15/03/2023,AAS0332773,57718.77,N,,N,N
Pendle Borough Council,Financial Services,Agency Costs,#N/A,5303,LIBERATA UK LTD,A0051618,15/03/2023,AAS0332773,89614.75,N,,N,N
Pendle Borough Council,Financial Services,Agency Costs,#N/A,5303,LIBERATA UK LTD,A0051618,15/03/2023,AAS0332773,117970.87,N,,N,N
Pendle Borough Council,Financial Services,Capital Financing Costs,Lease costs:Computer (Orchard),8204,LIBERATA UK LTD,A0051618,29/03/2023,AAS0332757,5392.35,N,,N,N
Pendle Borough Council,Financial Services,Capital Financing Costs,Lease costs:Computer (Orchard),8204,LIBERATA UK LTD,A0051618,29/03/2023,AAS0332757,109877.79,N,,N,N
Pendle Borough Council,Financial Services,Capital Costs,Capital : Salaries,CD13,LIBERATA UK LTD,A0051618,23/03/2023,AAS0332430,921.7,N,,N,N
Pendle Borough Council,Engineering & Special Projects,Capital Costs,Capital: Design Fees,CD53,LIBERATA UK LTD,A0051618,09/03/2023,HED0331928,3947.83,N,,N,N
Pendle Borough Council,Engineering & Special Projects,Capital Costs,Ren Grant : 1996 Act,CH22,LIBERATA UK LTD,A0051618,29/03/2023,HED0332605,2194.14,N,,N,N
Pendle Borough Council,Property Services,Premises Related Expense,Electricity,2203,SOUTHERN ELECTRIC,A0051726,16/03/2023,EST0332259,379.48,N,,N,N
Pendle Borough Council,Parks & Recreation Services,Supplies and Services,Expenditure : Materials,0002,ARCOL ENGINEERING LTD,A0052060,16/03/2023,PCO0332147,48,N,,N,N
Pendle Borough Council,Parks & Recreation Services,Supplies and Services,Expenditure : Materials,0002,ARCOL ENGINEERING LTD,A0052060,16/03/2023,PCO0332148,67.5,N,,N,N
Pendle Borough Council,Parks & Recreation Services,Supplies and Services,Expenditure : Materials,0002,ARCOL ENGINEERING LTD,A0052060,16/03/2023,PCO0332150,310,N,,N,N
Pendle Borough Council,Parks & Recreation Services,Premises Related Expense,Grounds : R & M : Day to Day : Routine,2101,ARCOL ENGINEERING LTD,A0052060,16/03/2023,PCO0332149,60,N,,N,N
Pendle Borough Council,Parks & Recreation Services,Transport Related Expense,Tprt : Repairs : General,3105,ARCOL ENGINEERING LTD,A0052060,23/03/2023,PCO0332383,30,N,,N,N
Pendle Borough Council,Operational Services,Premises Related Expense,Bldgs : R & M : Day To Day,2001,MONKS CONTRACTORS LIMITED,A0053900,29/03/2023,OPS0332482,385,N,,N,N
Pendle Borough Council,Operational Services,Premises Related Expense,Bldgs : R & M : Day To Day,2001,MONKS CONTRACTORS LIMITED,A0053900,29/03/2023,OPS0332482,500,N,,N,N
Pendle Borough Council,Operational Services,Premises Related Expense,Bldgs : R & M : Day To Day,2001,MONKS CONTRACTORS LIMITED,A0053900,23/03/2023,OPS0332355,969,N,,N,N
Pendle Borough Council,Operational Services,Premises Related Expense,Bldgs : R & M : Day To Day,2001,MONKS CONTRACTORS LIMITED,A0053900,02/03/2023,OPS0331891,997,N,,N,N
Pendle Borough Council,Property Services,Indirect Employee Expenses,Staff Refreshments,1261,SIEMENS FINANCIAL SERVICES LIMITED,A0054268,23/03/2023,EST0332425,260,N,,N,N
Pendle Borough Council,Engineering & Special Projects,Premises Related Expense,Bldgs : R & M : Abnormal,2002,WHATMORE LTD,A0054380,16/03/2023,HED0332236,701,N,,N,N
Pendle Borough Council,Parks & Recreation Services,Premises Related Expense,Grounds : R & M : Day to Day : Routine,2101,THE PLAY INSPECTION COMPANY LTD,A0054674,23/03/2023,PCO0332370,110,N,,N,N
Pendle Borough Council,Parks & Recreation Services,Premises Related Expense,Grounds : R & M : Day to Day : Routine,2101,THE PLAY INSPECTION COMPANY LTD,A0054674,23/03/2023,PCO0332370,310,N,,N,N
Pendle Borough Council,Engineering & Special Projects,Supplies and Services,Other Expenses,4705,TOGETHER HOUSING ASSOCIATION,A0055008,09/03/2023,HED0332102,69.83,N,,N,N
Pendle Borough Council,Engineering & Special Projects,Supplies and Services,#N/A,4425,UNITED UTILITIES PROPERTY SOLUTIONS LTD,A0055020,29/03/2023,HED0332710,293.38,N,,N,N
Pendle Borough Council,Operational Services,Indirect Employee Expenses,Emp : Training : General,1217,BEN SHAW TRAINING LIMITED,A0055722,02/03/2023,OPS0331874,140,N,,N,N
Pendle Borough Council,Operational Services,Indirect Employee Expenses,Emp : Training : General,1217,BEN SHAW TRAINING LIMITED,A0055722,23/03/2023,OPS0332361,2276,N,,N,N
Pendle Borough Council,Operational Services,Supplies and Services,Seminars etc All Costs,4601,BEN SHAW TRAINING LIMITED,A0055722,23/03/2023,OPS0332361,964,N,,N,N
Pendle Borough Council,Engineering & Special Projects,Supplies and Services,Other Expenses,4705,SMILE MEDIATION LIMITED,A0056524,09/03/2023,HED0332056,2000,N,,N,N
Pendle Borough Council,Parks & Recreation Services,Premises Related Expense,Grounds : R & M : Day to Day : Routine,2101,A BINNS & CO,A0057121,29/03/2023,PCO0332611,290,N,,N,N
Pendle Borough Council,Parks & Recreation Services,Premises Related Expense,Grounds : R & M : Day to Day : Routine,2101,A BINNS & CO,A0057121,29/03/2023,PCO0332682,9800,N,,N,N
Pendle Borough Council,Parks & Recreation Services,Premises Related Expense,Grounds : R & M : Day to Day : Routine,2101,A BINNS & CO,A0057121,29/03/2023,PCO0332611,1000,N,,N,N
Pendle Borough Council,Parks & Recreation Services,Premises Related Expense,Grounds : R & M : Day to Day : Routine,2101,A BINNS & CO,A0057121,29/03/2023,PCO0332682,2200,N,,N,N
Pendle Borough Council,Parks & Recreation Services,Premises Related Expense,Grounds : R & M : Day to Day : Routine,2101,A BINNS & CO,A0057121,29/03/2023,PCO0332611,1000,N,,N,N
Pendle Borough Council,Parks & Recreation Services,Premises Related Expense,Grounds : R & M : Day to Day : Routine,2101,A BINNS & CO,A0057121,29/03/2023,PCO0332682,2390,N,,N,N
Pendle Borough Council,Parks & Recreation Services,Premises Related Expense,Grounds : R & M : Day to Day : Routine,2101,A BINNS & CO,A0057121,29/03/2023,PCO0332682,1000,N,,N,N
Pendle Borough Council,Parks & Recreation Services,Premises Related Expense,Grounds : R & M : Day to Day : Routine,2101,A BINNS & CO,A0057121,29/03/2023,PCO0332611,500,N,,N,N
Pendle Borough Council,Parks & Recreation Services,Premises Related Expense,Grounds : R & M : Day to Day : Routine,2101,A BINNS & CO,A0057121,29/03/2023,PCO0332449,700,N,,N,N
Pendle Borough Council,Operational Services,Support Services,Admin Buildings Expenses,7001,CHUBB FIRE & SECURITY LTD,A0057603,09/03/2023,OPS0331991,989.32,N,,N,N
Pendle Borough Council,Operational Services,Transport Related Expense,Tprt : Repairs : General,3105,UNITED UTILITIES,A0059246,09/03/2023,OPS0332017,23.45,N,,N,N
Pendle Borough Council,Operational Services,Transport Related Expense,Tprt : Repairs : General,3105,UNITED UTILITIES,A0059246,09/03/2023,OPS0332017,23.45,N,,N,N
Pendle Borough Council,Engineering & Special Projects,Agency Costs,Lancashire C C,5102,NSL LIMITED,A0059256,16/03/2023,HED0332237,1990.56,N,,N,N
Pendle Borough Council,Engineering & Special Projects,Premises Related Expense,Grounds : R & M : Day to Day : Routine,2101,NATIONAL WORLD PUBLISHING LTD,A0059640,29/03/2023,HED0332602,208.01,N,,N,N
Pendle Borough Council,Engineering & Special Projects,Supplies and Services,Adverts : Statutory Notice,4702,NATIONAL WORLD PUBLISHING LTD,A0059640,29/03/2023,HED0332603,286.01,N,,N,N
Pendle Borough Council,Engineering & Special Projects,Supplies and Services,Adverts : Statutory Notice,4702,NATIONAL WORLD PUBLISHING LTD,A0059640,16/03/2023,HED0332212,312.01,N,,N,N
Pendle Borough Council,Engineering & Special Projects,Supplies and Services,Adverts : Statutory Notice,4702,NATIONAL WORLD PUBLISHING LTD,A0059640,23/03/2023,HED0332390,312.01,N,,N,N
Pendle Borough Council,Operational Services,Supplies and Services,Publicity & advertisement,4704,NATIONAL WORLD PUBLISHING LTD,A0059640,29/03/2023,OPS0332481,324.78,N,,N,N
Pendle Borough Council,Engineering & Special Projects,Supplies and Services,Publicity & advertisement,4704,NATIONAL WORLD PUBLISHING LTD,A0059640,29/03/2023,HED0332467,270,N,,N,N
Pendle Borough Council,Engineering & Special Projects,Supplies and Services,Other Expenses,4705,NATIONAL WORLD PUBLISHING LTD,A0059640,16/03/2023,HED0332213,260.01,N,,N,N
Pendle Borough Council,Engineering & Special Projects,Supplies and Services,Other Expenses,4705,NATIONAL WORLD PUBLISHING LTD,A0059640,02/03/2023,HED0331836,390.01,N,,N,N
Pendle Borough Council,Engineering & Special Projects,,Other Income : Non-VATable,9303,NATIONAL WORLD PUBLISHING LTD,A0059640,16/03/2023,HED0332214,234.01,N,,N,N
Pendle Borough Council,Engineering & Special Projects,,Other Income : Non-VATable,9303,NATIONAL WORLD PUBLISHING LTD,A0059640,02/03/2023,HED0331835,260.01,N,,N,N
Pendle Borough Council,Engineering & Special Projects,,Other Income : Non-VATable,9303,NATIONAL WORLD PUBLISHING LTD,A0059640,02/03/2023,HED0331837,260.01,N,,N,N
Pendle Borough Council,Engineering & Special Projects,Transfer Payments,Accommodation ,6103,HILL VIEW (PRIVATE) HOTEL,A0059754,16/03/2023,HED0332240,18765,N,,N,N
Pendle Borough Council,Financial Services,Capital Costs,Capital : Legal Fees,CD09,PENDLE HIPPODROME THEATRE LTD,A0060913,16/03/2023,AAS0332307,1380,N,,N,N
Pendle Borough Council,Financial Services,Capital Costs,Land Remediation Costs,CD22,PENDLE HIPPODROME THEATRE LTD,A0060913,16/03/2023,AAS0332307,720,N,,N,N
Pendle Borough Council,Financial Services,Capital Costs,Capital: Design Fees,CD53,PENDLE HIPPODROME THEATRE LTD,A0060913,16/03/2023,AAS0332307,9000,N,,N,N
Pendle Borough Council,Operational Services,Supplies and Services,EFM Materials,4004,CONTAINER CARE SOLUTIONS LIMITED,A0061112,16/03/2023,OPS0332219,40,N,,N,N
Pendle Borough Council,Operational Services,Supplies and Services,EFM Materials,4004,CONTAINER CARE SOLUTIONS LIMITED,A0061112,23/03/2023,OPS0332359,75,N,,N,N
Pendle Borough Council,Operational Services,Supplies and Services,EFM Materials,4004,CONTAINER CARE SOLUTIONS LIMITED,A0061112,16/03/2023,OPS0332219,145,N,,N,N
Pendle Borough Council,Operational Services,Supplies and Services,EFM Materials,4004,CONTAINER CARE SOLUTIONS LIMITED,A0061112,09/03/2023,OPS0332043,174,N,,N,N
Pendle Borough Council,Operational Services,Supplies and Services,EFM Materials,4004,CONTAINER CARE SOLUTIONS LIMITED,A0061112,23/03/2023,OPS0332359,175,N,,N,N
Pendle Borough Council,Operational Services,Supplies and Services,EFM Materials,4004,CONTAINER CARE SOLUTIONS LIMITED,A0061112,16/03/2023,OPS0332220,230,N,,N,N
Pendle Borough Council,Operational Services,Supplies and Services,EFM Materials,4004,CONTAINER CARE SOLUTIONS LIMITED,A0061112,23/03/2023,OPS0332359,360,N,,N,N
Pendle Borough Council,Operational Services,Supplies and Services,EFM Materials,4004,CONTAINER CARE SOLUTIONS LIMITED,A0061112,23/03/2023,OPS0332359,490,N,,N,N
Pendle Borough Council,Operational Services,Supplies and Services,EFM Materials,4004,CONTAINER CARE SOLUTIONS LIMITED,A0061112,23/03/2023,OPS0332359,590,N,,N,N
Pendle Borough Council,Operational Services,Supplies and Services,EFM Materials,4004,CONTAINER CARE SOLUTIONS LIMITED,A0061112,23/03/2023,OPS0332359,680,N,,N,N
Pendle Borough Council,Operational Services,Supplies and Services,EFM Materials,4004,CONTAINER CARE SOLUTIONS LIMITED,A0061112,23/03/2023,OPS0332359,750,N,,N,N
Pendle Borough Council,Operational Services,Supplies and Services,EFM Materials,4004,CONTAINER CARE SOLUTIONS LIMITED,A0061112,23/03/2023,OPS0332359,1100,N,,N,N
Pendle Borough Council,Operational Services,Supplies and Services,EFM Materials,4004,CONTAINER CARE SOLUTIONS LIMITED,A0061112,23/03/2023,OPS0332359,1680,N,,N,N
Pendle Borough Council,Operational Services,Supplies and Services,EFM Materials,4004,CONTAINER CARE SOLUTIONS LIMITED,A0061112,23/03/2023,OPS0332359,4000,N,,N,N
Pendle Borough Council,Operational Services,Supplies and Services,EFM Materials,4004,CONTAINER CARE SOLUTIONS LIMITED,A0061112,23/03/2023,OPS0332360,4000,N,,N,N
Pendle Borough Council,Operational Services,Supplies and Services,EFM Materials,4004,CONTAINER CARE SOLUTIONS LIMITED,A0061112,09/03/2023,OPS0332000,4080,N,,N,N
Pendle Borough Council,Operational Services,Capital Costs,Capital : Payments,CD14,CONTAINER CARE SOLUTIONS LIMITED,A0061112,09/03/2023,OPS0332000,4920,N,,N,N
Pendle Borough Council,Parks & Recreation Services,Transport Related Expense,Tprt : Repairs : General,3105,VALE ENGINEERING (YORK) LTD,A0061399,02/03/2023,PCO0331831,88.5,N,,N,N
Pendle Borough Council,Human Resources,Supplies and Services,Seminars etc All Costs,4601,ABC NORTH WEST LTD,A0061417,29/03/2023,PER0332597,69,N,,N,N
Pendle Borough Council,Financial Services,Transport Related Expense,Tprt : Annual Hire Charge,3601,ARVAL LTD (ALLSTAR FUEL SERVICES),A0062668,15/03/2023,AAS0332968,14.78,N,,N,N
Pendle Borough Council,Financial Services,Transport Related Expense,Tprt : Annual Hire Charge,3601,ARVAL LTD (ALLSTAR FUEL SERVICES),A0062668,15/03/2023,AAS0332968,435.9,N,,N,N
Pendle Borough Council,Property Services,Premises Related Expense,Bldgs : R & M : Day To Day,2001,KEYPLUS SECURITY LIMITED,A0062723,02/03/2023,EST0331895,26.41,N,,N,N
Pendle Borough Council,Operational Services,Premises Related Expense,Bldgs : R & M : Day To Day,2001,KEYPLUS SECURITY LIMITED,A0062723,09/03/2023,OPS0332061,1465.1,N,,N,N
Pendle Borough Council,Parks & Recreation Services,Premises Related Expense,Grounds : R & M : Day to Day : Routine,2101,BOUNCEBACK SAFETY SERVICES LTD,A0063002,29/03/2023,PCO0332446,2624,N,,N,N
Pendle Borough Council,Parks & Recreation Services,Premises Related Expense,Grounds : R & M : Day to Day : Routine,2101,BOUNCEBACK SAFETY SERVICES LTD,A0063002,02/03/2023,PCO0331851,5322,N,,N,N
Pendle Borough Council,Parks & Recreation Services,Premises Related Expense,Grounds : R & M : Day to Day : Routine,2101,BOUNCEBACK SAFETY SERVICES LTD,A0063002,29/03/2023,PCO0332637,2622,N,,N,N
Pendle Borough Council,Engineering & Special Projects,Supplies and Services,Printing & Stationery,4301,EAST LANCASHIRE COMMUNITY ACTION PROJECT (ELCAP L,A0065518,29/03/2023,HED0332442,500,N,,N,N
Pendle Borough Council,Engineering & Special Projects,Supplies and Services,Publicity & advertisement,4704,EAST LANCASHIRE COMMUNITY ACTION PROJECT (ELCAP L,A0065518,29/03/2023,HED0332443,400,N,,N,N
Pendle Borough Council,Parks & Recreation Services,Transport Related Expense,Petrol,3201,THE PETROL TANK COMPANY LTD,A0066465,23/03/2023,PCO0332367,335,N,,N,N
Pendle Borough Council,Parks & Recreation Services,Transport Related Expense,Diesel Oil,3202,THE PETROL TANK COMPANY LTD,A0066465,23/03/2023,PCO0332367,465,N,,N,N
Pendle Borough Council,Human Resources,Transport Related Expense,Tprt : Annual Hire Charge,3601,LEX AUTOLEASE LIMITED,A0066530,02/03/2023,PER0331885,343.04,N,,N,N
Pendle Borough Council,Human Resources,Transport Related Expense,Tprt : Annual Hire Charge,3601,LEX AUTOLEASE LIMITED,A0066530,29/03/2023,PER0332598,343.04,N,,N,N
Pendle Borough Council,Property Services,Premises Related Expense,Bldgs : R & M : Day To Day,2001,SPEAKMAN CONTRACTORS LTD,A0066581,09/03/2023,EST0332072,326.82,N,,N,N
Pendle Borough Council,Property Services,Premises Related Expense,Bldgs : R & M : Day To Day,2001,SPEAKMAN CONTRACTORS LTD,A0066581,09/03/2023,EST0332072,111.74,N,,N,N
Pendle Borough Council,Property Services,Premises Related Expense,Bldgs : R & M : Day To Day,2001,SPEAKMAN CONTRACTORS LTD,A0066581,09/03/2023,EST0332072,58.44,N,,N,N
Pendle Borough Council,Property Services,Premises Related Expense,Bldgs : R & M : Day To Day,2001,SPEAKMAN CONTRACTORS LTD,A0066581,09/03/2023,EST0332072,156.52,N,,N,N
Pendle Borough Council,Property Services,Capital Costs,Capital : Payments,CD14,SPEAKMAN CONTRACTORS LTD,A0066581,09/03/2023,EST0332072,1134.73,N,,N,N
Pendle Borough Council,Engineering & Special Projects,Capital Costs,Capital : Payments,CD14,LIVESEY BUILDING MAINTENANCE CONTRACTORS,A0066865,02/03/2023,HED4006667,-24560,N,,N,N
Pendle Borough Council,Engineering & Special Projects,Capital Costs,Capital : Payments,cd14,LIVESEY BUILDING MAINTENANCE CONTRACTORS,A0066865,02/03/2023,HED0331823,11560,N,,N,N
Pendle Borough Council,Engineering & Special Projects,Capital Costs,Capital : Payments,cd14,LIVESEY BUILDING MAINTENANCE CONTRACTORS,A0066865,02/03/2023,HED0331823,13000,N,,N,N
Pendle Borough Council,Human Resources,Indirect Employee Expenses,Emp : Medical Expenses,1236,PEOPLE ASSET MANAGEMENT LIMITED,A0067613,09/03/2023,PER0331986,62.84,N,,N,N
Pendle Borough Council,Human Resources,Indirect Employee Expenses,Emp : Medical Expenses,1236,PEOPLE ASSET MANAGEMENT LIMITED,A0067613,09/03/2023,PER0331988,110,N,,N,N
Pendle Borough Council,Human Resources,Indirect Employee Expenses,Emp : Medical Expenses,1236,PEOPLE ASSET MANAGEMENT LIMITED,A0067613,09/03/2023,PER0331987,110,N,,N,N
Pendle Borough Council,Human Resources,Indirect Employee Expenses,Emp : Medical Expenses,1236,PEOPLE ASSET MANAGEMENT LIMITED,A0067613,29/03/2023,PER0332596,110,N,,N,N
Pendle Borough Council,Human Resources,Indirect Employee Expenses,Emp : Medical Expenses,1236,PEOPLE ASSET MANAGEMENT LIMITED,A0067613,02/03/2023,PER0331883,217.5,N,,N,N
Pendle Borough Council,Operational Services,Supplies and Services,EFM Materials,4004,LIMPET LABELS UK LIMITED,A0067671,16/03/2023,OPS0332222,218.01,N,,N,N
Pendle Borough Council,Engineering & Special Projects,Capital Costs,Capital : Payments,cd14,HM REVENUE & CUSTOMS,A0067741,23/03/2023,HED0332432,31500,N,,N,N
Pendle Borough Council,Engineering & Special Projects,Supplies and Services,#N/A,4424,CHIPSIDE LTD,A0068587,23/03/2023,HED0332407,145.44,N,,N,N
Pendle Borough Council,Parks & Recreation Services,Premises Related Expense,Grounds : R & M : Day to Day : Routine,2101,SHERRIFF AMENITY - AGROVISTA UK LIMITED,A0068904,23/03/2023,PCO0332371,128.11,N,,N,N
Pendle Borough Council,Engineering & Special Projects,Supplies and Services,Other Expenses,4705,ACCENT REGENERATION LIMITED,A0069320,09/03/2023,HED0332099,335.16,N,,N,N
Pendle Borough Council,Engineering & Special Projects,Supplies and Services,Other Expenses,4705,RH ENVIRONMENTAL LTD,A0069532,23/03/2023,HED0332333,467.5,N,,N,N
Pendle Borough Council,Parks & Recreation Services,Indirect Employee Expenses,Emp : Training : General,1217,DISTRICT COUNCILS NETWORK,A0069643,16/03/2023,PCO0332190,360,N,,N,N
Pendle Borough Council,Operational Services,Supplies and Services,Other Expenses,4705,PINNACLE RESPONSE LIMITED,A0069767,16/03/2023,OPS0332218,7,N,,N,N
Pendle Borough Council,Operational Services,Supplies and Services,Other Expenses,4705,PINNACLE RESPONSE LIMITED,A0069767,16/03/2023,OPS0332218,195,N,,N,N
Pendle Borough Council,Operational Services,Supplies and Services,Other Expenses,4705,PINNACLE RESPONSE LIMITED,A0069767,16/03/2023,OPS0332218,1620,N,,N,N
Pendle Borough Council,Engineering & Special Projects,Supplies and Services,Sub-Contractors,4007,ACTIVE LANCASHIRE LIMITED,A0070149,09/03/2023,HED0332045,24781,N,1159832,N,N
Pendle Borough Council,Parks & Recreation Services,Transport Related Expense,Tprt : Repairs : General,3105,GUY MACHINERY LIMITED,A0070711,23/03/2023,PCO0332381,8.35,N,,N,N
Pendle Borough Council,Parks & Recreation Services,Transport Related Expense,Tprt : Repairs : General,3105,GUY MACHINERY LIMITED,A0070711,16/03/2023,PCO0332157,17.79,N,,N,N
Pendle Borough Council,Parks & Recreation Services,Transport Related Expense,Tprt : Repairs : General,3105,GUY MACHINERY LIMITED,A0070711,16/03/2023,PCO0332156,28.46,N,,N,N
Pendle Borough Council,Parks & Recreation Services,Transport Related Expense,Tprt : Repairs : General,3105,GUY MACHINERY LIMITED,A0070711,29/03/2023,PCO0332647,48.28,N,,N,N
Pendle Borough Council,Parks & Recreation Services,Transport Related Expense,Tprt : Repairs : General,3105,GUY MACHINERY LIMITED,A0070711,23/03/2023,PCO0332381,49.1,N,,N,N
Pendle Borough Council,Parks & Recreation Services,Transport Related Expense,Tprt : Repairs : General,3105,GUY MACHINERY LIMITED,A0070711,16/03/2023,PCO0332157,177.89,N,,N,N
Pendle Borough Council,Parks & Recreation Services,Transport Related Expense,Tprt : Repairs : General,3105,GUY MACHINERY LIMITED,A0070711,16/03/2023,PCO0332156,181.1,N,,N,N
Pendle Borough Council,Parks & Recreation Services,Transport Related Expense,Tprt : Repairs : General,3105,GUY MACHINERY LIMITED,A0070711,29/03/2023,PCO0332647,482.82,N,,N,N
Pendle Borough Council,Parks & Recreation Services,Transport Related Expense,Tprt : Repairs : General,3105,GUY MACHINERY LIMITED,A0070711,23/03/2023,PCO0332381,34.42,N,,N,N
Pendle Borough Council,Parks & Recreation Services,Transport Related Expense,Tprt : Repairs : General,3105,GUY MACHINERY LIMITED,A0070711,16/03/2023,PCO0332156,103.52,N,,N,N
Pendle Borough Council,Operational Services,Supplies and Services,Sub-Contractors,4007,QHS SOLUTIONS LIMITED,A0071912,02/03/2023,OPS0331870,8000,N,,N,N
Pendle Borough Council,Financial Services,Supplies and Services,Other Expenses,4705,HEWITT & CO,A0072331,03/03/2023,AAS0332771,300,N,,N,N
Pendle Borough Council,Operational Services,Supplies and Services,Sub-Contractors,4007,RENTOKIL INITIAL UK LIMITED,A0072816,16/03/2023,OPS4006672,-32.53,N,,N,N
Pendle Borough Council,Operational Services,Supplies and Services,Sub-Contractors,4007,RENTOKIL INITIAL UK LIMITED,A0072816,16/03/2023,OPS4006670,-30.26,N,,N,N
Pendle Borough Council,Operational Services,Supplies and Services,Sub-Contractors,4007,RENTOKIL INITIAL UK LIMITED,A0072816,16/03/2023,OPS4006671,-7.23,N,,N,N
Pendle Borough Council,Operational Services,Supplies and Services,Sub-Contractors,4007,RENTOKIL INITIAL UK LIMITED,A0072816,16/03/2023,OPS0332223,11.47,N,,N,N
Pendle Borough Council,Operational Services,Supplies and Services,Sub-Contractors,4007,RENTOKIL INITIAL UK LIMITED,A0072816,16/03/2023,OPS0332020,30.26,N,,N,N
Pendle Borough Council,Operational Services,Supplies and Services,Sub-Contractors,4007,RENTOKIL INITIAL UK LIMITED,A0072816,16/03/2023,OPS0332019,39.76,N,,N,N
Pendle Borough Council,Operational Services,Supplies and Services,Sub-Contractors,4007,RENTOKIL INITIAL UK LIMITED,A0072816,23/03/2023,OPS0332372,92.84,N,,N,N
Pendle Borough Council,Operational Services,Supplies and Services,Sub-Contractors,4007,RENTOKIL INITIAL UK LIMITED,A0072816,29/03/2023,OPS0332676,92.84,N,,N,N
Pendle Borough Council,Operational Services,Supplies and Services,Sub-Contractors,4007,RENTOKIL INITIAL UK LIMITED,A0072816,16/03/2023,OPS0332223,196.97,N,,N,N
Pendle Borough Council,Operational Services,Supplies and Services,Sub-Contractors,4007,RENTOKIL INITIAL UK LIMITED,A0072816,23/03/2023,OPS0332372,15.9,N,,N,N
Pendle Borough Council,Operational Services,Supplies and Services,Sub-Contractors,4007,RENTOKIL INITIAL UK LIMITED,A0072816,29/03/2023,OPS0332676,15.9,N,,N,N
Pendle Borough Council,Operational Services,Supplies and Services,Sub-Contractors,4007,RENTOKIL INITIAL UK LIMITED,A0072816,16/03/2023,OPS0332223,33.51,N,,N,N
Pendle Borough Council,Operational Services,Supplies and Services,Sub-Contractors,4007,RENTOKIL INITIAL UK LIMITED,A0072816,23/03/2023,OPS0332372,83.76,N,,N,N
Pendle Borough Council,Operational Services,Supplies and Services,Sub-Contractors,4007,RENTOKIL INITIAL UK LIMITED,A0072816,29/03/2023,OPS0332671,178.96,N,,N,N
Pendle Borough Council,Parks & Recreation Services,Supplies and Services,Protective Clothing,4201,REACTEC LIMITED,A0072817,02/03/2023,PCO0331828,283.5,N,,N,N
Pendle Borough Council,Parks & Recreation Services,Premises Related Expense,Grounds : R & M : Day to Day : Routine,2101,FENLAND LEISURE PRODUCTS LIMITED,A0072950,16/03/2023,PCO0332136,89.5,N,,N,N
Pendle Borough Council,Parks & Recreation Services,Premises Related Expense,Grounds : R & M : Day to Day : Routine,2101,FENLAND LEISURE PRODUCTS LIMITED,A0072950,16/03/2023,PCO0332207,89.5,N,,N,N
Pendle Borough Council,Engineering & Special Projects,Capital Costs,Ren Grant : 1996 Act,CH22,OCEAN BATHROOMS TILES & HEATING LTD,A0075367,29/03/2023,HED0332700,7912.2,N,,N,N
Pendle Borough Council,Property Services,Supplies and Services,Other Expenses,4705,BURNLEY AND PENDLE ENERGY ASSESSORS LTD,A0077075,29/03/2023,EST0332722,150,N,,N,N
Pendle Borough Council,Property Services,Supplies and Services,Other Expenses,4705,BURNLEY AND PENDLE ENERGY ASSESSORS LTD,A0077075,29/03/2023,EST0332721,175,N,,N,N
Pendle Borough Council,Engineering & Special Projects,Supplies and Services,Printing & Stationery,4301,THOMSON REUTERS PROFESSIONAL UK LIMITED,A0077400,09/03/2023,HED0331978,1099,N,,N,N
Pendle Borough Council,Engineering & Special Projects,Supplies and Services,Other Expenses,4705,FOULRIDGE PARISH COUNCIL,A0077715,29/03/2023,HED0332734,500,N,,N,N
Pendle Borough Council,Operational Services,Supplies and Services,Miscellaneous : Other,4707,GLASDON UK LIMITED,A0078667,29/03/2023,OPS0332683,5308.9,N,,N,N
Pendle Borough Council,Engineering & Special Projects,,Housing Impts/Cap Repairs,0104,BOILERHOUSE EARBY,A0079622,29/03/2023,HED0332703,1925,N,,N,N
Pendle Borough Council,Engineering & Special Projects,Supplies and Services,Other Expenses,4705,GOLDSHAW BOOTH PARISH COUNCIL,A0080533,23/03/2023,HED0332406,1500,N,,N,N
Pendle Borough Council,Engineering & Special Projects,Capital Costs,Ren Grant : 1996 Act,CH22,NI CONSTRUCTIONS (NW) LIMITED,A0080961,09/03/2023,HED0332048,694,N,,N,N
Pendle Borough Council,Engineering & Special Projects,Capital Costs,Ren Grant : 1996 Act,CH22,NI CONSTRUCTIONS (NW) LIMITED,A0080961,09/03/2023,HED0332049,5025.2,N,,N,N
Pendle Borough Council,Engineering & Special Projects,Supplies and Services,Children`s holiday activities,4716,POSITIVE ACTION IN THE COMMUNITY,A0081553,23/03/2023,HED0332408,5218,N,1088536,N,N
Pendle Borough Council,Engineering & Special Projects,Supplies and Services,Other Expenses,4705,SALTERFORTH FUN DAY,A0082147,02/03/2023,HED0331869,800,N,,N,N
Pendle Borough Council,Parks & Recreation Services,Premises Related Expense,Grounds : R & M : Day to Day : Routine,2101,MANCHESTER SAFETY SERVICES LTD,A0082149,16/03/2023,PCO0332124,233.75,N,,N,N
Pendle Borough Council,Parks & Recreation Services,Premises Related Expense,Grounds : R & M : Day to Day : Routine,2101,MANCHESTER SAFETY SERVICES LTD,A0082149,16/03/2023,PCO0332195,233.75,N,,N,N
Pendle Borough Council,Engineering & Special Projects,Supplies and Services,Other Expenses,4705,CALICO ENTERPRISE,A0082574,23/03/2023,HED0332310,38,N,,N,N
Pendle Borough Council,Engineering & Special Projects,Supplies and Services,Other Expenses,4705,CALICO ENTERPRISE,A0082574,02/03/2023,HED0331915,970,N,,N,N
Pendle Borough Council,Engineering & Special Projects,Supplies and Services,Other Expenses,4705,BARLEY WITH WHEATLEY BOOTH PC,A0082828,23/03/2023,HED0332336,2500,N,,N,N
Pendle Borough Council,Financial Services,Supplies and Services,Consultants Fees,4401,HM COURTS & TRIBUNALS SERVICE,A0083319,16/03/2023,AAS0332965,81,N,,N,N
Pendle Borough Council,Financial Services,Supplies and Services,Consultants Fees,4401,HM COURTS & TRIBUNALS SERVICE,A0083319,16/03/2023,AAS0332966,357,N,,N,N
Pendle Borough Council,Financial Services,Support Services,District Audit Fees,7202,GRANT THORNTON UK LLP,A0084044,09/03/2023,AAS0332107,9821.58,N,,N,N
Pendle Borough Council,Engineering & Special Projects,Supplies and Services,Other Expenses,4705,BLACKO PARISH COUNCIL,A0084321,23/03/2023,HED0332331,1000,N,,N,N
Pendle Borough Council,Financial Services,Supplies and Services,Allpay,4422,ALLPAY LIMITED,A0084372,02/03/2023,AAS0331916,10,N,,N,N
Pendle Borough Council,Financial Services,Supplies and Services,Allpay,4422,ALLPAY LIMITED,A0084372,02/03/2023,AAS0331918,10,N,,N,N
Pendle Borough Council,Financial Services,Supplies and Services,Allpay,4422,ALLPAY LIMITED,A0084372,02/03/2023,AAS0331920,12.3,N,,N,N
Pendle Borough Council,Financial Services,Supplies and Services,Allpay,4422,ALLPAY LIMITED,A0084372,02/03/2023,AAS0331921,18.04,N,,N,N
Pendle Borough Council,Financial Services,Supplies and Services,Allpay,4422,ALLPAY LIMITED,A0084372,02/03/2023,AAS0331917,56.63,N,,N,N
Pendle Borough Council,Financial Services,Supplies and Services,Allpay,4422,ALLPAY LIMITED,A0084372,02/03/2023,AAS0331919,613.15,N,,N,N
Pendle Borough Council,Engineering & Special Projects,,Housing Impts/Cap Repairs,0104,ELITE PLUMBING,A0084584,29/03/2023,HED0332704,2260,N,,N,N
Pendle Borough Council,Engineering & Special Projects,,Housing Impts/Cap Repairs,0104,ELITE PLUMBING,A0084584,29/03/2023,HED0332708,4889,N,,N,N
Pendle Borough Council,Engineering & Special Projects,Premises Related Expense,Bldgs : R & M : Abnormal,2002,ELITE PLUMBING,A0084584,23/03/2023,HED0332389,280,N,,N,N
Pendle Borough Council,Engineering & Special Projects,Capital Costs,Ren Grant : 1996 Act,CH22,ELITE PLUMBING,A0084584,29/03/2023,HED0332702,3836,N,,N,N
Pendle Borough Council,Engineering & Special Projects,Capital Costs,Ren Grant : 1996 Act,CH22,ELITE PLUMBING,A0084584,29/03/2023,HED0332707,7371.6,N,,N,N
Pendle Borough Council,Engineering & Special Projects,Supplies and Services,Other Expenses,4705,REDACT - PERSONAL DATA,A0085472,23/03/2023,HED0332328,60,N,,N,N
Pendle Borough Council,Engineering & Special Projects,Premises Related Expense,Grounds : R & M : Day to Day : Routine,2101,KEVIN WILKINSON LANDSCAPES LTD,A0085660,16/03/2023,HED0332234,200,N,,N,N
Pendle Borough Council,Parks & Recreation Services,Premises Related Expense,Grounds : R & M : Day to Day : Routine,2101,SECURE-A-FIELD LIMITED,A0087151,16/03/2023,PCO0332293,329.3,N,,N,N
Pendle Borough Council,Planning & Building Control,Supplies and Services,EFM : Other Equipment,4003,CTS TRAFFIC & TRANSPORTATION LTD,A0087278,09/03/2023,PBC0332067,5929,N,,N,N
Pendle Borough Council,Engineering & Special Projects,Premises Related Expense,Grounds : R & M : Day to Day : Routine,2101,JOHN BINNS AND SON (SPRINGS) LTD,A0088702,02/03/2023,HED0331175,509,N,,N,N
Pendle Borough Council,Financial Services,Premises Related Expense,Electricity,2203,EDF ENERGY,A0088932,08/03/2023,AAS0332876,60.06,N,,N,N
Pendle Borough Council,Financial Services,Premises Related Expense,Electricity,2203,EDF ENERGY,A0088932,08/03/2023,AAS0332876,78.72,N,,N,N
Pendle Borough Council,Financial Services,Premises Related Expense,Electricity,2203,EDF ENERGY,A0088932,08/03/2023,AAS0332876,34.33,N,,N,N
Pendle Borough Council,Financial Services,Premises Related Expense,Electricity,2203,EDF ENERGY,A0088932,08/03/2023,AAS0332876,201.3,N,,N,N
Pendle Borough Council,Financial Services,Premises Related Expense,Electricity,2203,EDF ENERGY,A0088932,08/03/2023,AAS0332876,189.41,N,,N,N
Pendle Borough Council,Financial Services,Premises Related Expense,Electricity,2203,EDF ENERGY,A0088932,08/03/2023,AAS0332876,396.37,N,,N,N
Pendle Borough Council,Financial Services,Premises Related Expense,Electricity,2203,EDF ENERGY,A0088932,08/03/2023,AAS0332876,81.82,N,,N,N
Pendle Borough Council,Financial Services,Premises Related Expense,Electricity,2203,EDF ENERGY,A0088932,08/03/2023,AAS0332876,-53.94,N,,N,N
Pendle Borough Council,Financial Services,Premises Related Expense,Electricity,2203,EDF ENERGY,A0088932,08/03/2023,AAS0332876,-48.9,N,,N,N
Pendle Borough Council,Financial Services,Premises Related Expense,Electricity,2203,EDF ENERGY,A0088932,08/03/2023,AAS0332876,-43.72,N,,N,N
Pendle Borough Council,Financial Services,Premises Related Expense,Electricity,2203,EDF ENERGY,A0088932,08/03/2023,AAS0332876,-38.36,N,,N,N
Pendle Borough Council,Financial Services,Premises Related Expense,Electricity,2203,EDF ENERGY,A0088932,08/03/2023,AAS0332876,30.68,N,,N,N
Pendle Borough Council,Financial Services,Premises Related Expense,Electricity,2203,EDF ENERGY,A0088932,08/03/2023,AAS0332876,32.41,N,,N,N
Pendle Borough Council,Financial Services,Premises Related Expense,Electricity,2203,EDF ENERGY,A0088932,08/03/2023,AAS0332876,35.84,N,,N,N
Pendle Borough Council,Financial Services,Premises Related Expense,Electricity,2203,EDF ENERGY,A0088932,08/03/2023,AAS0332876,39.68,N,,N,N
Pendle Borough Council,Financial Services,Premises Related Expense,Electricity,2203,EDF ENERGY,A0088932,08/03/2023,AAS0332876,198.06,N,,N,N
Pendle Borough Council,Financial Services,Premises Related Expense,Electricity,2203,EDF ENERGY,A0088932,08/03/2023,AAS0332876,27.79,N,,N,N
Pendle Borough Council,Financial Services,Premises Related Expense,Electricity,2203,EDF ENERGY,A0088932,08/03/2023,AAS0332876,257.64,N,,N,N
Pendle Borough Council,Financial Services,Premises Related Expense,Electricity,2203,EDF ENERGY,A0088932,08/03/2023,AAS0332876,40.77,N,,N,N
Pendle Borough Council,Financial Services,Premises Related Expense,Electricity,2203,EDF ENERGY,A0088932,08/03/2023,AAS0332876,33.57,N,,N,N
Pendle Borough Council,Financial Services,Premises Related Expense,Electricity,2203,EDF ENERGY,A0088932,08/03/2023,AAS0332876,28.77,N,,N,N
Pendle Borough Council,Financial Services,Premises Related Expense,Electricity,2203,EDF ENERGY,A0088932,08/03/2023,AAS0332876,29.32,N,,N,N
Pendle Borough Council,Financial Services,Premises Related Expense,Electricity,2203,EDF ENERGY,A0088932,08/03/2023,AAS0332876,100.88,N,,N,N
Pendle Borough Council,Financial Services,Premises Related Expense,Electricity,2203,EDF ENERGY,A0088932,08/03/2023,AAS0332876,146.8,N,,N,N
Pendle Borough Council,Financial Services,Premises Related Expense,Electricity,2203,EDF ENERGY,A0088932,08/03/2023,AAS0332876,241.41,N,,N,N
Pendle Borough Council,Financial Services,Premises Related Expense,Electricity,2203,EDF ENERGY,A0088932,08/03/2023,AAS0332876,31.6,N,,N,N
Pendle Borough Council,Financial Services,Premises Related Expense,Electricity,2203,EDF ENERGY,A0088932,08/03/2023,AAS0332876,551.34,N,,N,N
Pendle Borough Council,Financial Services,Premises Related Expense,Electricity,2203,EDF ENERGY,A0088932,08/03/2023,AAS0332876,34.98,N,,N,N
Pendle Borough Council,Financial Services,Premises Related Expense,Electricity,2203,EDF ENERGY,A0088932,08/03/2023,AAS0332876,232.38,N,,N,N
Pendle Borough Council,Financial Services,Premises Related Expense,Electricity,2203,EDF ENERGY,A0088932,08/03/2023,AAS0332876,1160.27,N,,N,N
Pendle Borough Council,Financial Services,Premises Related Expense,Electricity,2203,EDF ENERGY,A0088932,08/03/2023,AAS0332876,1377.73,N,,N,N
Pendle Borough Council,Financial Services,Supplies and Services,Other Expenses,4705,EDF ENERGY,A0088932,08/03/2023,AAS0332876,22.68,N,,N,N
Pendle Borough Council,Financial Services,Supplies and Services,Other Expenses,4705,EDF ENERGY,A0088932,08/03/2023,AAS0332876,26.5,N,,N,N
Pendle Borough Council,Engineering & Special Projects,Supplies and Services,Other Expenses,4705,COLNE GALA COMMITTEE,A0089012,29/03/2023,HED0332632,1000,N,,N,N
Pendle Borough Council,Property Services,Premises Related Expense,Bldgs : R & M : Day To Day,2001,CATCHPOINT (UK) LIMITED,A0089500,16/03/2023,EST0332254,95,N,,N,N
Pendle Borough Council,Financial Services,Supplies and Services,Subscriptions & Donations,4706,INFORM CPI LIMITED,A0089895,16/03/2023,AAS0332305,6000,N,,N,N
Pendle Borough Council,Engineering & Special Projects,,Paid in the Year,PD03,O`CALLAGHAN LIMITED,A0090052,16/03/2023,HED0332233,49078.79,N,,N,N
Pendle Borough Council,Engineering & Special Projects,,Paid in the Year,PD03,O`CALLAGHAN LIMITED,A0090052,09/03/2023,HED0332035,58191.93,N,,N,N
Pendle Borough Council,Engineering & Special Projects,,Paid in the Year,PD03,O`CALLAGHAN LIMITED,A0090052,09/03/2023,HED0332036,69619.41,N,,N,N
Pendle Borough Council,Engineering & Special Projects,Supplies and Services,Publicity & advertisement,4704,WE LOVE CREATIVE LIMITED,A0090098,09/03/2023,HED0331926,400,N,,N,N
Pendle Borough Council,Engineering & Special Projects,Supplies and Services,Publicity & advertisement,4704,WE LOVE CREATIVE LIMITED,A0090098,23/03/2023,HED0332395,400,N,,N,N
Pendle Borough Council,Engineering & Special Projects,Supplies and Services,Publicity & advertisement,4704,WE LOVE CREATIVE LIMITED,A0090098,23/03/2023,HED0332395,400,N,,N,N
Pendle Borough Council,Engineering & Special Projects,Supplies and Services,Publicity & advertisement,4704,WE LOVE CREATIVE LIMITED,A0090098,29/03/2023,HED0332468,400,N,,N,N
Pendle Borough Council,Operational Services,Transport Related Expense,Tprt : Repairs : General,3105,VISION TECHNIQUES UK LIMITED,A0090179,29/03/2023,OPS0332699,250,N,,N,N
Pendle Borough Council,Operational Services,Transport Related Expense,Tprt : Repairs : General,3105,VISION TECHNIQUES UK LIMITED,A0090179,29/03/2023,OPS0332699,250,N,,N,N
Pendle Borough Council,Operational Services,Transport Related Expense,Tprt : Repairs : General,3105,VISION TECHNIQUES UK LIMITED,A0090179,29/03/2023,OPS0332699,250,N,,N,N
Pendle Borough Council,Operational Services,Transport Related Expense,Tprt : Repairs : General,3105,VISION TECHNIQUES UK LIMITED,A0090179,29/03/2023,OPS0332699,250,N,,N,N
Pendle Borough Council,Operational Services,Transport Related Expense,Tprt : Repairs : General,3105,VISION TECHNIQUES UK LIMITED,A0090179,29/03/2023,OPS0332699,250,N,,N,N
Pendle Borough Council,Operational Services,Transport Related Expense,Tprt : Repairs : General,3105,VISION TECHNIQUES UK LIMITED,A0090179,29/03/2023,OPS0332699,250,N,,N,N
Pendle Borough Council,Operational Services,Transport Related Expense,Tprt : Repairs : General,3105,VISION TECHNIQUES UK LIMITED,A0090179,29/03/2023,OPS0332699,250,N,,N,N
Pendle Borough Council,Operational Services,Transport Related Expense,Tprt : Repairs : General,3105,VISION TECHNIQUES UK LIMITED,A0090179,29/03/2023,OPS0332699,250,N,,N,N
Pendle Borough Council,Operational Services,Transport Related Expense,Tprt : Repairs : General,3105,VISION TECHNIQUES UK LIMITED,A0090179,29/03/2023,OPS0332699,250,N,,N,N
Pendle Borough Council,Operational Services,Transport Related Expense,Tprt : Repairs : General,3105,VISION TECHNIQUES UK LIMITED,A0090179,29/03/2023,OPS0332699,250,N,,N,N
Pendle Borough Council,Operational Services,Transport Related Expense,Tprt : Repairs : General,3105,VISION TECHNIQUES UK LIMITED,A0090179,29/03/2023,OPS0332699,250,N,,N,N
Pendle Borough Council,Operational Services,Transport Related Expense,Tprt : Repairs : General,3105,VISION TECHNIQUES UK LIMITED,A0090179,29/03/2023,OPS0332699,250,N,,N,N
Pendle Borough Council,Operational Services,Transport Related Expense,Tprt : Repairs : General,3105,VISION TECHNIQUES UK LIMITED,A0090179,29/03/2023,OPS0332699,250,N,,N,N
Pendle Borough Council,Operational Services,Transport Related Expense,Tprt : Repairs : General,3105,VISION TECHNIQUES UK LIMITED,A0090179,29/03/2023,OPS0332699,250,N,,N,N
Pendle Borough Council,Operational Services,Transport Related Expense,Tprt : Repairs : General,3105,VISION TECHNIQUES UK LIMITED,A0090179,29/03/2023,OPS0332699,250,N,,N,N
Pendle Borough Council,Operational Services,Transport Related Expense,Tprt : Repairs : General,3105,VISION TECHNIQUES UK LIMITED,A0090179,29/03/2023,OPS0332699,250,N,,N,N
Pendle Borough Council,Operational Services,Transport Related Expense,Tprt : Repairs : General,3105,VISION TECHNIQUES UK LIMITED,A0090179,29/03/2023,OPS0332699,250,N,,N,N
Pendle Borough Council,Operational Services,Transport Related Expense,Tprt : Repairs : General,3105,VISION TECHNIQUES UK LIMITED,A0090179,29/03/2023,OPS0332699,250,N,,N,N
Pendle Borough Council,Engineering & Special Projects,Supplies and Services,Other Expenses,4705,HOLY TRINITY CHURCH,A0090264,09/03/2023,HED0332050,550,N,,N,N
Pendle Borough Council,Financial Services,Transport Related Expense,Diesel Oil,3202,FUELMATE LTD,A0090265,14/03/2023,AAS0332883,67.02,N,,N,N
Pendle Borough Council,Financial Services,Transport Related Expense,Diesel Oil,3202,FUELMATE LTD,A0090265,07/03/2023,AAS0332882,69.81,N,,N,N
Pendle Borough Council,Financial Services,Transport Related Expense,Diesel Oil,3202,FUELMATE LTD,A0090265,21/03/2023,AAS0332885,135.32,N,,N,N
Pendle Borough Council,Financial Services,Transport Related Expense,Diesel Oil,3202,FUELMATE LTD,A0090265,14/03/2023,AAS0332883,210.25,N,,N,N
Pendle Borough Council,Financial Services,Transport Related Expense,Diesel Oil,3202,FUELMATE LTD,A0090265,07/03/2023,AAS0332882,249.94,N,,N,N
Pendle Borough Council,Financial Services,Transport Related Expense,Diesel Oil,3202,FUELMATE LTD,A0090265,28/03/2023,AAS0332884,306.7,N,,N,N
Pendle Borough Council,Financial Services,Transport Related Expense,Diesel Oil,3202,FUELMATE LTD,A0090265,21/03/2023,AAS0332885,177.75,N,,N,N
Pendle Borough Council,Financial Services,Transport Related Expense,Diesel Oil,3202,FUELMATE LTD,A0090265,28/03/2023,AAS0332884,339.4,N,,N,N
Pendle Borough Council,Financial Services,Transport Related Expense,Diesel Oil,3202,FUELMATE LTD,A0090265,28/03/2023,AAS0332884,258.2,N,,N,N
Pendle Borough Council,Financial Services,Transport Related Expense,Diesel Oil,3202,FUELMATE LTD,A0090265,14/03/2023,AAS0332883,286.92,N,,N,N
Pendle Borough Council,Financial Services,Transport Related Expense,Diesel Oil,3202,FUELMATE LTD,A0090265,07/03/2023,AAS0332882,290.18,N,,N,N
Pendle Borough Council,Financial Services,Transport Related Expense,Diesel Oil,3202,FUELMATE LTD,A0090265,21/03/2023,AAS0332885,304.94,N,,N,N
Pendle Borough Council,Financial Services,Transport Related Expense,Diesel Oil,3202,FUELMATE LTD,A0090265,28/03/2023,AAS0332884,279.07,N,,N,N
Pendle Borough Council,Financial Services,Transport Related Expense,Diesel Oil,3202,FUELMATE LTD,A0090265,21/03/2023,AAS0332885,302.33,N,,N,N
Pendle Borough Council,Financial Services,Transport Related Expense,Diesel Oil,3202,FUELMATE LTD,A0090265,07/03/2023,AAS0332882,309.12,N,,N,N
Pendle Borough Council,Financial Services,Transport Related Expense,Diesel Oil,3202,FUELMATE LTD,A0090265,14/03/2023,AAS0332883,360.56,N,,N,N
Pendle Borough Council,Financial Services,Transport Related Expense,Diesel Oil,3202,FUELMATE LTD,A0090265,21/03/2023,AAS0332885,255.13,N,,N,N
Pendle Borough Council,Financial Services,Transport Related Expense,Diesel Oil,3202,FUELMATE LTD,A0090265,14/03/2023,AAS0332883,292,N,,N,N
Pendle Borough Council,Financial Services,Transport Related Expense,Diesel Oil,3202,FUELMATE LTD,A0090265,28/03/2023,AAS0332884,293.42,N,,N,N
Pendle Borough Council,Financial Services,Transport Related Expense,Diesel Oil,3202,FUELMATE LTD,A0090265,07/03/2023,AAS0332882,314.55,N,,N,N
Pendle Borough Council,Financial Services,Transport Related Expense,Diesel Oil,3202,FUELMATE LTD,A0090265,21/03/2023,AAS0332885,221.11,N,,N,N
Pendle Borough Council,Financial Services,Transport Related Expense,Diesel Oil,3202,FUELMATE LTD,A0090265,14/03/2023,AAS0332883,302.79,N,,N,N
Pendle Borough Council,Financial Services,Transport Related Expense,Diesel Oil,3202,FUELMATE LTD,A0090265,28/03/2023,AAS0332884,320.6,N,,N,N
Pendle Borough Council,Financial Services,Transport Related Expense,Diesel Oil,3202,FUELMATE LTD,A0090265,07/03/2023,AAS0332882,335.91,N,,N,N
Pendle Borough Council,Financial Services,Transport Related Expense,Diesel Oil,3202,FUELMATE LTD,A0090265,14/03/2023,AAS0332883,107.01,N,,N,N
Pendle Borough Council,Financial Services,Transport Related Expense,Diesel Oil,3202,FUELMATE LTD,A0090265,28/03/2023,AAS0332884,212.36,N,,N,N
Pendle Borough Council,Financial Services,Transport Related Expense,Diesel Oil,3202,FUELMATE LTD,A0090265,07/03/2023,AAS0332882,278.27,N,,N,N
Pendle Borough Council,Financial Services,Transport Related Expense,Diesel Oil,3202,FUELMATE LTD,A0090265,21/03/2023,AAS0332885,279.84,N,,N,N
Pendle Borough Council,Financial Services,Transport Related Expense,Diesel Oil,3202,FUELMATE LTD,A0090265,07/03/2023,AAS0332882,55.47,N,,N,N
Pendle Borough Council,Financial Services,Transport Related Expense,Diesel Oil,3202,FUELMATE LTD,A0090265,14/03/2023,AAS0332883,87.48,N,,N,N
Pendle Borough Council,Financial Services,Transport Related Expense,Diesel Oil,3202,FUELMATE LTD,A0090265,28/03/2023,AAS0332884,216.66,N,,N,N
Pendle Borough Council,Financial Services,Transport Related Expense,Diesel Oil,3202,FUELMATE LTD,A0090265,28/03/2023,AAS0332884,234.7,N,,N,N
Pendle Borough Council,Financial Services,Transport Related Expense,Diesel Oil,3202,FUELMATE LTD,A0090265,21/03/2023,AAS0332885,282.99,N,,N,N
Pendle Borough Council,Financial Services,Transport Related Expense,Diesel Oil,3202,FUELMATE LTD,A0090265,07/03/2023,AAS0332882,287.74,N,,N,N
Pendle Borough Council,Financial Services,Transport Related Expense,Diesel Oil,3202,FUELMATE LTD,A0090265,14/03/2023,AAS0332883,401.04,N,,N,N
Pendle Borough Council,Financial Services,Transport Related Expense,Diesel Oil,3202,FUELMATE LTD,A0090265,28/03/2023,AAS0332884,314.6,N,,N,N
Pendle Borough Council,Financial Services,Transport Related Expense,Diesel Oil,3202,FUELMATE LTD,A0090265,14/03/2023,AAS0332883,352.46,N,,N,N
Pendle Borough Council,Financial Services,Transport Related Expense,Diesel Oil,3202,FUELMATE LTD,A0090265,21/03/2023,AAS0332885,359.13,N,,N,N
Pendle Borough Council,Financial Services,Transport Related Expense,Diesel Oil,3202,FUELMATE LTD,A0090265,07/03/2023,AAS0332882,399.58,N,,N,N
Pendle Borough Council,Financial Services,Transport Related Expense,Diesel Oil,3202,FUELMATE LTD,A0090265,07/03/2023,AAS0332882,104.66,N,,N,N
Pendle Borough Council,Financial Services,Transport Related Expense,Diesel Oil,3202,FUELMATE LTD,A0090265,14/03/2023,AAS0332883,128.12,N,,N,N
Pendle Borough Council,Financial Services,Transport Related Expense,Diesel Oil,3202,FUELMATE LTD,A0090265,21/03/2023,AAS0332885,155.01,N,,N,N
Pendle Borough Council,Financial Services,Transport Related Expense,Diesel Oil,3202,FUELMATE LTD,A0090265,28/03/2023,AAS0332884,252.97,N,,N,N
Pendle Borough Council,Financial Services,Transport Related Expense,Diesel Oil,3202,FUELMATE LTD,A0090265,07/03/2023,AAS0332882,397.84,N,,N,N
Pendle Borough Council,Financial Services,Transport Related Expense,Diesel Oil,3202,FUELMATE LTD,A0090265,21/03/2023,AAS0332885,194.27,N,,N,N
Pendle Borough Council,Financial Services,Transport Related Expense,Diesel Oil,3202,FUELMATE LTD,A0090265,07/03/2023,AAS0332882,227.38,N,,N,N
Pendle Borough Council,Financial Services,Transport Related Expense,Diesel Oil,3202,FUELMATE LTD,A0090265,14/03/2023,AAS0332883,240.81,N,,N,N
Pendle Borough Council,Financial Services,Transport Related Expense,Diesel Oil,3202,FUELMATE LTD,A0090265,28/03/2023,AAS0332884,295.17,N,,N,N
Pendle Borough Council,Financial Services,Transport Related Expense,Diesel Oil,3202,FUELMATE LTD,A0090265,28/03/2023,AAS0332884,175.44,N,,N,N
Pendle Borough Council,Financial Services,Transport Related Expense,Diesel Oil,3202,FUELMATE LTD,A0090265,07/03/2023,AAS0332882,193.33,N,,N,N
Pendle Borough Council,Financial Services,Transport Related Expense,Diesel Oil,3202,FUELMATE LTD,A0090265,21/03/2023,AAS0332885,208.98,N,,N,N
Pendle Borough Council,Financial Services,Transport Related Expense,Diesel Oil,3202,FUELMATE LTD,A0090265,14/03/2023,AAS0332883,415.91,N,,N,N
Pendle Borough Council,Financial Services,Transport Related Expense,Diesel Oil,3202,FUELMATE LTD,A0090265,14/03/2023,AAS0332883,256.31,N,,N,N
Pendle Borough Council,Financial Services,Transport Related Expense,Diesel Oil,3202,FUELMATE LTD,A0090265,28/03/2023,AAS0332884,319.67,N,,N,N
Pendle Borough Council,Financial Services,Transport Related Expense,Diesel Oil,3202,FUELMATE LTD,A0090265,21/03/2023,AAS0332885,372.12,N,,N,N
Pendle Borough Council,Financial Services,Transport Related Expense,Diesel Oil,3202,FUELMATE LTD,A0090265,07/03/2023,AAS0332882,530.2,N,,N,N
Pendle Borough Council,Financial Services,Transport Related Expense,Diesel Oil,3202,FUELMATE LTD,A0090265,21/03/2023,AAS0332885,183.98,N,,N,N
Pendle Borough Council,Financial Services,Transport Related Expense,Diesel Oil,3202,FUELMATE LTD,A0090265,14/03/2023,AAS0332883,237.81,N,,N,N
Pendle Borough Council,Financial Services,Transport Related Expense,Diesel Oil,3202,FUELMATE LTD,A0090265,07/03/2023,AAS0332882,263.65,N,,N,N
Pendle Borough Council,Financial Services,Transport Related Expense,Diesel Oil,3202,FUELMATE LTD,A0090265,28/03/2023,AAS0332884,267.05,N,,N,N
Pendle Borough Council,Financial Services,Transport Related Expense,Diesel Oil,3202,FUELMATE LTD,A0090265,14/03/2023,AAS0332883,129.66,N,,N,N
Pendle Borough Council,Financial Services,Transport Related Expense,Diesel Oil,3202,FUELMATE LTD,A0090265,07/03/2023,AAS0332882,208.91,N,,N,N
Pendle Borough Council,Financial Services,Transport Related Expense,Diesel Oil,3202,FUELMATE LTD,A0090265,28/03/2023,AAS0332884,221.79,N,,N,N
Pendle Borough Council,Financial Services,Transport Related Expense,Diesel Oil,3202,FUELMATE LTD,A0090265,21/03/2023,AAS0332885,254.33,N,,N,N
Pendle Borough Council,Financial Services,Transport Related Expense,Diesel Oil,3202,FUELMATE LTD,A0090265,14/03/2023,AAS0332883,66.87,N,,N,N
Pendle Borough Council,Financial Services,Transport Related Expense,Diesel Oil,3202,FUELMATE LTD,A0090265,28/03/2023,AAS0332884,126.71,N,,N,N
Pendle Borough Council,Financial Services,Transport Related Expense,Diesel Oil,3202,FUELMATE LTD,A0090265,21/03/2023,AAS0332885,153.64,N,,N,N
Pendle Borough Council,Financial Services,Transport Related Expense,Diesel Oil,3202,FUELMATE LTD,A0090265,07/03/2023,AAS0332882,197.53,N,,N,N
Pendle Borough Council,Financial Services,Transport Related Expense,Diesel Oil,3202,FUELMATE LTD,A0090265,14/03/2023,AAS0332883,51.91,N,,N,N
Pendle Borough Council,Financial Services,Transport Related Expense,Diesel Oil,3202,FUELMATE LTD,A0090265,07/03/2023,AAS0332882,65.36,N,,N,N
Pendle Borough Council,Financial Services,Transport Related Expense,Diesel Oil,3202,FUELMATE LTD,A0090265,21/03/2023,AAS0332885,180.69,N,,N,N
Pendle Borough Council,Financial Services,Transport Related Expense,Diesel Oil,3202,FUELMATE LTD,A0090265,28/03/2023,AAS0332884,188.8,N,,N,N
Pendle Borough Council,Financial Services,Transport Related Expense,Diesel Oil,3202,FUELMATE LTD,A0090265,28/03/2023,AAS0332884,48.31,N,,N,N
Pendle Borough Council,Financial Services,Transport Related Expense,Diesel Oil,3202,FUELMATE LTD,A0090265,07/03/2023,AAS0332882,70.07,N,,N,N
Pendle Borough Council,Financial Services,Transport Related Expense,Diesel Oil,3202,FUELMATE LTD,A0090265,28/03/2023,AAS0332884,70.14,N,,N,N
Pendle Borough Council,Financial Services,Transport Related Expense,Diesel Oil,3202,FUELMATE LTD,A0090265,14/03/2023,AAS0332883,97.75,N,,N,N
Pendle Borough Council,Financial Services,Transport Related Expense,Diesel Oil,3202,FUELMATE LTD,A0090265,28/03/2023,AAS0332884,56.6,N,,N,N
Pendle Borough Council,Financial Services,Transport Related Expense,Diesel Oil,3202,FUELMATE LTD,A0090265,21/03/2023,AAS0332885,74.05,N,,N,N
Pendle Borough Council,Financial Services,Transport Related Expense,Diesel Oil,3202,FUELMATE LTD,A0090265,07/03/2023,AAS0332882,113.83,N,,N,N
Pendle Borough Council,Financial Services,Transport Related Expense,Diesel Oil,3202,FUELMATE LTD,A0090265,21/03/2023,AAS0332885,58.06,N,,N,N
Pendle Borough Council,Financial Services,Transport Related Expense,Diesel Oil,3202,FUELMATE LTD,A0090265,28/03/2023,AAS0332884,67.79,N,,N,N
Pendle Borough Council,Financial Services,Transport Related Expense,Diesel Oil,3202,FUELMATE LTD,A0090265,14/03/2023,AAS0332883,74.13,N,,N,N
Pendle Borough Council,Financial Services,Transport Related Expense,Diesel Oil,3202,FUELMATE LTD,A0090265,07/03/2023,AAS0332882,133.95,N,,N,N
Pendle Borough Council,Financial Services,Transport Related Expense,Diesel Oil,3202,FUELMATE LTD,A0090265,28/03/2023,AAS0332884,68.04,N,,N,N
Pendle Borough Council,Financial Services,Transport Related Expense,Diesel Oil,3202,FUELMATE LTD,A0090265,07/03/2023,AAS0332882,96.43,N,,N,N
Pendle Borough Council,Financial Services,Transport Related Expense,Diesel Oil,3202,FUELMATE LTD,A0090265,21/03/2023,AAS0332885,98.58,N,,N,N
Pendle Borough Council,Financial Services,Transport Related Expense,Diesel Oil,3202,FUELMATE LTD,A0090265,14/03/2023,AAS0332883,105.89,N,,N,N
Pendle Borough Council,Financial Services,Transport Related Expense,Diesel Oil,3202,FUELMATE LTD,A0090265,28/03/2023,AAS0332884,50.01,N,,N,N
Pendle Borough Council,Financial Services,Transport Related Expense,Diesel Oil,3202,FUELMATE LTD,A0090265,14/03/2023,AAS0332883,58.37,N,,N,N
Pendle Borough Council,Financial Services,Transport Related Expense,Diesel Oil,3202,FUELMATE LTD,A0090265,21/03/2023,AAS0332885,62.37,N,,N,N
Pendle Borough Council,Financial Services,Transport Related Expense,Diesel Oil,3202,FUELMATE LTD,A0090265,07/03/2023,AAS0332882,64.38,N,,N,N
Pendle Borough Council,Financial Services,Transport Related Expense,Diesel Oil,3202,FUELMATE LTD,A0090265,14/03/2023,AAS0332883,48.12,N,,N,N
Pendle Borough Council,Financial Services,Transport Related Expense,Diesel Oil,3202,FUELMATE LTD,A0090265,21/03/2023,AAS0332885,67.88,N,,N,N
Pendle Borough Council,Financial Services,Transport Related Expense,Diesel Oil,3202,FUELMATE LTD,A0090265,07/03/2023,AAS0332882,75.69,N,,N,N
Pendle Borough Council,Financial Services,Transport Related Expense,Diesel Oil,3202,FUELMATE LTD,A0090265,28/03/2023,AAS0332884,88.24,N,,N,N
Pendle Borough Council,Financial Services,Transport Related Expense,Diesel Oil,3202,FUELMATE LTD,A0090265,21/03/2023,AAS0332885,66.8,N,,N,N
Pendle Borough Council,Financial Services,Transport Related Expense,Diesel Oil,3202,FUELMATE LTD,A0090265,14/03/2023,AAS0332883,71.61,N,,N,N
Pendle Borough Council,Financial Services,Transport Related Expense,Diesel Oil,3202,FUELMATE LTD,A0090265,28/03/2023,AAS0332884,112.49,N,,N,N
Pendle Borough Council,Financial Services,Transport Related Expense,Diesel Oil,3202,FUELMATE LTD,A0090265,07/03/2023,AAS0332882,138.59,N,,N,N
Pendle Borough Council,Financial Services,Transport Related Expense,Diesel Oil,3202,FUELMATE LTD,A0090265,14/03/2023,AAS0332883,69.34,N,,N,N
Pendle Borough Council,Financial Services,Transport Related Expense,Diesel Oil,3202,FUELMATE LTD,A0090265,07/03/2023,AAS0332882,70.92,N,,N,N
Pendle Borough Council,Financial Services,Transport Related Expense,Diesel Oil,3202,FUELMATE LTD,A0090265,28/03/2023,AAS0332884,40.51,N,,N,N
Pendle Borough Council,Financial Services,Transport Related Expense,Diesel Oil,3202,FUELMATE LTD,A0090265,14/03/2023,AAS0332883,43.06,N,,N,N
Pendle Borough Council,Financial Services,Transport Related Expense,Diesel Oil,3202,FUELMATE LTD,A0090265,28/03/2023,AAS0332884,49.02,N,,N,N
Pendle Borough Council,Financial Services,Transport Related Expense,Diesel Oil,3202,FUELMATE LTD,A0090265,14/03/2023,AAS0332883,40.34,N,,N,N
Pendle Borough Council,Financial Services,Transport Related Expense,Diesel Oil,3202,FUELMATE LTD,A0090265,28/03/2023,AAS0332884,45.86,N,,N,N
Pendle Borough Council,Financial Services,Transport Related Expense,Diesel Oil,3202,FUELMATE LTD,A0090265,14/03/2023,AAS0332883,46.24,N,,N,N
Pendle Borough Council,Financial Services,Transport Related Expense,Diesel Oil,3202,FUELMATE LTD,A0090265,28/03/2023,AAS0332884,25.31,N,,N,N
Pendle Borough Council,Financial Services,Transport Related Expense,Diesel Oil,3202,FUELMATE LTD,A0090265,14/03/2023,AAS0332883,33.56,N,,N,N
Pendle Borough Council,Financial Services,Transport Related Expense,Diesel Oil,3202,FUELMATE LTD,A0090265,07/03/2023,AAS0332882,49.52,N,,N,N
Pendle Borough Council,Financial Services,Transport Related Expense,Diesel Oil,3202,FUELMATE LTD,A0090265,28/03/2023,AAS0332884,44.15,N,,N,N
Pendle Borough Council,Financial Services,Transport Related Expense,Diesel Oil,3202,FUELMATE LTD,A0090265,21/03/2023,AAS0332885,45.92,N,,N,N
Pendle Borough Council,Financial Services,Transport Related Expense,Diesel Oil,3202,FUELMATE LTD,A0090265,21/03/2023,AAS0332885,65.34,N,,N,N
Pendle Borough Council,Financial Services,Transport Related Expense,Diesel Oil,3202,FUELMATE LTD,A0090265,07/03/2023,AAS0332882,68.45,N,,N,N
Pendle Borough Council,Financial Services,Transport Related Expense,Diesel Oil,3202,FUELMATE LTD,A0090265,28/03/2023,AAS0332884,69.6,N,,N,N
Pendle Borough Council,Financial Services,Transport Related Expense,Diesel Oil,3202,FUELMATE LTD,A0090265,14/03/2023,AAS0332883,57.72,N,,N,N
Pendle Borough Council,Financial Services,Transport Related Expense,Diesel Oil,3202,FUELMATE LTD,A0090265,21/03/2023,AAS0332885,62.24,N,,N,N
Pendle Borough Council,Financial Services,Transport Related Expense,Diesel Oil,3202,FUELMATE LTD,A0090265,14/03/2023,AAS0332883,63.05,N,,N,N
Pendle Borough Council,Financial Services,Transport Related Expense,Diesel Oil,3202,FUELMATE LTD,A0090265,28/03/2023,AAS0332884,64.51,N,,N,N
Pendle Borough Council,Financial Services,Transport Related Expense,Diesel Oil,3202,FUELMATE LTD,A0090265,21/03/2023,AAS0332885,75.62,N,,N,N
Pendle Borough Council,Financial Services,Transport Related Expense,Diesel Oil,3202,FUELMATE LTD,A0090265,07/03/2023,AAS0332882,75.66,N,,N,N
Pendle Borough Council,Financial Services,Transport Related Expense,Diesel Oil,3202,FUELMATE LTD,A0090265,07/03/2023,AAS0332882,59.73,N,,N,N
Pendle Borough Council,Financial Services,Transport Related Expense,Diesel Oil,3202,FUELMATE LTD,A0090265,21/03/2023,AAS0332885,69.5,N,,N,N
Pendle Borough Council,Financial Services,Transport Related Expense,Diesel Oil,3202,FUELMATE LTD,A0090265,07/03/2023,AAS0332882,72.26,N,,N,N
Pendle Borough Council,Financial Services,Transport Related Expense,Diesel Oil,3202,FUELMATE LTD,A0090265,14/03/2023,AAS0332883,43.64,N,,N,N
Pendle Borough Council,Financial Services,Transport Related Expense,Diesel Oil,3202,FUELMATE LTD,A0090265,14/03/2023,AAS0332883,40.64,N,,N,N
Pendle Borough Council,Financial Services,Transport Related Expense,Diesel Oil,3202,FUELMATE LTD,A0090265,28/03/2023,AAS0332884,44.02,N,,N,N
Pendle Borough Council,Financial Services,Transport Related Expense,Diesel Oil,3202,FUELMATE LTD,A0090265,14/03/2023,AAS0332883,128.08,N,,N,N
Pendle Borough Council,Operational Services,Premises Related Expense,Water & Sewerage,2501,AQUAM WATER SERVICES LIMITED,A0090390,09/03/2023,OPS0332016,1.49,N,,N,N
Pendle Borough Council,Operational Services,Supplies and Services,Publicity & advertisement,4704,FONEMEDIA LIMITED,A0090401,29/03/2023,OPS0332593,300,N,,N,N
Pendle Borough Council,Engineering & Special Projects,Supplies and Services,Publicity & advertisement,4704,FULLY FORMED FILMS LIMITED,A0090447,29/03/2023,HED0332686,1200,N,,N,N
Pendle Borough Council,Engineering & Special Projects,Supplies and Services,Publicity & advertisement,4704,FULLY FORMED FILMS LIMITED,A0090447,29/03/2023,HED0332685,7000,N,,N,N
Pendle Borough Council,Operational Services,Transport Related Expense,Tprt : Repairs : General,3105,JOHN MACADAM & SON (ACCIDENT REPAIRS) LTD,A0090495,29/03/2023,OPS0332478,1000,N,,N,N
Pendle Borough Council,Operational Services,Transport Related Expense,Tprt : Repairs : General,3105,JOHN MACADAM & SON (ACCIDENT REPAIRS) LTD,A0090495,09/03/2023,OPS0332015,1000,N,,N,N
Pendle Borough Council,Financial Services,Supplies and Services,Newspapers & Periodicals,4305,LANCASHIRE BUSINESS VIEW,A0090521,01/03/2023,AAS0332950,2.5,N,,N,N
Pendle Borough Council,Engineering & Special Projects,Supplies and Services,Consultants Fees,4401,LANCASHIRE BUSINESS VIEW,A0090521,23/03/2023,HED0332337,450,N,,N,N
Pendle Borough Council,Engineering & Special Projects,Supplies and Services,Other Expenses,4705,ST JOHN WITH ST PHILIP PCC,A0090537,16/03/2023,HED0332120,8333,N,,N,N
Pendle Borough Council,Engineering & Special Projects,Supplies and Services,Other Expenses,4705,WATERSIDE NEIGHBOURHOOD ACTION GROUP,A0090662,29/03/2023,HED0332684,1577,N,,N,N
Pendle Borough Council,Engineering & Special Projects,Supplies and Services,Other Expenses,4705,WATERSIDE NEIGHBOURHOOD ACTION GROUP,A0090662,29/03/2023,HED0332684,623,N,,N,N
Pendle Borough Council,Parks & Recreation Services,Premises Related Expense,Grounds : R & M : Day to Day : Routine,2101,TREETOPS DE-VEGETATION SERVICES LIMITED,A0090701,23/03/2023,PCO0332366,1500,N,,N,N
Pendle Borough Council,Parks & Recreation Services,Premises Related Expense,Grounds : R & M : Day to Day : Routine,2101,TREETOPS DE-VEGETATION SERVICES LIMITED,A0090701,29/03/2023,PCO0332447,6800,N,,N,N
Pendle Borough Council,Parks & Recreation Services,Premises Related Expense,Grounds : R & M : Day to Day : Routine,2101,TREETOPS DE-VEGETATION SERVICES LIMITED,A0090701,23/03/2023,PCO0332365,1000,N,,N,N
Pendle Borough Council,Revenues Services,Supplies and Services,Consultants Fees,4401,PS&P LTD,A0090720,29/03/2023,TRE0332486,24,N,,N,N
Pendle Borough Council,Engineering & Special Projects,Supplies and Services,Other Expenses,4705,PWCGBA,A0090796,02/03/2023,HED0331824,2974,N,,N,N
Pendle Borough Council,Financial Services,Premises Related Expense,Gas,2202,GAZPROM ENERGY,A0090838,27/03/2023,AAS0332933,17.71,N,,N,N
Pendle Borough Council,Financial Services,Premises Related Expense,Gas,2202,GAZPROM ENERGY,A0090838,27/03/2023,AAS0332934,55.31,N,,N,N
Pendle Borough Council,Financial Services,Premises Related Expense,Gas,2202,GAZPROM ENERGY,A0090838,27/03/2023,AAS0332946,165.46,N,,N,N
Pendle Borough Council,Financial Services,Premises Related Expense,Gas,2202,GAZPROM ENERGY,A0090838,27/03/2023,AAS0332947,208.83,N,,N,N
Pendle Borough Council,Financial Services,Premises Related Expense,Gas,2202,GAZPROM ENERGY,A0090838,27/03/2023,AAS0332941,49.46,N,,N,N
Pendle Borough Council,Financial Services,Premises Related Expense,Gas,2202,GAZPROM ENERGY,A0090838,27/03/2023,AAS0332945,195.33,N,,N,N
Pendle Borough Council,Financial Services,Premises Related Expense,Gas,2202,GAZPROM ENERGY,A0090838,27/03/2023,AAS0332948,184.5,N,,N,N
Pendle Borough Council,Financial Services,Premises Related Expense,Gas,2202,GAZPROM ENERGY,A0090838,27/03/2023,AAS0332930,310.13,N,,N,N
Pendle Borough Council,Financial Services,Premises Related Expense,Gas,2202,GAZPROM ENERGY,A0090838,27/03/2023,AAS0332935,47.89,N,,N,N
Pendle Borough Council,Financial Services,Premises Related Expense,Gas,2202,GAZPROM ENERGY,A0090838,27/03/2023,AAS0332932,91.66,N,,N,N
Pendle Borough Council,Financial Services,Premises Related Expense,Gas,2202,GAZPROM ENERGY,A0090838,27/03/2023,AAS0332931,28.12,N,,N,N
Pendle Borough Council,Financial Services,Premises Related Expense,Gas,2202,GAZPROM ENERGY,A0090838,27/03/2023,AAS0332943,385.12,N,,N,N
Pendle Borough Council,Financial Services,Premises Related Expense,Gas,2202,GAZPROM ENERGY,A0090838,27/03/2023,AAS0332938,139.14,N,,N,N
Pendle Borough Council,Parks & Recreation Services,Transport Related Expense,Tprt : Repairs : General,3105,SUPER AUTO SAVER,A0090951,23/03/2023,PCO0332379,10.02,N,,N,N
Pendle Borough Council,Parks & Recreation Services,Transport Related Expense,Tprt : Repairs : General,3105,SUPER AUTO SAVER,A0090951,29/03/2023,PCO0332648,13.5,N,,N,N
Pendle Borough Council,Parks & Recreation Services,Transport Related Expense,Tprt : Repairs : General,3105,SUPER AUTO SAVER,A0090951,16/03/2023,PCO0332155,20,N,,N,N
Pendle Borough Council,Parks & Recreation Services,Transport Related Expense,Tprt : Repairs : General,3105,SUPER AUTO SAVER,A0090951,16/03/2023,PCO0332296,29.15,N,,N,N
Pendle Borough Council,Engineering & Special Projects,Supplies and Services,Court Fees,4403,SHERGROUP LEGAL,A0091139,23/03/2023,HED0332334,71,N,,N,N
Pendle Borough Council,Engineering & Special Projects,Supplies and Services,Court Fees,4403,SHERGROUP LEGAL,A0091139,23/03/2023,HED0332391,71,N,,N,N
Pendle Borough Council,Engineering & Special Projects,Supplies and Services,Other Expenses,4705,TRAWDEN GARDEN FESTIVAL,A0091183,23/03/2023,HED0332405,2000,N,,N,N
Pendle Borough Council,Information Services,Supplies and Services,EFM : Office and computer equipment,4002,SOFTCAT,A0091298,16/03/2023,ITS0332182,7.3,N,,N,N
Pendle Borough Council,Operational Services,Transport Related Expense,Tprt : Repairs : General,3105,QUARTIX LIMITED,A0091353,02/03/2023,OPS0331892,41.7,N,,N,N
Pendle Borough Council,Operational Services,Transport Related Expense,Tprt : Repairs : General,3105,QUARTIX LIMITED,A0091353,02/03/2023,OPS0331892,41.7,N,,N,N
Pendle Borough Council,Operational Services,Transport Related Expense,Tprt : Repairs : General,3105,QUARTIX LIMITED,A0091353,02/03/2023,OPS0331892,41.7,N,,N,N
Pendle Borough Council,Operational Services,Transport Related Expense,Tprt : Repairs : General,3105,QUARTIX LIMITED,A0091353,02/03/2023,OPS0331892,41.7,N,,N,N
Pendle Borough Council,Operational Services,Transport Related Expense,Tprt : Repairs : General,3105,QUARTIX LIMITED,A0091353,02/03/2023,OPS0331892,41.7,N,,N,N
Pendle Borough Council,Operational Services,Transport Related Expense,Tprt : Repairs : General,3105,QUARTIX LIMITED,A0091353,02/03/2023,OPS0331892,41.7,N,,N,N
Pendle Borough Council,Operational Services,Transport Related Expense,Tprt : Repairs : General,3105,QUARTIX LIMITED,A0091353,02/03/2023,OPS0331892,41.7,N,,N,N
Pendle Borough Council,Operational Services,Transport Related Expense,Tprt : Repairs : General,3105,QUARTIX LIMITED,A0091353,02/03/2023,OPS0331892,41.7,N,,N,N
Pendle Borough Council,Operational Services,Transport Related Expense,Tprt : Repairs : General,3105,QUARTIX LIMITED,A0091353,02/03/2023,OPS0331892,41.7,N,,N,N
Pendle Borough Council,Operational Services,Transport Related Expense,Tprt : Repairs : General,3105,QUARTIX LIMITED,A0091353,02/03/2023,OPS0331892,41.7,N,,N,N
Pendle Borough Council,Operational Services,Transport Related Expense,Tprt : Repairs : General,3105,QUARTIX LIMITED,A0091353,02/03/2023,OPS0331892,41.7,N,,N,N
Pendle Borough Council,Operational Services,Transport Related Expense,Tprt : Repairs : General,3105,QUARTIX LIMITED,A0091353,02/03/2023,OPS0331892,41.7,N,,N,N
Pendle Borough Council,Operational Services,Transport Related Expense,Tprt : Repairs : General,3105,QUARTIX LIMITED,A0091353,02/03/2023,OPS0331892,41.7,N,,N,N
Pendle Borough Council,Operational Services,Transport Related Expense,Tprt : Repairs : General,3105,QUARTIX LIMITED,A0091353,02/03/2023,OPS0331892,41.7,N,,N,N
Pendle Borough Council,Operational Services,Transport Related Expense,Tprt : Repairs : General,3105,QUARTIX LIMITED,A0091353,02/03/2023,OPS0331892,41.7,N,,N,N
Pendle Borough Council,Engineering & Special Projects,Capital Costs,Ren Grant : 1996 Act,CH22,THE EXCELLENT RAMP SYSTEM LIMITED,A0091363,09/03/2023,HED0331925,5700,N,,N,N
Pendle Borough Council,Operational Services,Supplies and Services,Miscellaneous : Other,4707,PERMISERV LIMITED,A0091396,09/03/2023,OPS0332014,15.64,N,,N,N
Pendle Borough Council,Parks & Recreation Services,Premises Related Expense,Grounds : R & M : Day to Day : Routine,2101,MARTINS COUNTRYSIDE CONTRACTING LIMITED,A0091415,09/03/2023,PCO0332026,150,N,,N,N
Pendle Borough Council,Parks & Recreation Services,Premises Related Expense,Grounds : R & M : Day to Day : Routine,2101,MARTINS COUNTRYSIDE CONTRACTING LIMITED,A0091415,09/03/2023,PCO0332025,150,N,,N,N
Pendle Borough Council,Engineering & Special Projects,Supplies and Services,Other Expenses,4705,MARTINS COUNTRYSIDE CONTRACTING LIMITED,A0091415,02/03/2023,HED0331174,322,N,,N,N
Pendle Borough Council,Information Services,Supplies and Services,EFM : Office and computer equipment,4002,STORM TECHNOLOGIES LIMITED,A0091493,02/03/2023,ITS0331882,162.32,N,,N,N
Pendle Borough Council,Information Services,Supplies and Services,EFM : Other Equipment,4003,STORM TECHNOLOGIES LIMITED,A0091493,16/03/2023,ITS0332181,57.61,N,,N,N
Pendle Borough Council,Information Services,Capital Costs,Capital : Payments,cd14,STORM TECHNOLOGIES LIMITED,A0091493,16/03/2023,ITS0332184,240.16,N,,N,N
Pendle Borough Council,Engineering & Special Projects,Supplies and Services,Other Expenses,4705,LIDGETT & BEYOND,A0091512,23/03/2023,HED0332403,198.92,N,,N,N
Pendle Borough Council,Engineering & Special Projects,Supplies and Services,Other Expenses,4705,LIDGETT & BEYOND,A0091512,29/03/2023,HED0332631,7855,N,,N,N
Pendle Borough Council,Engineering & Special Projects,Supplies and Services,Other Expenses,4705,LIDGETT & BEYOND,A0091512,09/03/2023,HED0331976,125.87,N,,N,N
Pendle Borough Council,Engineering & Special Projects,Supplies and Services,Other Expenses,4705,LIDGETT & BEYOND,A0091512,23/03/2023,HED0332403,2586.08,N,,N,N
Pendle Borough Council,Planning & Building Control,,Fees Income : Non-VATable,9302,PORTALPLANQUEST LIMITED,A0091554,23/03/2023,PBC0332350,206,N,,N,N
Pendle Borough Council,Parks & Recreation Services,Agency Staff,Emp : Basic Wages,1001,NW RECRUITMENT SERVICES LIMITED,A0091588,02/03/2023,PCO0331858,988.68,N,,N,N
Pendle Borough Council,Parks & Recreation Services,Agency Staff,Emp : Basic Wages,1001,NW RECRUITMENT SERVICES LIMITED,A0091588,16/03/2023,PCO0332154,1303.26,N,,N,N
Pendle Borough Council,Parks & Recreation Services,Agency Staff,Emp : Basic Wages,1001,NW RECRUITMENT SERVICES LIMITED,A0091588,29/03/2023,PCO0332451,1587.88,N,,N,N
Pendle Borough Council,Parks & Recreation Services,Agency Staff,Emp : Basic Wages,1001,NW RECRUITMENT SERVICES LIMITED,A0091588,09/03/2023,PCO0332007,1684.38,N,,N,N
Pendle Borough Council,Parks & Recreation Services,Agency Staff,Emp : Agency Wages,1004,NW RECRUITMENT SERVICES LIMITED,A0091588,29/03/2023,PCO0332452,109.42,N,,N,N
Pendle Borough Council,Parks & Recreation Services,Agency Staff,Emp : Agency Wages,1004,NW RECRUITMENT SERVICES LIMITED,A0091588,02/03/2023,PCO0331843,258.97,N,,N,N
Pendle Borough Council,Parks & Recreation Services,Agency Staff,Emp : Agency Wages,1004,NW RECRUITMENT SERVICES LIMITED,A0091588,02/03/2023,PCO0331857,269.92,N,,N,N
Pendle Borough Council,Parks & Recreation Services,Agency Staff,Emp : Agency Wages,1004,NW RECRUITMENT SERVICES LIMITED,A0091588,16/03/2023,PCO0332188,335.57,N,,N,N
Pendle Borough Council,Operational Services,Agency Staff,Emp : Agency Wages,1004,NW RECRUITMENT SERVICES LIMITED,A0091588,23/03/2023,OPS0332352,3082.56,N,,N,N
Pendle Borough Council,Operational Services,Agency Staff,Emp : Agency Wages,1004,NW RECRUITMENT SERVICES LIMITED,A0091588,09/03/2023,OPS0331994,3194.09,N,,N,N
Pendle Borough Council,Operational Services,Agency Staff,Emp : Agency Wages,1004,NW RECRUITMENT SERVICES LIMITED,A0091588,09/03/2023,OPS0331995,3469.75,N,,N,N
Pendle Borough Council,Operational Services,Agency Staff,Emp : Agency Wages,1004,NW RECRUITMENT SERVICES LIMITED,A0091588,09/03/2023,OPS0331355,3563.5,N,,N,N
Pendle Borough Council,Operational Services,Agency Staff,Emp : Agency Wages,1004,NW RECRUITMENT SERVICES LIMITED,A0091588,29/03/2023,OPS0332666,3647.26,N,,N,N
Pendle Borough Council,Operational Services,Agency Staff,Emp : Agency Wages,1004,NW RECRUITMENT SERVICES LIMITED,A0091588,29/03/2023,OPS0332667,3728.5,N,,N,N
Pendle Borough Council,Operational Services,Agency Staff,Emp : Agency Wages,1004,NW RECRUITMENT SERVICES LIMITED,A0091588,29/03/2023,OPS0332666,1131.9,N,,N,N
Pendle Borough Council,Operational Services,Agency Staff,Emp : Agency Wages,1004,NW RECRUITMENT SERVICES LIMITED,A0091588,09/03/2023,OPS0331355,1659.82,N,,N,N
Pendle Borough Council,Operational Services,Agency Staff,Emp : Agency Wages,1004,NW RECRUITMENT SERVICES LIMITED,A0091588,09/03/2023,OPS0331994,1843.24,N,,N,N
Pendle Borough Council,Operational Services,Agency Staff,Emp : Agency Wages,1004,NW RECRUITMENT SERVICES LIMITED,A0091588,09/03/2023,OPS0331995,2582.71,N,,N,N
Pendle Borough Council,Operational Services,Agency Staff,Emp : Agency Wages,1004,NW RECRUITMENT SERVICES LIMITED,A0091588,29/03/2023,OPS0332667,2676.46,N,,N,N
Pendle Borough Council,Operational Services,Agency Staff,Emp : Agency Wages,1004,NW RECRUITMENT SERVICES LIMITED,A0091588,23/03/2023,OPS0332352,2744.51,N,,N,N
Pendle Borough Council,Operational Services,Agency Staff,Emp : Agency Wages,1004,NW RECRUITMENT SERVICES LIMITED,A0091588,09/03/2023,OPS0331995,1080.35,N,,N,N
Pendle Borough Council,Operational Services,Agency Staff,Emp : Agency Wages,1004,NW RECRUITMENT SERVICES LIMITED,A0091588,09/03/2023,OPS0331355,1136.53,N,,N,N
Pendle Borough Council,Operational Services,Agency Staff,Emp : Agency Wages,1004,NW RECRUITMENT SERVICES LIMITED,A0091588,23/03/2023,OPS0332352,1197,N,,N,N
Pendle Borough Council,Operational Services,Agency Staff,Emp : Agency Wages,1004,NW RECRUITMENT SERVICES LIMITED,A0091588,29/03/2023,OPS0332667,1383.69,N,,N,N
Pendle Borough Council,Operational Services,Agency Staff,Emp : Agency Wages,1004,NW RECRUITMENT SERVICES LIMITED,A0091588,09/03/2023,OPS0331994,1383.96,N,,N,N
Pendle Borough Council,Operational Services,Agency Staff,Emp : Agency Wages,1004,NW RECRUITMENT SERVICES LIMITED,A0091588,29/03/2023,OPS0332666,1828.75,N,,N,N
Pendle Borough Council,Parks & Recreation Services,Supplies and Services,EFM : Other Equipment,4003,NW RECRUITMENT SERVICES LIMITED,A0091588,02/03/2023,PCO0331858,531.79,N,,N,N
Pendle Borough Council,Parks & Recreation Services,Supplies and Services,EFM : Other Equipment,4003,NW RECRUITMENT SERVICES LIMITED,A0091588,09/03/2023,PCO0332007,531.79,N,,N,N
Pendle Borough Council,Parks & Recreation Services,Supplies and Services,EFM : Other Equipment,4003,NW RECRUITMENT SERVICES LIMITED,A0091588,16/03/2023,PCO0332154,531.79,N,,N,N
Pendle Borough Council,Parks & Recreation Services,Supplies and Services,EFM : Other Equipment,4003,NW RECRUITMENT SERVICES LIMITED,A0091588,29/03/2023,PCO0332451,531.79,N,,N,N
Pendle Borough Council,Operational Services,Transport Related Expense,Tprt : Repairs : General,3105,GO PLANT FLEET SERVICES LIMITED,A0091600,29/03/2023,OPS0332623,110.15,N,,N,N
Pendle Borough Council,Operational Services,Transport Related Expense,Tprt : Repairs : General,3105,GO PLANT FLEET SERVICES LIMITED,A0091600,29/03/2023,OPS0332663,125.41,N,,N,N
Pendle Borough Council,Operational Services,Transport Related Expense,Tprt : Repairs : General,3105,GO PLANT FLEET SERVICES LIMITED,A0091600,29/03/2023,OPS0332617,103.16,N,,N,N
Pendle Borough Council,Operational Services,Transport Related Expense,Tprt : Repairs : General,3105,GO PLANT FLEET SERVICES LIMITED,A0091600,16/03/2023,OPS0332229,52.12,N,,N,N
Pendle Borough Council,Operational Services,Transport Related Expense,Tprt : Repairs : General,3105,GO PLANT FLEET SERVICES LIMITED,A0091600,29/03/2023,OPS0332657,226.92,N,,N,N
Pendle Borough Council,Operational Services,Transport Related Expense,Tprt : Repairs : General,3105,GO PLANT FLEET SERVICES LIMITED,A0091600,29/03/2023,OPS0332646,101.38,N,,N,N
Pendle Borough Council,Operational Services,Transport Related Expense,Tprt : Repairs : General,3105,GO PLANT FLEET SERVICES LIMITED,A0091600,29/03/2023,OPS0332628,2206.47,N,,N,N
Pendle Borough Council,Operational Services,Transport Related Expense,Tprt : Repairs : General,3105,GO PLANT FLEET SERVICES LIMITED,A0091600,29/03/2023,OPS0332658,69.87,N,,N,N
Pendle Borough Council,Operational Services,Transport Related Expense,Tprt : Repairs : General,3105,GO PLANT FLEET SERVICES LIMITED,A0091600,29/03/2023,OPS0332656,51.09,N,,N,N
Pendle Borough Council,Operational Services,Transport Related Expense,Tprt : Repairs : General,3105,GO PLANT FLEET SERVICES LIMITED,A0091600,29/03/2023,OPS0332660,55,N,,N,N
Pendle Borough Council,Operational Services,Transport Related Expense,Tprt : Repairs : General,3105,GO PLANT FLEET SERVICES LIMITED,A0091600,29/03/2023,OPS0332618,114.95,N,,N,N
Pendle Borough Council,Operational Services,Transport Related Expense,Tprt : Repairs : General,3105,GO PLANT FLEET SERVICES LIMITED,A0091600,29/03/2023,OPS0332653,300.17,N,,N,N
Pendle Borough Council,Operational Services,Transport Related Expense,Tprt : Repairs : General,3105,GO PLANT FLEET SERVICES LIMITED,A0091600,02/03/2023,OPS4006669,-80.5,N,,N,N
Pendle Borough Council,Operational Services,Transport Related Expense,Tprt : Repairs : General,3105,GO PLANT FLEET SERVICES LIMITED,A0091600,29/03/2023,OPS0332655,101,N,,N,N
Pendle Borough Council,Operational Services,Transport Related Expense,Tprt : Repairs : General,3105,GO PLANT FLEET SERVICES LIMITED,A0091600,02/03/2023,OPS0331911,181.5,N,,N,N
Pendle Borough Council,Operational Services,Transport Related Expense,Tprt : Repairs : General,3105,GO PLANT FLEET SERVICES LIMITED,A0091600,29/03/2023,OPS0332620,781.02,N,,N,N
Pendle Borough Council,Operational Services,Transport Related Expense,Tprt : Repairs : General,3105,GO PLANT FLEET SERVICES LIMITED,A0091600,29/03/2023,OPS0332651,118.43,N,,N,N
Pendle Borough Council,Operational Services,Transport Related Expense,Tprt : Repairs : General,3105,GO PLANT FLEET SERVICES LIMITED,A0091600,29/03/2023,OPS0332615,103.32,N,,N,N
Pendle Borough Council,Operational Services,Transport Related Expense,Tprt : Repairs : General,3105,GO PLANT FLEET SERVICES LIMITED,A0091600,29/03/2023,OPS0332661,164.04,N,,N,N
Pendle Borough Council,Operational Services,Transport Related Expense,Tprt : Repairs : General,3105,GO PLANT FLEET SERVICES LIMITED,A0091600,16/03/2023,OPS0332230,277.34,N,,N,N
Pendle Borough Council,Operational Services,Transport Related Expense,Tprt : Repairs : General,3105,GO PLANT FLEET SERVICES LIMITED,A0091600,29/03/2023,OPS0332650,301.61,N,,N,N
Pendle Borough Council,Operational Services,Transport Related Expense,Tyres,3204,GO PLANT FLEET SERVICES LIMITED,A0091600,29/03/2023,OPS0332646,734.12,N,,N,N
Pendle Borough Council,Operational Services,Transport Related Expense,Tyres,3204,GO PLANT FLEET SERVICES LIMITED,A0091600,29/03/2023,OPS0332662,612.77,N,,N,N
Pendle Borough Council,Operational Services,Transport Related Expense,Tyres,3204,GO PLANT FLEET SERVICES LIMITED,A0091600,29/03/2023,OPS0332645,85.18,N,,N,N
Pendle Borough Council,Operational Services,Transport Related Expense,Tyres,3204,GO PLANT FLEET SERVICES LIMITED,A0091600,29/03/2023,OPS0332620,520.92,N,,N,N
Pendle Borough Council,Operational Services,Transport Related Expense,Tyres,3204,GO PLANT FLEET SERVICES LIMITED,A0091600,29/03/2023,OPS0332659,331.42,N,,N,N
Pendle Borough Council,Operational Services,Transport Related Expense,Tyres,3204,GO PLANT FLEET SERVICES LIMITED,A0091600,29/03/2023,OPS0332643,28.73,N,,N,N
Pendle Borough Council,Operational Services,Transport Related Expense,Tyres,3204,GO PLANT FLEET SERVICES LIMITED,A0091600,29/03/2023,OPS0332614,28.73,N,,N,N
Pendle Borough Council,Operational Services,Transport Related Expense,Tyres,3204,GO PLANT FLEET SERVICES LIMITED,A0091600,29/03/2023,OPS0332654,28.73,N,,N,N
Pendle Borough Council,Operational Services,Transport Related Expense,Tyres,3204,GO PLANT FLEET SERVICES LIMITED,A0091600,29/03/2023,OPS0332665,28.73,N,,N,N
Pendle Borough Council,Operational Services,Transport Related Expense,Tyres,3204,GO PLANT FLEET SERVICES LIMITED,A0091600,29/03/2023,OPS0332630,115.76,N,,N,N
Pendle Borough Council,Operational Services,Transport Related Expense,Tyres,3204,GO PLANT FLEET SERVICES LIMITED,A0091600,29/03/2023,OPS0332664,118.97,N,,N,N
Pendle Borough Council,Operational Services,Transport Related Expense,Tyres,3204,GO PLANT FLEET SERVICES LIMITED,A0091600,29/03/2023,OPS0332652,136.43,N,,N,N
Pendle Borough Council,Operational Services,Transport Related Expense,Tyres,3204,GO PLANT FLEET SERVICES LIMITED,A0091600,29/03/2023,OPS0332641,126.18,N,,N,N
Pendle Borough Council,Operational Services,Transport Related Expense,Tyres,3204,GO PLANT FLEET SERVICES LIMITED,A0091600,29/03/2023,OPS0332650,242.11,N,,N,N
Pendle Borough Council,Operational Services,Transport Related Expense,Tyres,3204,GO PLANT FLEET SERVICES LIMITED,A0091600,29/03/2023,OPS0332644,126.18,N,,N,N
Pendle Borough Council,Operational Services,Transport Related Expense,Tyres,3204,GO PLANT FLEET SERVICES LIMITED,A0091600,29/03/2023,OPS0332638,112.08,N,,N,N
Pendle Borough Council,Operational Services,Transport Related Expense,Tyres,3204,GO PLANT FLEET SERVICES LIMITED,A0091600,29/03/2023,OPS0332626,126.18,N,,N,N
Pendle Borough Council,Operational Services,Transport Related Expense,Tyres,3204,GO PLANT FLEET SERVICES LIMITED,A0091600,29/03/2023,OPS0332640,126.18,N,,N,N
Pendle Borough Council,Operational Services,Transport Related Expense,Tprt : Annual Hire Charge,3601,GO PLANT FLEET SERVICES LIMITED,A0091600,29/03/2023,OPS0332625,300,N,,N,N
Pendle Borough Council,Operational Services,Transport Related Expense,Tprt : Annual Hire Charge,3601,GO PLANT FLEET SERVICES LIMITED,A0091600,09/03/2023,OPS0332100,3540.62,N,,N,N
Pendle Borough Council,Operational Services,Transport Related Expense,Tprt : Annual Hire Charge,3601,GO PLANT FLEET SERVICES LIMITED,A0091600,09/03/2023,OPS0332100,3540.62,N,,N,N
Pendle Borough Council,Operational Services,Transport Related Expense,Tprt : Annual Hire Charge,3601,GO PLANT FLEET SERVICES LIMITED,A0091600,09/03/2023,OPS0332100,3540.62,N,,N,N
Pendle Borough Council,Operational Services,Transport Related Expense,Tprt : Annual Hire Charge,3601,GO PLANT FLEET SERVICES LIMITED,A0091600,09/03/2023,OPS0332100,3540.62,N,,N,N
Pendle Borough Council,Operational Services,Transport Related Expense,Tprt : Annual Hire Charge,3601,GO PLANT FLEET SERVICES LIMITED,A0091600,09/03/2023,OPS0332100,3540.62,N,,N,N
Pendle Borough Council,Operational Services,Transport Related Expense,Tprt : Annual Hire Charge,3601,GO PLANT FLEET SERVICES LIMITED,A0091600,09/03/2023,OPS0332100,3344.64,N,,N,N
Pendle Borough Council,Operational Services,Transport Related Expense,Tprt : Annual Hire Charge,3601,GO PLANT FLEET SERVICES LIMITED,A0091600,09/03/2023,OPS0332100,3540.62,N,,N,N
Pendle Borough Council,Operational Services,Transport Related Expense,Tprt : Annual Hire Charge,3601,GO PLANT FLEET SERVICES LIMITED,A0091600,09/03/2023,OPS0332100,3540.62,N,,N,N
Pendle Borough Council,Operational Services,Transport Related Expense,Tprt : Annual Hire Charge,3601,GO PLANT FLEET SERVICES LIMITED,A0091600,09/03/2023,OPS0332100,3549.74,N,,N,N
Pendle Borough Council,Operational Services,Transport Related Expense,Tprt : Annual Hire Charge,3601,GO PLANT FLEET SERVICES LIMITED,A0091600,09/03/2023,OPS0332100,3549.74,N,,N,N
Pendle Borough Council,Operational Services,Transport Related Expense,Tprt : Annual Hire Charge,3601,GO PLANT FLEET SERVICES LIMITED,A0091600,09/03/2023,OPS0332100,3549.74,N,,N,N
Pendle Borough Council,Operational Services,Transport Related Expense,Tprt : Annual Hire Charge,3601,GO PLANT FLEET SERVICES LIMITED,A0091600,09/03/2023,OPS0332100,3497.07,N,,N,N
Pendle Borough Council,Operational Services,Transport Related Expense,Tprt : Annual Hire Charge,3601,GO PLANT FLEET SERVICES LIMITED,A0091600,09/03/2023,OPS0332100,3393,N,,N,N
Pendle Borough Council,Operational Services,Transport Related Expense,Tprt : Annual Hire Charge,3601,GO PLANT FLEET SERVICES LIMITED,A0091600,09/03/2023,OPS0332100,2654.17,N,,N,N
Pendle Borough Council,Operational Services,Transport Related Expense,Tprt : Annual Hire Charge,3601,GO PLANT FLEET SERVICES LIMITED,A0091600,09/03/2023,OPS0332100,1981.53,N,,N,N
Pendle Borough Council,Operational Services,Transport Related Expense,Tprt : Annual Hire Charge,3601,GO PLANT FLEET SERVICES LIMITED,A0091600,09/03/2023,OPS0332100,1981.53,N,,N,N
Pendle Borough Council,Operational Services,Transport Related Expense,Tprt : Annual Hire Charge,3601,GO PLANT FLEET SERVICES LIMITED,A0091600,09/03/2023,OPS0332100,1981.53,N,,N,N
Pendle Borough Council,Operational Services,Transport Related Expense,Tprt : Annual Hire Charge,3601,GO PLANT FLEET SERVICES LIMITED,A0091600,09/03/2023,OPS0332100,1981.53,N,,N,N
Pendle Borough Council,Operational Services,Transport Related Expense,Tprt : Annual Hire Charge,3601,GO PLANT FLEET SERVICES LIMITED,A0091600,09/03/2023,OPS0332100,1981.53,N,,N,N
Pendle Borough Council,Operational Services,Transport Related Expense,Tprt : Annual Hire Charge,3601,GO PLANT FLEET SERVICES LIMITED,A0091600,09/03/2023,OPS0332100,509.54,N,,N,N
Pendle Borough Council,Operational Services,Transport Related Expense,Tprt : Annual Hire Charge,3601,GO PLANT FLEET SERVICES LIMITED,A0091600,09/03/2023,OPS0332100,598.81,N,,N,N
Pendle Borough Council,Operational Services,Transport Related Expense,Tprt : Annual Hire Charge,3601,GO PLANT FLEET SERVICES LIMITED,A0091600,09/03/2023,OPS0332100,650,N,,N,N
Pendle Borough Council,Operational Services,Transport Related Expense,Tprt : Annual Hire Charge,3601,GO PLANT FLEET SERVICES LIMITED,A0091600,09/03/2023,OPS0332100,598.81,N,,N,N
Pendle Borough Council,Operational Services,Transport Related Expense,Tprt : Annual Hire Charge,3601,GO PLANT FLEET SERVICES LIMITED,A0091600,09/03/2023,OPS0332100,598.81,N,,N,N
Pendle Borough Council,Operational Services,Transport Related Expense,Tprt : Annual Hire Charge,3601,GO PLANT FLEET SERVICES LIMITED,A0091600,09/03/2023,OPS0332100,650,N,,N,N
Pendle Borough Council,Operational Services,Transport Related Expense,Tprt : Annual Hire Charge,3601,GO PLANT FLEET SERVICES LIMITED,A0091600,09/03/2023,OPS0332100,598.81,N,,N,N
Pendle Borough Council,Operational Services,Transport Related Expense,Tprt : Annual Hire Charge,3601,GO PLANT FLEET SERVICES LIMITED,A0091600,09/03/2023,OPS0332100,239.53,N,,N,N
Pendle Borough Council,Operational Services,Transport Related Expense,Tprt : Annual Hire Charge,3601,GO PLANT FLEET SERVICES LIMITED,A0091600,09/03/2023,OPS0332100,239.53,N,,N,N
Pendle Borough Council,Operational Services,Transport Related Expense,Tprt : Annual Hire Charge,3601,GO PLANT FLEET SERVICES LIMITED,A0091600,09/03/2023,OPS0332100,239.53,N,,N,N
Pendle Borough Council,Operational Services,Transport Related Expense,Tprt : Annual Hire Charge,3601,GO PLANT FLEET SERVICES LIMITED,A0091600,09/03/2023,OPS0332100,239.53,N,,N,N
Pendle Borough Council,Operational Services,Transport Related Expense,Tprt : Annual Hire Charge,3601,GO PLANT FLEET SERVICES LIMITED,A0091600,09/03/2023,OPS0332100,239.53,N,,N,N
Pendle Borough Council,Operational Services,Transport Related Expense,Tprt : Annual Hire Charge,3601,GO PLANT FLEET SERVICES LIMITED,A0091600,09/03/2023,OPS0332100,239.53,N,,N,N
Pendle Borough Council,Operational Services,Transport Related Expense,Tprt : Annual Hire Charge,3601,GO PLANT FLEET SERVICES LIMITED,A0091600,09/03/2023,OPS0332100,239.53,N,,N,N
Pendle Borough Council,Operational Services,Transport Related Expense,Tprt : Annual Hire Charge,3601,GO PLANT FLEET SERVICES LIMITED,A0091600,09/03/2023,OPS0332100,339.69,N,,N,N
Pendle Borough Council,Operational Services,Transport Related Expense,Tprt : Annual Hire Charge,3601,GO PLANT FLEET SERVICES LIMITED,A0091600,29/03/2023,OPS0332621,80,N,,N,N
Pendle Borough Council,Operational Services,Transport Related Expense,Tprt : Annual Hire Charge,3601,GO PLANT FLEET SERVICES LIMITED,A0091600,02/03/2023,OPS0331912,200,N,,N,N
Pendle Borough Council,Operational Services,Transport Related Expense,Tprt : Annual Hire Charge,3601,GO PLANT FLEET SERVICES LIMITED,A0091600,29/03/2023,OPS0332612,300,N,,N,N
Pendle Borough Council,Operational Services,Transport Related Expense,Tprt : Annual Hire Charge,3601,GO PLANT FLEET SERVICES LIMITED,A0091600,16/03/2023,OPS0332231,420,N,,N,N
Pendle Borough Council,Operational Services,Transport Related Expense,Tprt : Annual Hire Charge,3601,GO PLANT FLEET SERVICES LIMITED,A0091600,02/03/2023,OPS0331913,440,N,,N,N
Pendle Borough Council,Operational Services,Transport Related Expense,Tprt : Annual Hire Charge,3601,GO PLANT FLEET SERVICES LIMITED,A0091600,02/03/2023,OPS0331914,440,N,,N,N
Pendle Borough Council,Operational Services,Transport Related Expense,Tprt : Annual Hire Charge,3601,GO PLANT FLEET SERVICES LIMITED,A0091600,09/03/2023,OPS0332100,592.28,N,,N,N
Pendle Borough Council,Operational Services,Transport Related Expense,Tprt : Annual Hire Charge,3601,GO PLANT FLEET SERVICES LIMITED,A0091600,09/03/2023,OPS0332100,592.28,N,,N,N
Pendle Borough Council,Operational Services,Transport Related Expense,Tprt : Annual Hire Charge,3601,GO PLANT FLEET SERVICES LIMITED,A0091600,09/03/2023,OPS0332100,592.28,N,,N,N
Pendle Borough Council,Operational Services,Transport Related Expense,Tprt : Annual Hire Charge,3601,GO PLANT FLEET SERVICES LIMITED,A0091600,09/03/2023,OPS0332100,592.28,N,,N,N
Pendle Borough Council,Operational Services,Transport Related Expense,Tprt : Annual Hire Charge,3601,GO PLANT FLEET SERVICES LIMITED,A0091600,09/03/2023,OPS0332100,592.28,N,,N,N
Pendle Borough Council,Operational Services,Transport Related Expense,Tprt : Annual Hire Charge,3601,GO PLANT FLEET SERVICES LIMITED,A0091600,09/03/2023,OPS0332100,535.67,N,,N,N
Pendle Borough Council,Operational Services,Transport Related Expense,Tprt : Annual Hire Charge,3601,GO PLANT FLEET SERVICES LIMITED,A0091600,09/03/2023,OPS0332100,239.53,N,,N,N
Pendle Borough Council,Operational Services,Transport Related Expense,Tprt : Annual Hire Charge,3601,GO PLANT FLEET SERVICES LIMITED,A0091600,09/03/2023,OPS0332100,496.4,N,,N,N
Pendle Borough Council,Operational Services,Transport Related Expense,Tprt : Annual Hire Charge,3601,GO PLANT FLEET SERVICES LIMITED,A0091600,09/03/2023,OPS0332100,496.4,N,,N,N
Pendle Borough Council,Engineering & Special Projects,Supplies and Services,Publicity & advertisement,4704,CMS LIVE,A0091625,29/03/2023,HED0332609,15,N,,N,N
Pendle Borough Council,Engineering & Special Projects,Supplies and Services,Publicity & advertisement,4704,CMS LIVE,A0091625,29/03/2023,HED0332604,60,N,,N,N
Pendle Borough Council,Engineering & Special Projects,Supplies and Services,Other Expenses,4705,COLNE PARISH CHURCH ST BARTHOLOMEW,A0091630,23/03/2023,HED0332344,8333,N,,N,N
Pendle Borough Council,Engineering & Special Projects,Supplies and Services,Other Expenses,4705,COLNE PARISH CHURCH ST BARTHOLOMEW,A0091630,23/03/2023,HED0332404,3751.16,N,,N,N
Pendle Borough Council,Engineering & Special Projects,Supplies and Services,Other Expenses,4705,COLNE BID LIMITED,A0091663,29/03/2023,HED0332677,3000,N,,N,N
Pendle Borough Council,Engineering & Special Projects,Supplies and Services,Other Expenses,4705,COLNE BID LIMITED,A0091663,29/03/2023,HED0332633,5000,N,,N,N
Pendle Borough Council,Financial Services,,Paid in the Year,pd03,COLNE BID LIMITED,A0091663,09/03/2023,AAS0332113,40000,N,,N,N
Pendle Borough Council,Engineering & Special Projects,Premises Related Expense,Grounds : R & M : Day to Day : Routine,2101,A&G LANDSCAPES & GROUNDWORKS LIMITED,A0091675,09/03/2023,HED0332041,500,N,,N,N
Pendle Borough Council,Engineering & Special Projects,Premises Related Expense,Grounds : R & M : Day to Day : Routine,2101,A&G LANDSCAPES & GROUNDWORKS LIMITED,A0091675,09/03/2023,HED0332041,735,N,,N,N
Pendle Borough Council,Engineering & Special Projects,Premises Related Expense,Grounds : R & M : Day to Day : Routine,2101,A&G LANDSCAPES & GROUNDWORKS LIMITED,A0091675,29/03/2023,HED0332694,5,N,,N,N
Pendle Borough Council,Engineering & Special Projects,Premises Related Expense,Grounds : R & M : Day to Day : Routine,2101,A&G LANDSCAPES & GROUNDWORKS LIMITED,A0091675,29/03/2023,HED0332694,45,N,,N,N
Pendle Borough Council,Engineering & Special Projects,Premises Related Expense,Grounds : R & M : Day to Day : Routine,2101,A&G LANDSCAPES & GROUNDWORKS LIMITED,A0091675,29/03/2023,HED0332399,25,N,,N,N
Pendle Borough Council,Engineering & Special Projects,Premises Related Expense,Grounds : R & M : Day to Day : Routine,2101,A&G LANDSCAPES & GROUNDWORKS LIMITED,A0091675,29/03/2023,HED0332399,125,N,,N,N
Pendle Borough Council,Parks & Recreation Services,Premises Related Expense,Grounds : R & M : Day to Day : Routine,2101,A&G LANDSCAPES & GROUNDWORKS LIMITED,A0091675,29/03/2023,PCO4006699,-3100,N,,N,N
Pendle Borough Council,Parks & Recreation Services,Premises Related Expense,Grounds : R & M : Day to Day : Routine,2101,A&G LANDSCAPES & GROUNDWORKS LIMITED,A0091675,29/03/2023,PCO4006699,-750,N,,N,N
Pendle Borough Council,Parks & Recreation Services,Premises Related Expense,Grounds : R & M : Day to Day : Routine,2101,A&G LANDSCAPES & GROUNDWORKS LIMITED,A0091675,16/03/2023,PCO0332135,750,N,,N,N
Pendle Borough Council,Parks & Recreation Services,Premises Related Expense,Grounds : R & M : Day to Day : Routine,2101,A&G LANDSCAPES & GROUNDWORKS LIMITED,A0091675,16/03/2023,PCO0332206,750,N,,N,N
Pendle Borough Council,Parks & Recreation Services,Premises Related Expense,Grounds : R & M : Day to Day : Routine,2101,A&G LANDSCAPES & GROUNDWORKS LIMITED,A0091675,16/03/2023,PCO0332135,3100,N,,N,N
Pendle Borough Council,Parks & Recreation Services,Premises Related Expense,Grounds : R & M : Day to Day : Routine,2101,A&G LANDSCAPES & GROUNDWORKS LIMITED,A0091675,16/03/2023,PCO0332206,3100,N,,N,N
Pendle Borough Council,Engineering & Special Projects,Capital Costs,Capital : Payments,CD14,A&G LANDSCAPES & GROUNDWORKS LIMITED,A0091675,16/03/2023,HED0332232,2500,N,,N,N
Pendle Borough Council,Engineering & Special Projects,Capital Costs,Capital : Payments,CD14,A&G LANDSCAPES & GROUNDWORKS LIMITED,A0091675,29/03/2023,HED0332696,5000,N,,N,N
Pendle Borough Council,Engineering & Special Projects,Capital Costs,Capital : Payments,CD14,A&G LANDSCAPES & GROUNDWORKS LIMITED,A0091675,29/03/2023,HED0332696,9995.8,N,,N,N
Pendle Borough Council,Engineering & Special Projects,Capital Costs,Capital : Payments,CD14,A&G LANDSCAPES & GROUNDWORKS LIMITED,A0091675,16/03/2023,HED0332232,11476.04,N,,N,N
Pendle Borough Council,Engineering & Special Projects,Capital Costs,Capital : Payments,CD14,A&G LANDSCAPES & GROUNDWORKS LIMITED,A0091675,02/03/2023,HED0331863,13996.3,N,,N,N
Pendle Borough Council,Parks & Recreation Services,Capital Costs,Capital : Payments,CD14,A&G LANDSCAPES & GROUNDWORKS LIMITED,A0091675,16/03/2023,PCO0332187,500,N,,N,N
Pendle Borough Council,Parks & Recreation Services,Capital Costs,Capital : Payments,CD14,A&G LANDSCAPES & GROUNDWORKS LIMITED,A0091675,16/03/2023,PCO0332186,1000,N,,N,N
Pendle Borough Council,Parks & Recreation Services,Capital Costs,Capital : Payments,CD14,A&G LANDSCAPES & GROUNDWORKS LIMITED,A0091675,16/03/2023,PCO0332187,2078.88,N,,N,N
Pendle Borough Council,Parks & Recreation Services,Capital Costs,Capital : Payments,CD14,A&G LANDSCAPES & GROUNDWORKS LIMITED,A0091675,16/03/2023,PCO0332186,6736.67,N,,N,N
Pendle Borough Council,Financial Services,Transport Related Expense,Tprt : Annual Hire Charge,3601,ISUZU CONTRACT HIRE,A0091722,28/03/2023,AAS0332963,30,N,,N,N
Pendle Borough Council,Financial Services,Transport Related Expense,Tprt : Annual Hire Charge,3601,ISUZU CONTRACT HIRE,A0091722,31/03/2023,AAS0332961,254,N,,N,N
Pendle Borough Council,Financial Services,Transport Related Expense,Tprt : Annual Hire Charge,3601,ISUZU CONTRACT HIRE,A0091722,28/03/2023,AAS0332963,30,N,,N,N
Pendle Borough Council,Financial Services,Transport Related Expense,Tprt : Annual Hire Charge,3601,ISUZU CONTRACT HIRE,A0091722,31/03/2023,AAS0332961,258.98,N,,N,N
Pendle Borough Council,Financial Services,Capital Financing Costs,Lease costs:Computer (Orchard),8204,ONECOM LIMITED,A0091771,31/03/2023,AAS0332962,669.57,N,,N,N
Pendle Borough Council,Financial Services,Supplies and Services,"Monitoring, Console etc",4510,NEW STAR NETWORKS,A0091779,28/03/2023,AAS0332951,20,N,,N,N
Pendle Borough Council,Financial Services,Supplies and Services,"Monitoring, Console etc",4510,NEW STAR NETWORKS,A0091779,28/03/2023,AAS0332951,24.65,N,,N,N
Pendle Borough Council,Financial Services,Supplies and Services,"Monitoring, Console etc",4510,NEW STAR NETWORKS,A0091779,28/03/2023,AAS0332951,25.7,N,,N,N
Pendle Borough Council,Financial Services,Supplies and Services,"Monitoring, Console etc",4510,NEW STAR NETWORKS,A0091779,28/03/2023,AAS0332951,32.5,N,,N,N
Pendle Borough Council,Financial Services,Supplies and Services,"Monitoring, Console etc",4510,NEW STAR NETWORKS,A0091779,28/03/2023,AAS0332951,43.99,N,,N,N
Pendle Borough Council,Financial Services,Supplies and Services,"Monitoring, Console etc",4510,NEW STAR NETWORKS,A0091779,28/03/2023,AAS0332951,47.87,N,,N,N
Pendle Borough Council,Financial Services,Supplies and Services,"Monitoring, Console etc",4510,NEW STAR NETWORKS,A0091779,28/03/2023,AAS0332951,49.9,N,,N,N
Pendle Borough Council,Financial Services,Supplies and Services,"Monitoring, Console etc",4510,NEW STAR NETWORKS,A0091779,28/03/2023,AAS0332951,97.5,N,,N,N
Pendle Borough Council,Engineering & Special Projects,Agency Staff,Emp : Agency Wages,1004,THE OYSTER PARTNERSHIP LIMITED,A0091781,16/03/2023,HED0332121,787.32,N,,N,N
Pendle Borough Council,Engineering & Special Projects,Agency Staff,Emp : Agency Wages,1004,THE OYSTER PARTNERSHIP LIMITED,A0091781,16/03/2023,HED0332122,1512.31,N,,N,N
Pendle Borough Council,Engineering & Special Projects,Agency Staff,Emp : Agency Wages,1004,THE OYSTER PARTNERSHIP LIMITED,A0091781,29/03/2023,HED0332439,1512.31,N,,N,N
Pendle Borough Council,Engineering & Special Projects,Agency Staff,Emp : Agency Wages,1004,THE OYSTER PARTNERSHIP LIMITED,A0091781,23/03/2023,HED0332345,1515.91,N,,N,N
Pendle Borough Council,Engineering & Special Projects,Agency Staff,Emp : Agency Wages,1004,THE OYSTER PARTNERSHIP LIMITED,A0091781,23/03/2023,HED0332346,1515.91,N,,N,N
Pendle Borough Council,Engineering & Special Projects,Agency Staff,Emp : Agency Wages,1004,THE OYSTER PARTNERSHIP LIMITED,A0091781,02/03/2023,HED0331825,1574.64,N,,N,N
Pendle Borough Council,Engineering & Special Projects,Agency Staff,Emp : Agency Wages,1004,THE OYSTER PARTNERSHIP LIMITED,A0091781,09/03/2023,HED0331929,1574.64,N,,N,N
Pendle Borough Council,Engineering & Special Projects,Agency Staff,Emp : Agency Wages,1004,THE OYSTER PARTNERSHIP LIMITED,A0091781,02/03/2023,HED0331826,1584.59,N,,N,N
Pendle Borough Council,Engineering & Special Projects,Agency Staff,Emp : Agency Wages,1004,THE OYSTER PARTNERSHIP LIMITED,A0091781,09/03/2023,HED0331930,2146,N,,N,N
Pendle Borough Council,Financial Services,Premises Related Expense,Grounds : R & M : Day to Day : Routine,2101,EDF ENERGY CUSTOMERS LIMITED,A0091859,10/03/2023,AAS0332953,37.5,N,,N,N
Pendle Borough Council,Financial Services,Premises Related Expense,Grounds : R & M : Day to Day : Routine,2101,EDF ENERGY CUSTOMERS LIMITED,A0091859,10/03/2023,AAS0332952,355.83,N,,N,N
Pendle Borough Council,Operational Services,Transport Related Expense,Tprt : Repairs : General,3105,DEFIB STORE LIMITED,A0091871,09/03/2023,OPS0332064,10,N,,N,N
Pendle Borough Council,Operational Services,Transport Related Expense,Tprt : Repairs : General,3105,DEFIB STORE LIMITED,A0091871,09/03/2023,OPS0332064,423,N,,N,N
Pendle Borough Council,Engineering & Special Projects,Capital Costs,Ren Grant : 1996 Act,CH22,CLEGG CONSTRUCTION UK,A0091885,16/03/2023,HED0332164,6866.6,N,,N,N
Pendle Borough Council,Engineering & Special Projects,Capital Costs,Ren Grant : 1996 Act,CH22,CLEGG CONSTRUCTION UK,A0091885,16/03/2023,HED0332165,7924.63,N,,N,N
Pendle Borough Council,Property Services,Premises Related Expense,Water & Sewerage,2501,BUSINESS STREAM,A0091916,09/03/2023,EST0332070,21.33,N,,N,N
Pendle Borough Council,Property Services,Premises Related Expense,Water & Sewerage,2501,BUSINESS STREAM,A0091916,09/03/2023,EST0332069,45.98,N,,N,N
Pendle Borough Council,Engineering & Special Projects,Capital Costs,Ren Grant : 1996 Act,CH22,DYNAMIC PLUMBING AND HEATING,A0091941,16/03/2023,HED0332138,8589,N,,N,N
Pendle Borough Council,Engineering & Special Projects,Capital Costs,Ren Grant : 1996 Act,CH22,DYNAMIC PLUMBING AND HEATING,A0091941,16/03/2023,HED0332143,10773,N,,N,N
Pendle Borough Council,Engineering & Special Projects,Capital Costs,Ren Grant : 1996 Act,CH22,BUILDEASI NW LTD,A0091945,09/03/2023,HED0332054,11496.7,N,,N,N
Pendle Borough Council,Engineering & Special Projects,Supplies and Services,Other Expenses,4705,PENDLE FOOD FOR ALL FOOD CLUB,A0091966,16/03/2023,HED0332119,8333,N,,N,N
Pendle Borough Council,Financial Services,Supplies and Services,Consultants Fees,4401,PSTAX,A0091984,16/03/2023,AAS0332302,3350,N,,N,N
Pendle Borough Council,Planning & Building Control,Supplies and Services,EFM Materials,4004,REVIEW SYSTEMS DIGITAL SIGNAGE LIMITED,A0091985,23/03/2023,PBC0332412,310,N,,N,N
Pendle Borough Council,Operational Services,,Stock : Purchases,PJ01,SMI GROUP UK,A0091999,02/03/2023,OPS4006668,-88.17,N,,N,N
Pendle Borough Council,Operational Services,,Stock : Purchases,PJ01,SMI GROUP UK,A0091999,02/03/2023,OPS0331876,88.17,N,,N,N
Pendle Borough Council,Operational Services,,Stock : Purchases,PJ01,SMI GROUP UK,A0091999,02/03/2023,OPS0331873,286.2,N,,N,N
Pendle Borough Council,Parks & Recreation Services,Premises Related Expense,Grounds : R & M : Day to Day : Routine,2101,A1 SKIP HIRE LIMITED,A0092012,23/03/2023,PCO0332363,624.29,N,,N,N
Pendle Borough Council,Engineering & Special Projects,Supplies and Services,Children`s holiday activities,4716,THE LIGHTBEAM ACADEMY LTD,A0092431,23/03/2023,HED0332387,2646,N,,N,N
Pendle Borough Council,Engineering & Special Projects,,Housing Impts/Cap Repairs,0104,AZTEC GAS LTD,A0092485,29/03/2023,HED0332705,1583.6,N,,N,N
Pendle Borough Council,Planning & Building Control,Capital Costs,Capital : Payments,CD14,HARTLEYS FARM FOODS,A0092657,23/03/2023,PBC0332428,62897.5,N,,N,N
Pendle Borough Council,Engineering & Special Projects,Supplies and Services,Other Expenses,4705,PAVILLION COMMUNITY HUB AND CAFE,A0093251,16/03/2023,HED0332211,8333,N,,N,N
Pendle Borough Council,Engineering & Special Projects,Supplies and Services,Other Expenses,4705,FRED HAMER FUNERAL SERVICE NELSON,A0093306,16/03/2023,HED0332216,995,N,,N,N
Pendle Borough Council,Engineering & Special Projects,Supplies and Services,Other Expenses,4705,FRED HAMER FUNERAL SERVICE NELSON,A0093306,16/03/2023,HED0332209,1650,N,,N,N
Pendle Borough Council,Engineering & Special Projects,Supplies and Services,Children`s holiday activities,4716,BODIES IN MOTION PENDLE LTD,A0093758,23/03/2023,HED0332386,936,N,,N,N
Pendle Borough Council,Engineering & Special Projects,Supplies and Services,Children`s holiday activities,4716,BODIES IN MOTION PENDLE LTD,A0093758,29/03/2023,HED0332440,1500,N,,N,N
Pendle Borough Council,Parks & Recreation Services,Transport Related Expense,Tprt : Repairs : General,3105,AMAZON PAYMENTS UK LIMITED,A0093876,29/03/2023,PCO0332455,29.72,N,,N,N
Pendle Borough Council,Parks & Recreation Services,Transport Related Expense,Tprt : Repairs : General,3105,AMAZON PAYMENTS UK LIMITED,A0093876,29/03/2023,PCO0332456,29.72,N,,N,N
Pendle Borough Council,Parks & Recreation Services,Transport Related Expense,Tprt : Repairs : General,3105,AMAZON PAYMENTS UK LIMITED,A0093876,29/03/2023,PCO0332457,29.72,N,,N,N
Pendle Borough Council,Parks & Recreation Services,Transport Related Expense,Tprt : Repairs : General,3105,AMAZON PAYMENTS UK LIMITED,A0093876,29/03/2023,PCO0332458,29.72,N,,N,N
Pendle Borough Council,Operational Services,Supplies and Services,EFM Materials,4004,AMAZON PAYMENTS UK LIMITED,A0093876,09/03/2023,OPS0332001,39.55,N,,N,N
Pendle Borough Council,Operational Services,Supplies and Services,EFM Materials,4004,AMAZON PAYMENTS UK LIMITED,A0093876,09/03/2023,OPS0332004,58.2,N,,N,N
Pendle Borough Council,Operational Services,Supplies and Services,EFM Materials,4004,AMAZON PAYMENTS UK LIMITED,A0093876,09/03/2023,OPS0332002,73.45,N,,N,N
Pendle Borough Council,Parks & Recreation Services,Supplies and Services,Expenditure : Materials,0002,TURFIX PITCH SOLUTIONS,A0094206,09/03/2023,PCO0332033,87,N,,N,N
Pendle Borough Council,Engineering & Special Projects,Supplies and Services,Other Expenses,4705,BARROWFORD PARISH COUNCIL,A0094236,16/03/2023,HED0332215,4796,N,,N,N
Pendle Borough Council,Revenues Services,Supplies and Services,Consultants Fees,4401,MARSTON (HOLDINGS) LIMITED,A0094273,09/03/2023,TRE0331984,22.59,N,,N,N
Pendle Borough Council,Revenues Services,Supplies and Services,Consultants Fees,4401,MARSTON (HOLDINGS) LIMITED,A0094273,23/03/2023,TRE0332411,94.87,N,,N,N
Pendle Borough Council,Engineering & Special Projects,Supplies and Services,Consultants Fees,4401,HATCH ASSOCIATES LMITED,A0094291,16/03/2023,HED0332238,20676,N,,N,N
Pendle Borough Council,Engineering & Special Projects,Capital Costs,Ren Grant : 1996 Act,CH22,SOUTHFIELD CONSTRUCTION,A0094294,02/03/2023,HED0331839,320,N,,N,N
Pendle Borough Council,Engineering & Special Projects,Capital Costs,Ren Grant : 1996 Act,CH22,SOUTHFIELD CONSTRUCTION,A0094294,09/03/2023,HED0332047,2360,N,,N,N
Pendle Borough Council,Engineering & Special Projects,Capital Costs,Ren Grant : 1996 Act,CH22,SOUTHFIELD CONSTRUCTION,A0094294,02/03/2023,HED0331840,4219,N,,N,N
Pendle Borough Council,Engineering & Special Projects,Capital Costs,Ren Grant : 1996 Act,CH22,SOUTHFIELD CONSTRUCTION,A0094294,29/03/2023,HED0332701,8208.4,N,,N,N
Pendle Borough Council,Planning & Building Control,Supplies and Services,Other Expenses,4705,ANGELA NUTTER,A0094317,23/03/2023,PBC0332431,412.8,N,,N,N
Pendle Borough Council,Engineering & Special Projects,Supplies and Services,Other Expenses,4705,BRIERFIELD ACTION IN THE COMMUNITY,A0094582,02/03/2023,HED0331842,1000,N,,N,N
Pendle Borough Council,Parks & Recreation Services,Premises Related Expense,Grounds : R & M : Day to Day : Routine,2101,NORTHERN MARKING,A0095078,29/03/2023,PCO0332613,500,N,,N,N
Pendle Borough Council,Parks & Recreation Services,Premises Related Expense,Grounds : R & M : Day to Day : Routine,2101,JAMES CROPPER,A0095244,02/03/2023,PCO0331853,300,N,,N,N
Pendle Borough Council,Parks & Recreation Services,Premises Related Expense,Grounds : R & M : Day to Day : Routine,2101,JAMES CROPPER,A0095244,02/03/2023,PCO0331853,300,N,,N,N
Pendle Borough Council,Parks & Recreation Services,Premises Related Expense,Grounds : R & M : Day to Day : Routine,2101,JAMES CROPPER,A0095244,02/03/2023,PCO0331853,500,N,,N,N
Pendle Borough Council,Planning & Building Control,,Other Income : Non-VATable,9303,REDACT - PERSONAL DATA,A0095304,09/03/2023,PBC0332066,60.48,N,,N,N
Pendle Borough Council,Engineering & Special Projects,Supplies and Services,Consultants Fees,4401,IN SITU IN PLACE,A0095367,16/03/2023,HED0332239,9300.54,N,,N,N
Pendle Borough Council,Parks & Recreation Services,Supplies and Services,Expenditure : Materials,0002,MERRITT & FRYERS LTD,A0095575,16/03/2023,PCO0332200,113.99,N,,N,N
Pendle Borough Council,Planning & Building Control,,Other Income : Non-VATable,9303,REDACT - PERSONAL DATA,A0095606,23/03/2023,PBC0332348,75.6,N,,N,N
Pendle Borough Council,Planning & Building Control,,Other Income : Non-VATable,9303,REDACT - PERSONAL DATA,A0095719,23/03/2023,PBC0332349,75.6,N,,N,N
Pendle Borough Council,Engineering & Special Projects,Supplies and Services,Other Expenses,4705,NELSON COMMUNITY MOSQUE,A0095733,16/03/2023,HED0332142,8333,N,,N,N
Pendle Borough Council,Financial Services,Indirect Employee Expenses,Staff Refreshments,1261,TOWER LEASING LIMITED,A0095800,13/03/2023,AAS0332967,26.67,N,,N,N
Pendle Borough Council,Financial Services,Indirect Employee Expenses,Staff Refreshments,1261,TOWER LEASING LIMITED,A0095800,13/03/2023,AAS0332967,386.67,N,,N,N
Pendle Borough Council,Engineering & Special Projects,Supplies and Services,Other Expenses,4705,COLNE YOUTH ACTION GROUP,A0096017,29/03/2023,HED0332733,681.7,N,,N,N
Pendle Borough Council,Engineering & Special Projects,Supplies and Services,Other Expenses,4705,COLNE YOUTH ACTION GROUP,A0096017,29/03/2023,HED0332735,884.91,N,,N,N
Pendle Borough Council,Engineering & Special Projects,Supplies and Services,Other Expenses,4705,COLNE YOUTH ACTION GROUP,A0096017,23/03/2023,HED0332402,1948.5,N,,N,N
Pendle Borough Council,Engineering & Special Projects,Supplies and Services,Other Expenses,4705,COLNE YOUTH ACTION GROUP,A0096017,29/03/2023,HED0332634,2375,N,,N,N
Pendle Borough Council,Engineering & Special Projects,Supplies and Services,Other Expenses,4705,COLNE YOUTH ACTION GROUP,A0096017,23/03/2023,HED0332402,185,N,,N,N
Pendle Borough Council,Planning & Building Control,,Other Income : Non-VATable,9303,REDACT - PERSONAL DATA,A0096322,29/03/2023,PBC0332712,75.6,N,,N,N
Pendle Borough Council,Engineering & Special Projects,Supplies and Services,Children`s holiday activities,4716,DEALVIC FINANCE LTD,A0096407,23/03/2023,HED0332388,825,N,,N,N
Pendle Borough Council,Engineering & Special Projects,Supplies and Services,Children`s holiday activities,4716,HARRINGTONS LEARNING CENTRE,A0096412,23/03/2023,HED0332385,15552,N,,N,N
Pendle Borough Council,Engineering & Special Projects,Transfer Payments,Accommodation ,6103,REGENT GUEST HOUSE,A0096417,29/03/2023,HED0332689,2240,N,,N,N
Pendle Borough Council,Engineering & Special Projects,Transfer Payments,Accommodation ,6103,REGENT GUEST HOUSE,A0096417,29/03/2023,HED0332691,4690,N,,N,N
Pendle Borough Council,Engineering & Special Projects,Transfer Payments,Accommodation ,6103,REGENT GUEST HOUSE,A0096417,29/03/2023,HED0332692,4760,N,,N,N
Pendle Borough Council,Engineering & Special Projects,Transfer Payments,Accommodation ,6103,REGENT GUEST HOUSE,A0096417,29/03/2023,HED0332690,6370,N,,N,N
Pendle Borough Council,Property Services,Premises Related Expense,Electricity,2203,E.ON NEXT ENERGY LIMITED,A0096428,16/03/2023,EST0332251,3.92,N,,N,N
Pendle Borough Council,Property Services,Premises Related Expense,Electricity,2203,E.ON NEXT ENERGY LIMITED,A0096428,23/03/2023,EST0332423,3.92,N,,N,N
Pendle Borough Council,Property Services,Premises Related Expense,Electricity,2203,E.ON NEXT ENERGY LIMITED,A0096428,16/03/2023,EST0332253,123.66,N,,N,N
Pendle Borough Council,Property Services,Premises Related Expense,Electricity,2203,E.ON NEXT ENERGY LIMITED,A0096428,23/03/2023,EST0332424,3.91,N,,N,N
Pendle Borough Council,Property Services,Premises Related Expense,Electricity,2203,E.ON NEXT ENERGY LIMITED,A0096428,16/03/2023,EST0332250,4.34,N,,N,N
Pendle Borough Council,Property Services,Premises Related Expense,Electricity,2203,E.ON NEXT ENERGY LIMITED,A0096428,16/03/2023,EST0332260,4.34,N,,N,N
Pendle Borough Council,Property Services,Premises Related Expense,Electricity,2203,E.ON NEXT ENERGY LIMITED,A0096428,16/03/2023,EST0332249,6.06,N,,N,N
Pendle Borough Council,Engineering & Special Projects,Supplies and Services,Children`s holiday activities,4716,SPORTSCOOL LTD,A0096429,16/03/2023,HED0332115,1912.9,N,,N,N
Pendle Borough Council,Parks & Recreation Services,Premises Related Expense,Bldgs : R & M : Day To Day,2001,ABC CLEANING SERVICES (NORTH WEST) LIMITED,A0096473,16/03/2023,PCO0332152,1250,N,,N,N
Pendle Borough Council,Parks & Recreation Services,Premises Related Expense,Bldgs : R & M : Day To Day,2001,ABC CLEANING SERVICES (NORTH WEST) LIMITED,A0096473,16/03/2023,PCO0332153,400,N,,N,N
Pendle Borough Council,Parks & Recreation Services,Premises Related Expense,Grounds : R & M : Day to Day : Routine,2101,ABC CLEANING SERVICES (NORTH WEST) LIMITED,A0096473,16/03/2023,PCO0332152,215,N,,N,N
Pendle Borough Council,Parks & Recreation Services,Indirect Employee Expenses,Training,1211,R HEWITT LTD,A0096478,29/03/2023,PCO4006704,-430,N,,N,N
Pendle Borough Council,Parks & Recreation Services,Indirect Employee Expenses,Training,1211,R HEWITT LTD,A0096478,16/03/2023,PCO0332133,430,N,,N,N
Pendle Borough Council,Parks & Recreation Services,Indirect Employee Expenses,Training,1211,R HEWITT LTD,A0096478,16/03/2023,PCO0332204,430,N,,N,N
Pendle Borough Council,Parks & Recreation Services,Indirect Employee Expenses,Training,1211,R HEWITT LTD,A0096478,29/03/2023,PCO0332629,900,N,,N,N
Pendle Borough Council,Parks & Recreation Services,Indirect Employee Expenses,Training,1211,R HEWITT LTD,A0096478,02/03/2023,PCO0331844,3360,N,,N,N
Pendle Borough Council,Parks & Recreation Services,Premises Related Expense,Grounds : R & M : Day to Day : Routine,2101,JMB SERVICES,A0096485,16/03/2023,PCO0332151,795,N,,N,N
Pendle Borough Council,Parks & Recreation Services,Premises Related Expense,Grounds : R & M : Day to Day : Routine,2101,JMB SERVICES,A0096485,09/03/2023,PCO0332032,500,N,,N,N
Pendle Borough Council,Parks & Recreation Services,Premises Related Expense,Grounds : R & M : Day to Day : Routine,2101,JCB PRICE & SON LTD,A0096491,16/03/2023,PCO0332189,550,N,,N,N
Pendle Borough Council,Parks & Recreation Services,Premises Related Expense,#N/A,2107,JCB PRICE & SON LTD,A0096491,02/03/2023,PCO0331829,3500,N,,N,N
Pendle Borough Council,Parks & Recreation Services,Premises Related Expense,#N/A,2107,JCB PRICE & SON LTD,A0096491,02/03/2023,PCO0331830,4200,N,,N,N
Pendle Borough Council,Parks & Recreation Services,Premises Related Expense,Grounds : R & M : Day to Day : Routine,2101,ROSSENDALE PLASTICS,A0096495,02/03/2023,PCO0331852,114,N,,N,N
Pendle Borough Council,Parks & Recreation Services,Supplies and Services,Other Expenses,4705,BANNISTER HALL LIMITED,A0096507,02/03/2023,PCO0331834,1325.1,N,,N,N
Pendle Borough Council,Parks & Recreation Services,Supplies and Services,Other Expenses,4705,BANNISTER HALL LIMITED,A0096507,23/03/2023,PCO0332364,155,N,,N,N
Pendle Borough Council,Parks & Recreation Services,Supplies and Services,Other Expenses,4705,BANNISTER HALL LIMITED,A0096507,23/03/2023,PCO0332364,5692.72,N,,N,N
Pendle Borough Council,Engineering & Special Projects,Supplies and Services,Other Expenses,4705,CURRY ON THE STREET,A0096527,16/03/2023,HED0332117,8333,N,,N,N
Pendle Borough Council,Financial Services,Supplies and Services,Consultants Fees,4401,MBSP CONSULTANCY LTD,A0096552,09/03/2023,AAS0332105,8400,N,,N,N
Pendle Borough Council,Engineering & Special Projects,Supplies and Services,Seminars etc All Costs,4601,JJG CONSULTANCY & EXECUTIVE COACHING SERVICES LTD,A0096573,16/03/2023,HED0332159,230,N,,N,N
Pendle Borough Council,Engineering & Special Projects,Supplies and Services,Children`s holiday activities,4716,ABSOLUTE FUTBOL LTD,A0096761,16/03/2023,HED0332116,1912.9,N,,N,N
Pendle Borough Council,Parks & Recreation Services,Transport Related Expense,Diesel Oil,3202,NWF FUELS,A0096773,29/03/2023,PCO0332639,2490,N,,N,N
Pendle Borough Council,Engineering & Special Projects,Capital Costs,Ren Grant : 1996 Act,CH22,INDEPENDENT ADAPTIONS,A0096780,09/03/2023,HED0331846,3880,N,,N,N
Pendle Borough Council,Financial Services,Supplies and Services,Grant Funding,4737,REDACT - PERSONAL DATA,A0096806,03/03/2023,AAS0331932,350,N,,N,N
Pendle Borough Council,Financial Services,Supplies and Services,Grant Funding,4737,REDACT - PERSONAL DATA,A0096806,29/03/2023,AAS0332737,350,N,,N,N
Pendle Borough Council,Financial Services,Supplies and Services,Grant Funding,4737,REDACT - PERSONAL DATA,A0096808,03/03/2023,AAS0331936,350,N,,N,N
Pendle Borough Council,Financial Services,Supplies and Services,Grant Funding,4737,REDACT - PERSONAL DATA,A0096808,29/03/2023,AAS0332741,350,N,,N,N
Pendle Borough Council,Financial Services,Supplies and Services,Grant Funding,4737,REDACT - PERSONAL DATA,A0096810,03/03/2023,AAS0331937,350,N,,N,N
Pendle Borough Council,Financial Services,Supplies and Services,Grant Funding,4737,REDACT - PERSONAL DATA,A0096810,29/03/2023,AAS0332742,350,N,,N,N
Pendle Borough Council,Financial Services,Supplies and Services,Grant Funding,4737,REDACT - PERSONAL DATA,A0096819,03/03/2023,AAS0331938,350,N,,N,N
Pendle Borough Council,Financial Services,Supplies and Services,Grant Funding,4737,REDACT - PERSONAL DATA,A0096819,29/03/2023,AAS0332743,350,N,,N,N
Pendle Borough Council,Financial Services,Supplies and Services,Grant Funding,4737,REDACT - PERSONAL DATA,A0096823,03/03/2023,AAS0331934,350,N,,N,N
Pendle Borough Council,Financial Services,Supplies and Services,Grant Funding,4737,REDACT - PERSONAL DATA,A0096823,29/03/2023,AAS0332739,350,N,,N,N
Pendle Borough Council,Financial Services,Supplies and Services,Grant Funding,4737,REDACT - PERSONAL DATA,A0096834,03/03/2023,AAS0331933,350,N,,N,N
Pendle Borough Council,Financial Services,Supplies and Services,Grant Funding,4737,REDACT - PERSONAL DATA,A0096834,29/03/2023,AAS0332738,350,N,,N,N
Pendle Borough Council,Financial Services,Supplies and Services,Other Expenses,4705,POST OFFICE LTD,A0096844,16/03/2023,AAS0332304,413.44,N,,N,N
Pendle Borough Council,Financial Services,Supplies and Services,Grant Funding,4737,POST OFFICE LTD,A0096844,03/03/2023,AAS0332769,27600,N,,N,N
Pendle Borough Council,Operational Services,Indirect Employee Expenses,Training,1211,AEBI SCHMIDT UK LTD,A0096847,09/03/2023,OPS0331998,964,N,,N,N
Pendle Borough Council,Financial Services,Supplies and Services,Grant Funding,4737,REDACT - PERSONAL DATA,A0096858,03/03/2023,AAS0331939,350,N,,N,N
Pendle Borough Council,Financial Services,Supplies and Services,Grant Funding,4737,REDACT - PERSONAL DATA,A0096858,29/03/2023,AAS0332744,350,N,,N,N
Pendle Borough Council,Financial Services,Supplies and Services,Grant Funding,4737,REDACT - PERSONAL DATA,A0096863,03/03/2023,AAS0331935,350,N,,N,N
Pendle Borough Council,Financial Services,Supplies and Services,Grant Funding,4737,REDACT - PERSONAL DATA,A0096863,29/03/2023,AAS0332740,350,N,,N,N
Pendle Borough Council,Financial Services,Supplies and Services,Grant Funding,4737,REDACT - PERSONAL DATA,A0096866,03/03/2023,AAS0331940,350,N,,N,N
Pendle Borough Council,Financial Services,Supplies and Services,Grant Funding,4737,REDACT - PERSONAL DATA,A0096866,29/03/2023,AAS0332745,350,N,,N,N
Pendle Borough Council,Financial Services,Supplies and Services,Grant Funding,4737,REDACT - PERSONAL DATA,A0096872,03/03/2023,AAS0331941,350,N,,N,N
Pendle Borough Council,Financial Services,Supplies and Services,Grant Funding,4737,REDACT - PERSONAL DATA,A0096872,29/03/2023,AAS0332746,350,N,,N,N
Pendle Borough Council,Engineering & Special Projects,Premises Related Expense,Grounds : R & M : Day to Day : Routine,2101,BELL ACCESS & ENGINEERING LTD,A0096880,16/03/2023,HED0331889,449.2,N,,N,N
Pendle Borough Council,Engineering & Special Projects,Premises Related Expense,Grounds : R & M : Day to Day : Routine,2101,BELL ACCESS & ENGINEERING LTD,A0096880,16/03/2023,HED0331889,1651.5,N,,N,N
Pendle Borough Council,Financial Services,Supplies and Services,Grant Funding,4737,REDACT - PERSONAL DATA,A0096893,03/03/2023,AAS0331942,350,N,,N,N
Pendle Borough Council,Financial Services,Supplies and Services,Grant Funding,4737,REDACT - PERSONAL DATA,A0096893,29/03/2023,AAS0332747,350,N,,N,N
Pendle Borough Council,Engineering & Special Projects,Supplies and Services,Other Expenses,4705,ARMED FORCES SUPPORT GROUP,A0096899,29/03/2023,HED0332635,5000,N,,N,N
Pendle Borough Council,Parks & Recreation Services,Supplies and Services,Other Expenses,4705,WAYNE COLE T/A S & W PREMIUM LANDSCAPING,A0096903,16/03/2023,PCO0332295,720,N,,N,N
Pendle Borough Council,Financial Services,Supplies and Services,Grant Funding,4737,REDACT - PERSONAL DATA,A0096910,03/03/2023,AAS0331945,350,N,,N,N
Pendle Borough Council,Financial Services,Supplies and Services,Grant Funding,4737,REDACT - PERSONAL DATA,A0096910,29/03/2023,AAS0332750,350,N,,N,N
Pendle Borough Council,Financial Services,Supplies and Services,Grant Funding,4737,REDACT - PERSONAL DATA,A0096912,03/03/2023,AAS0331943,350,N,,N,N
Pendle Borough Council,Financial Services,Supplies and Services,Grant Funding,4737,REDACT - PERSONAL DATA,A0096912,29/03/2023,AAS0332748,350,N,,N,N
Pendle Borough Council,Financial Services,Supplies and Services,Grant Funding,4737,REDACT - PERSONAL DATA,A0096916,03/03/2023,AAS0331944,350,N,,N,N
Pendle Borough Council,Financial Services,Supplies and Services,Grant Funding,4737,REDACT - PERSONAL DATA,A0096916,29/03/2023,AAS0332749,350,N,,N,N
Pendle Borough Council,Financial Services,Supplies and Services,Consultants Fees,4401,"KNIGHT, KAVANAGH & PAGE LTD",A0096924,09/03/2023,AAS0332106,2490,N,,N,N
Pendle Borough Council,Engineering & Special Projects,Supplies and Services,Other Expenses,4705,GREAT PLACES HOUSING GROUP,A0096937,16/03/2023,HED0332193,345.45,N,,N,N
Pendle Borough Council,Operational Services,Capital Costs,Capital : Payments,CD14,THE CDS GROUP,A0096940,02/03/2023,OPS0331871,150,N,,N,N
Pendle Borough Council,Operational Services,Capital Costs,Capital : Payments,CD14,THE CDS GROUP,A0096940,02/03/2023,OPS0331872,150,N,,N,N
Pendle Borough Council,Operational Services,Capital Costs,Capital : Payments,CD14,THE CDS GROUP,A0096940,02/03/2023,OPS0331871,160,N,,N,N
Pendle Borough Council,Operational Services,Capital Costs,Capital : Payments,CD14,THE CDS GROUP,A0096940,02/03/2023,OPS0331872,200,N,,N,N
Pendle Borough Council,Operational Services,Capital Costs,Capital : Payments,CD14,THE CDS GROUP,A0096940,02/03/2023,OPS0331872,300,N,,N,N
Pendle Borough Council,Operational Services,Capital Costs,Capital : Payments,CD14,THE CDS GROUP,A0096940,29/03/2023,OPS0332591,300,N,,N,N
Pendle Borough Council,Operational Services,Capital Costs,Capital : Payments,CD14,THE CDS GROUP,A0096940,29/03/2023,OPS0332591,300,N,,N,N
Pendle Borough Council,Operational Services,Capital Costs,Capital : Payments,CD14,THE CDS GROUP,A0096940,02/03/2023,OPS0331872,320,N,,N,N
Pendle Borough Council,Operational Services,Capital Costs,Capital : Payments,CD14,THE CDS GROUP,A0096940,29/03/2023,OPS0332591,325,N,,N,N
Pendle Borough Council,Operational Services,Capital Costs,Capital : Payments,CD14,THE CDS GROUP,A0096940,29/03/2023,OPS0332590,1200,N,,N,N
Pendle Borough Council,Operational Services,Capital Costs,Capital : Payments,CD14,THE CDS GROUP,A0096940,29/03/2023,OPS0332590,1400,N,,N,N
Pendle Borough Council,Operational Services,Capital Costs,Capital : Payments,CD14,THE CDS GROUP,A0096940,09/03/2023,OPS0331996,1550,N,,N,N
Pendle Borough Council,Operational Services,Capital Costs,Capital : Payments,CD14,THE CDS GROUP,A0096940,02/03/2023,OPS0331872,1700,N,,N,N
Pendle Borough Council,Operational Services,Capital Costs,Capital : Payments,CD14,THE CDS GROUP,A0096940,02/03/2023,OPS0331872,1787.5,N,,N,N
Pendle Borough Council,Operational Services,Capital Costs,Capital : Payments,CD14,THE CDS GROUP,A0096940,02/03/2023,OPS0331871,1900,N,,N,N
Pendle Borough Council,Operational Services,Capital Costs,Capital : Payments,CD14,THE CDS GROUP,A0096940,29/03/2023,OPS0332591,1900,N,,N,N
Pendle Borough Council,Engineering & Special Projects,Capital Costs,Capital : Payments,CD14,PENNY BENNETT LANDSCAPE ARCHITECTS,A0096959,29/03/2023,HED0332695,1050,N,,N,N
Pendle Borough Council,Engineering & Special Projects,Supplies and Services,Other Expenses,4705,REDACT - PERSONAL DATA,A0096965,23/03/2023,HED0332394,1262.5,N,,N,N
Pendle Borough Council,Engineering & Special Projects,Capital Costs,Ren Grant : 1996 Act,CH22,JACOB ANDERSON T/A JAY-CARE,A0096967,09/03/2023,HED0332046,2645,N,,N,N
Pendle Borough Council,Financial Services,Supplies and Services,Grant Funding,4737,REDACT - PERSONAL DATA,A0096978,03/03/2023,AAS0331946,350,N,,N,N
Pendle Borough Council,Financial Services,Supplies and Services,Grant Funding,4737,REDACT - PERSONAL DATA,A0096978,29/03/2023,AAS0332751,350,N,,N,N
Pendle Borough Council,Engineering & Special Projects,Supplies and Services,Seminars etc All Costs,4601,Local Government and Social Care Ombudsman,A0096979,23/03/2023,HED0332340,75,N,,N,N
Pendle Borough Council,Financial Services,Supplies and Services,Grant Funding,4737,REDACT - PERSONAL DATA,A0096980,03/03/2023,AAS0331947,350,N,,N,N
Pendle Borough Council,Financial Services,Supplies and Services,Grant Funding,4737,REDACT - PERSONAL DATA,A0096980,29/03/2023,AAS0332752,350,N,,N,N
Pendle Borough Council,Engineering & Special Projects,Capital Costs,Capital : Payments,CD14,CMS CAMERON MCKENNA NABARRO OLSWANG LLP,A0096983,02/03/2023,HED0331838,1000,N,,N,N
Pendle Borough Council,Parks & Recreation Services,Premises Related Expense,Grounds : R & M : Day to Day : Routine,2101,K SUPPLIES,A0096993,09/03/2023,PCO0332023,254.9,N,,N,N
Pendle Borough Council,Parks & Recreation Services,Transport Related Expense,Tprt : Repairs : General,3105,K SUPPLIES,A0096993,09/03/2023,PCO0332022,29.95,N,,N,N
Pendle Borough Council,Parks & Recreation Services,Supplies and Services,EFM : Other Equipment,4003,K SUPPLIES,A0096993,16/03/2023,PCO0332185,575.95,N,,N,N
Pendle Borough Council,Operational Services,,Stock : Purchases,PJ01,ANZECK PLASTICS LTD,A0096999,02/03/2023,OPS0331861,1320,N,,N,N
Pendle Borough Council,Operational Services,,Stock : Purchases,PJ01,ANZECK PLASTICS LTD,A0096999,29/03/2023,OPS0332484,1320,N,,N,N
Pendle Borough Council,Financial Services,Transfer Payments,Accommodation ,6103,TRAVELODGE BUSINESS PAY,A0097002,15/03/2023,AAS0332929,3297.75,N,,N,N
Pendle Borough Council,Financial Services,Supplies and Services,Grant Funding,4737,REDACT - PERSONAL DATA,A0097003,03/03/2023,AAS0331948,350,N,,N,N
Pendle Borough Council,Financial Services,Supplies and Services,Grant Funding,4737,REDACT - PERSONAL DATA,A0097003,03/03/2023,AAS0331949,350,N,,N,N
Pendle Borough Council,Financial Services,Supplies and Services,Grant Funding,4737,REDACT - PERSONAL DATA,A0097003,29/03/2023,AAS0332754,350,N,,N,N
Pendle Borough Council,Planning & Building Control,Supplies and Services,EFM : Other Equipment,4003,TRAVL XL LIMITED,A0097004,02/03/2023,PBC0331886,35.32,N,,N,N
Pendle Borough Council,Planning & Building Control,,Fees Income : VATable,9202,REDACT - PERSONAL DATA,A0097005,02/03/2023,PBC0331890,66.67,N,,N,N
Pendle Borough Council,Operational Services,Capital Costs,Capital : Payments,CD14,HOPKINSONS FAIRDEALS REMARKETING,A0097006,09/03/2023,OPS0331997,22000,N,,N,N
Pendle Borough Council,Financial Services,Supplies and Services,Grant Funding,4737,REDACT - PERSONAL DATA,A0097007,03/03/2023,AAS0331931,400,N,,N,N
Pendle Borough Council,Financial Services,Supplies and Services,Grant Funding,4737,REDACT - PERSONAL DATA,A0097008,03/03/2023,AAS0331950,350,N,,N,N
Pendle Borough Council,Financial Services,Supplies and Services,Grant Funding,4737,REDACT - PERSONAL DATA,A0097008,03/03/2023,AAS0331953,350,N,,N,N
Pendle Borough Council,Financial Services,Supplies and Services,Grant Funding,4737,REDACT - PERSONAL DATA,A0097008,29/03/2023,AAS0332753,350,N,,N,N
Pendle Borough Council,Financial Services,Supplies and Services,Grant Funding,4737,REDACT - PERSONAL DATA,A0097008,03/03/2023,AAS0331951,475,N,,N,N
Pendle Borough Council,Financial Services,Supplies and Services,Grant Funding,4737,REDACT - PERSONAL DATA,A0097008,03/03/2023,AAS0331952,475,N,,N,N
Pendle Borough Council,Engineering & Special Projects,Supplies and Services,Children`s holiday activities,4716,J P LENNARD LTD,A0097009,09/03/2023,HED0331981,763.74,N,,N,N
Pendle Borough Council,Engineering & Special Projects,Supplies and Services,Children`s holiday activities,4716,BOWLS BUDDIES LLP,A0097010,09/03/2023,HED0331980,399,N,,N,N
Pendle Borough Council,Financial Services,Supplies and Services,Grant Funding,4737,REDACT - PERSONAL DATA,A0097012,06/03/2023,AAS0331974,65,N,,N,N
Pendle Borough Council,Financial Services,Supplies and Services,Grant Funding,4737,REDACT - PERSONAL DATA,A0097013,06/03/2023,AAS0331973,65,N,,N,N
Pendle Borough Council,Engineering & Special Projects,Supplies and Services,Other Expenses,4705,REDACT - PERSONAL DATA,A0097015,09/03/2023,HED0332101,1058,N,,N,N
Pendle Borough Council,Engineering & Special Projects,Supplies and Services,Consultants Fees,4401,RAISE PARTNERSHIP LTD,A0097017,16/03/2023,HED0332163,684,N,,N,N
Pendle Borough Council,Engineering & Special Projects,Supplies and Services,Consultants Fees,4401,RAISE PARTNERSHIP LTD,A0097017,29/03/2023,HED0332608,710.4,N,,N,N
Pendle Borough Council,Engineering & Special Projects,Supplies and Services,Consultants Fees,4401,RAISE PARTNERSHIP LTD,A0097017,29/03/2023,HED0332607,8016.67,N,,N,N
Pendle Borough Council,Engineering & Special Projects,Supplies and Services,Consultants Fees,4401,RAISE PARTNERSHIP LTD,A0097017,16/03/2023,HED0332162,16033.34,N,,N,N
Pendle Borough Council,Planning & Building Control,Capital Costs,Capital : Payments,CD14,THE FURNITURE COMPANY,A0097019,16/03/2023,PBC0332166,13250,N,,N,N
Pendle Borough Council,Planning & Building Control,Capital Costs,Capital : Payments,CD14,ASPIRE UK INTERIORS LIMITED,A0097020,16/03/2023,PBC0332167,17372,N,,N,N
Pendle Borough Council,Planning & Building Control,Supplies and Services,Other Expenses,4705,ECCLES GREENWOOD FINANCIAL PLANNING LLP,A0097021,16/03/2023,PBC0332168,1500,N,,N,N
Pendle Borough Council,Operational Services,Supplies and Services,Publicity & advertisement,4704,ROADVERT LIMITED,A0097022,29/03/2023,OPS0332687,3060,N,,N,N
Pendle Borough Council,Operational Services,Supplies and Services,Publicity & advertisement,4704,ROADVERT LIMITED,A0097022,29/03/2023,OPS0332688,1360,N,,N,N
Pendle Borough Council,Engineering & Special Projects,Transfer Payments,Storage & Homelessness prevention,6104,REDACT - PERSONAL DATA,A0097024,23/03/2023,HED0332410,434.5,N,,N,N
Pendle Borough Council,Engineering & Special Projects,Supplies and Services,Other Expenses,4705,EARBY EVENTS GROUP,A0097025,23/03/2023,HED0332396,500,N,,N,N
Pendle Borough Council,Engineering & Special Projects,Supplies and Services,Planning Appeals,4415,SIMPSON HOMES LIMITED,A0097026,23/03/2023,HED0332409,12680,N,,N,N
Pendle Borough Council,Financial Services,Supplies and Services,Grant Funding,4737,REDACT - PERSONAL DATA,A0097027,23/03/2023,AAS0332414,65,N,,N,N
Pendle Borough Council,Planning & Building Control,Capital Costs,Capital : Payments,CD14,CARRADICE OF NELSON LTD,A0097028,23/03/2023,PBC0332413,7429.97,N,,N,N
Pendle Borough Council,Financial Services,Supplies and Services,Grant Funding,4737,REDACT - PERSONAL DATA,A0097030,23/03/2023,AAS0332415,65,N,,N,N
Pendle Borough Council,Engineering & Special Projects,Supplies and Services,Other Expenses,4705,REDACT - PERSONAL DATA,A0097031,23/03/2023,HED0332433,1000,N,,N,N
Pendle Borough Council,Financial Services,Supplies and Services,Grant Funding,4737,REDACT - PERSONAL DATA,A0097032,29/03/2023,AAS0332487,400,N,,N,N
Pendle Borough Council,Financial Services,Supplies and Services,Grant Funding,4737,REDACT - PERSONAL DATA,A0097033,29/03/2023,AAS0332488,400,N,,N,N
Pendle Borough Council,Financial Services,Supplies and Services,Grant Funding,4737,REDACT - PERSONAL DATA,A0097034,29/03/2023,AAS0332489,400,N,,N,N
Pendle Borough Council,Financial Services,Supplies and Services,Grant Funding,4737,REDACT - PERSONAL DATA,A0097035,29/03/2023,AAS0332490,400,N,,N,N
Pendle Borough Council,Financial Services,Supplies and Services,Grant Funding,4737,REDACT - PERSONAL DATA,A0097036,29/03/2023,AAS0332491,400,N,,N,N
Pendle Borough Council,Financial Services,Supplies and Services,Grant Funding,4737,REDACT - PERSONAL DATA,A0097037,29/03/2023,AAS0332492,400,N,,N,N
Pendle Borough Council,Financial Services,Supplies and Services,Grant Funding,4737,REDACT - PERSONAL DATA,A0097038,29/03/2023,AAS0332493,400,N,,N,N
Pendle Borough Council,Financial Services,Supplies and Services,Grant Funding,4737,REDACT - PERSONAL DATA,A0097039,29/03/2023,AAS0332494,400,N,,N,N
Pendle Borough Council,Financial Services,Supplies and Services,Grant Funding,4737,REDACT - PERSONAL DATA,A0097040,29/03/2023,AAS0332495,400,N,,N,N
Pendle Borough Council,Financial Services,Supplies and Services,Grant Funding,4737,REDACT - PERSONAL DATA,A0097041,29/03/2023,AAS0332496,400,N,,N,N
Pendle Borough Council,Financial Services,Supplies and Services,Grant Funding,4737,REDACT - PERSONAL DATA,A0097042,29/03/2023,AAS0332497,400,N,,N,N
Pendle Borough Council,Financial Services,Supplies and Services,Grant Funding,4737,REDACT - PERSONAL DATA,A0097043,29/03/2023,AAS0332498,400,N,,N,N
Pendle Borough Council,Financial Services,Supplies and Services,Grant Funding,4737,REDACT - PERSONAL DATA,A0097044,29/03/2023,AAS0332499,400,N,,N,N
Pendle Borough Council,Financial Services,Supplies and Services,Grant Funding,4737,REDACT - PERSONAL DATA,A0097045,29/03/2023,AAS0332500,400,N,,N,N
Pendle Borough Council,Financial Services,Supplies and Services,Grant Funding,4737,REDACT - PERSONAL DATA,A0097046,29/03/2023,AAS0332501,400,N,,N,N
Pendle Borough Council,Financial Services,Supplies and Services,Grant Funding,4737,REDACT - PERSONAL DATA,A0097047,29/03/2023,AAS0332502,400,N,,N,N
Pendle Borough Council,Financial Services,Supplies and Services,Grant Funding,4737,REDACT - PERSONAL DATA,A0097048,29/03/2023,AAS0332503,400,N,,N,N
Pendle Borough Council,Financial Services,Supplies and Services,Grant Funding,4737,REDACT - PERSONAL DATA,A0097049,29/03/2023,AAS0332504,400,N,,N,N
Pendle Borough Council,Financial Services,Supplies and Services,Grant Funding,4737,REDACT - PERSONAL DATA,A0097050,29/03/2023,AAS0332505,400,N,,N,N
Pendle Borough Council,Financial Services,Supplies and Services,Grant Funding,4737,REDACT - PERSONAL DATA,A0097051,29/03/2023,AAS0332506,400,N,,N,N
Pendle Borough Council,Financial Services,Supplies and Services,Grant Funding,4737,REDACT - PERSONAL DATA,A0097052,29/03/2023,AAS0332507,400,N,,N,N
Pendle Borough Council,Financial Services,Supplies and Services,Grant Funding,4737,REDACT - PERSONAL DATA,A0097053,29/03/2023,AAS0332508,400,N,,N,N
Pendle Borough Council,Financial Services,Supplies and Services,Grant Funding,4737,REDACT - PERSONAL DATA,A0097054,29/03/2023,AAS0332509,400,N,,N,N
Pendle Borough Council,Financial Services,Supplies and Services,Grant Funding,4737,REDACT - PERSONAL DATA,A0097055,29/03/2023,AAS0332510,400,N,,N,N
Pendle Borough Council,Financial Services,Supplies and Services,Grant Funding,4737,REDACT - PERSONAL DATA,A0097056,29/03/2023,AAS0332511,400,N,,N,N
Pendle Borough Council,Financial Services,Supplies and Services,Grant Funding,4737,REDACT - PERSONAL DATA,A0097057,29/03/2023,AAS0332512,400,N,,N,N
Pendle Borough Council,Financial Services,Supplies and Services,Grant Funding,4737,REDACT - PERSONAL DATA,A0097058,29/03/2023,AAS0332513,400,N,,N,N
Pendle Borough Council,Financial Services,Supplies and Services,Grant Funding,4737,REDACT - PERSONAL DATA,A0097059,29/03/2023,AAS0332514,400,N,,N,N
Pendle Borough Council,Financial Services,Supplies and Services,Grant Funding,4737,REDACT - PERSONAL DATA,A0097060,29/03/2023,AAS0332515,400,N,,N,N
Pendle Borough Council,Financial Services,Supplies and Services,Grant Funding,4737,REDACT - PERSONAL DATA,A0097061,29/03/2023,AAS0332516,400,N,,N,N
Pendle Borough Council,Financial Services,Supplies and Services,Grant Funding,4737,REDACT - PERSONAL DATA,A0097062,29/03/2023,AAS0332517,400,N,,N,N
Pendle Borough Council,Financial Services,Supplies and Services,Grant Funding,4737,REDACT - PERSONAL DATA,A0097063,29/03/2023,AAS0332518,400,N,,N,N
Pendle Borough Council,Financial Services,Supplies and Services,Grant Funding,4737,REDACT - PERSONAL DATA,A0097064,29/03/2023,AAS0332519,400,N,,N,N
Pendle Borough Council,Financial Services,Supplies and Services,Grant Funding,4737,REDACT - PERSONAL DATA,A0097065,29/03/2023,AAS0332520,400,N,,N,N
Pendle Borough Council,Financial Services,Supplies and Services,Grant Funding,4737,REDACT - PERSONAL DATA,A0097066,29/03/2023,AAS0332521,400,N,,N,N
Pendle Borough Council,Financial Services,Supplies and Services,Grant Funding,4737,REDACT - PERSONAL DATA,A0097067,29/03/2023,AAS0332522,400,N,,N,N
Pendle Borough Council,Financial Services,Supplies and Services,Grant Funding,4737,REDACT - PERSONAL DATA,A0097068,29/03/2023,AAS0332523,400,N,,N,N
Pendle Borough Council,Financial Services,Supplies and Services,Grant Funding,4737,REDACT - PERSONAL DATA,A0097069,29/03/2023,AAS0332524,400,N,,N,N
Pendle Borough Council,Financial Services,Supplies and Services,Grant Funding,4737,REDACT - PERSONAL DATA,A0097070,29/03/2023,AAS0332525,400,N,,N,N
Pendle Borough Council,Financial Services,Supplies and Services,Grant Funding,4737,REDACT - PERSONAL DATA,A0097071,29/03/2023,AAS0332526,400,N,,N,N
Pendle Borough Council,Financial Services,Supplies and Services,Grant Funding,4737,REDACT - PERSONAL DATA,A0097072,29/03/2023,AAS0332527,400,N,,N,N
Pendle Borough Council,Financial Services,Supplies and Services,Grant Funding,4737,REDACT - PERSONAL DATA,A0097073,29/03/2023,AAS0332528,400,N,,N,N
Pendle Borough Council,Financial Services,Supplies and Services,Grant Funding,4737,REDACT - PERSONAL DATA,A0097074,29/03/2023,AAS0332529,400,N,,N,N
Pendle Borough Council,Financial Services,Supplies and Services,Grant Funding,4737,REDACT - PERSONAL DATA,A0097075,29/03/2023,AAS0332530,400,N,,N,N
Pendle Borough Council,Financial Services,Supplies and Services,Grant Funding,4737,REDACT - PERSONAL DATA,A0097076,29/03/2023,AAS0332531,400,N,,N,N
Pendle Borough Council,Financial Services,Supplies and Services,Grant Funding,4737,REDACT - PERSONAL DATA,A0097077,29/03/2023,AAS0332532,400,N,,N,N
Pendle Borough Council,Financial Services,Supplies and Services,Grant Funding,4737,REDACT - PERSONAL DATA,A0097078,29/03/2023,AAS0332533,400,N,,N,N
Pendle Borough Council,Financial Services,Supplies and Services,Grant Funding,4737,REDACT - PERSONAL DATA,A0097079,29/03/2023,AAS0332534,400,N,,N,N
Pendle Borough Council,Financial Services,Supplies and Services,Grant Funding,4737,REDACT - PERSONAL DATA,A0097080,29/03/2023,AAS0332535,400,N,,N,N
Pendle Borough Council,Financial Services,Supplies and Services,Grant Funding,4737,REDACT - PERSONAL DATA,A0097081,29/03/2023,AAS0332536,400,N,,N,N
Pendle Borough Council,Financial Services,Supplies and Services,Grant Funding,4737,REDACT - PERSONAL DATA,A0097082,29/03/2023,AAS0332537,400,N,,N,N
Pendle Borough Council,Financial Services,Supplies and Services,Grant Funding,4737,REDACT - PERSONAL DATA,A0097083,29/03/2023,AAS0332538,400,N,,N,N
Pendle Borough Council,Financial Services,Supplies and Services,Grant Funding,4737,REDACT - PERSONAL DATA,A0097084,29/03/2023,AAS0332539,400,N,,N,N
Pendle Borough Council,Financial Services,Supplies and Services,Grant Funding,4737,REDACT - PERSONAL DATA,A0097085,29/03/2023,AAS0332540,400,N,,N,N
